Body Name,Body,Organisational unit,Service division,Expenditure category,Date,Transacton number,Net amount,Supplier,Narrative
Tendring DC,http://statistics.data.gov.uk/id/local-authority-district/22UN,Corporate Services,1815 - Personnel and Human Resources Issues,1707 - Training - Workforce Development Courses,15/10/2013,2111681-1,1344.6,2113460 - ADMAR Support Services Ltd,Data Protection TR
Tendring DC,http://statistics.data.gov.uk/id/local-authority-district/22UN,Corporate Services,1760 - IT Direct Service Costs,6320 - IT Services Agreements Payment,15/10/2013,2111681-2,224.1,2113460 - ADMAR Support Services Ltd,Data Protection TR
Tendring DC,http://statistics.data.gov.uk/id/local-authority-district/22UN,Corporate Services,1100 - Corporate Director (Corporate Services) and Admin Service Unit,4880 - Subscriptions Paid,22/10/2013,1055591-1,49.5,2113125 - ADSO,ADSO-M PINGRAM
Tendring DC,http://statistics.data.gov.uk/id/local-authority-district/22UN,Corporate Services,8905 - Parish Precepts,6999 - Parish Precepts,01/10/2013,7104740-0,35536,2100075 - Alresford Parish Council,Parish Council Precepts - Second Instalment 2013/14
Tendring DC,http://statistics.data.gov.uk/id/local-authority-district/22UN,Corporate Services,6680 - Other Corporate Costs,4902 - Grants to Organisations - Parish Councils,01/10/2013,7104740-1,2856,2100075 - Alresford Parish Council,Parish Council Precepts - Second Instalment 2013/14
Tendring DC,http://statistics.data.gov.uk/id/local-authority-district/22UN,Corporate Services,7220 - Election Expenses,4486 - Election Expenses,22/10/2013,1055590-1,87.99,2111631 - Anglia Courier Express (East Anglia) Ltd,COURIER EXPRESS
Tendring DC,http://statistics.data.gov.uk/id/local-authority-district/22UN,Corporate Services,8905 - Parish Precepts,6999 - Parish Precepts,01/10/2013,7104741-3,14179,2100018 - Ardleigh Parish Council,Parish Council Precepts - Second Instalment 2013/14
Tendring DC,http://statistics.data.gov.uk/id/local-authority-district/22UN,Corporate Services,6680 - Other Corporate Costs,4902 - Grants to Organisations - Parish Councils,01/10/2013,7104741-4,996,2100018 - Ardleigh Parish Council,Parish Council Precepts - Second Instalment 2013/14
Tendring DC,http://statistics.data.gov.uk/id/local-authority-district/22UN,Corporate Services,1100 - Corporate Director (Corporate Services) and Admin Service Unit,4753 - Computer - Application Software,22/10/2013,2111831-1,4585,2109504 - Associated Knowledge Systems Ltd,E-Genda System
Tendring DC,http://statistics.data.gov.uk/id/local-authority-district/22UN,Corporate Services,6560 - Other Democratic Costs,4110 - General Provisions,08/10/2013,1055303-1,187.2,2112129 - Autobar Vending Services Ltd,CHAMBER COFFEE
Tendring DC,http://statistics.data.gov.uk/id/local-authority-district/22UN,Corporate Services,1320 - Print Unit Service Unit,4302 - External Print Unit Expenses,08/10/2013,1055293-1,187,2100069 - Autoprint,JOB 330
Tendring DC,http://statistics.data.gov.uk/id/local-authority-district/22UN,Corporate Services,1370 - Streets & Seafronts Service Unit,4302 - External Print Unit Expenses,01/10/2013,7700597-1,90,2100069 - Autoprint,331
Tendring DC,http://statistics.data.gov.uk/id/local-authority-district/22UN,Corporate Services,1100 - Corporate Director (Corporate Services) and Admin Service Unit,4300 - Printing & Stationery,08/10/2013,1055224-1,32.8,2100111 - Banner Business Supplies Ltd,BANNER
Tendring DC,http://statistics.data.gov.uk/id/local-authority-district/22UN,Corporate Services,6580 - Member Support Cost,4300 - Printing & Stationery,08/10/2013,1055226-1,10.97,2100111 - Banner Business Supplies Ltd,MISC ITEMS & CODES
Tendring DC,http://statistics.data.gov.uk/id/local-authority-district/22UN,Corporate Services,1100 - Corporate Director (Corporate Services) and Admin Service Unit,4300 - Printing & Stationery,08/10/2013,1055226-2,22.74,2100111 - Banner Business Supplies Ltd,MISC ITEMS & CODES
Tendring DC,http://statistics.data.gov.uk/id/local-authority-district/22UN,Corporate Services,6560 - Other Democratic Costs,4110 - General Provisions,08/10/2013,1055226-3,9,2100111 - Banner Business Supplies Ltd,MISC ITEMS & CODES
Tendring DC,http://statistics.data.gov.uk/id/local-authority-district/22UN,Corporate Services,6560 - Other Democratic Costs,4110 - General Provisions,22/10/2013,1055613-1,3.61,2100111 - Banner Business Supplies Ltd,PENS (PART ORDER)
Tendring DC,http://statistics.data.gov.uk/id/local-authority-district/22UN,Corporate Services,1100 - Corporate Director (Corporate Services) and Admin Service Unit,4300 - Printing & Stationery,22/10/2013,1055613-2,1.68,2100111 - Banner Business Supplies Ltd,PENS (PART ORDER)
Tendring DC,http://statistics.data.gov.uk/id/local-authority-district/22UN,Corporate Services,6580 - Member Support Cost,4300 - Printing & Stationery,22/10/2013,1055678-1,13.63,2100111 - Banner Business Supplies Ltd,BI OFFICE COMBI BOARD
Tendring DC,http://statistics.data.gov.uk/id/local-authority-district/22UN,Corporate Services,1090 - Chief Executive and Support Service Unit,4300 - Printing & Stationery,01/10/2013,2111378-1,108.24,2100111 - Banner Business Supplies Ltd,
Tendring DC,http://statistics.data.gov.uk/id/local-authority-district/22UN,Corporate Services,1100 - Corporate Director (Corporate Services) and Admin Service Unit,4300 - Printing & Stationery,01/10/2013,2111379-1,105.48,2100111 - Banner Business Supplies Ltd,Toner for Fax
Tendring DC,http://statistics.data.gov.uk/id/local-authority-district/22UN,Corporate Services,1100 - Corporate Director (Corporate Services) and Admin Service Unit,4300 - Printing & Stationery,01/10/2013,2111387-1,32.31,2100111 - Banner Business Supplies Ltd,Banner
Tendring DC,http://statistics.data.gov.uk/id/local-authority-district/22UN,Corporate Services,1100 - Corporate Director (Corporate Services) and Admin Service Unit,4300 - Printing & Stationery,01/10/2013,2111388-1,57,2100111 - Banner Business Supplies Ltd,
Tendring DC,http://statistics.data.gov.uk/id/local-authority-district/22UN,Corporate Services,1100 - Corporate Director (Corporate Services) and Admin Service Unit,4300 - Printing & Stationery,01/10/2013,2111389-1,0.45,2100111 - Banner Business Supplies Ltd,Diary
Tendring DC,http://statistics.data.gov.uk/id/local-authority-district/22UN,Corporate Services,1100 - Corporate Director (Corporate Services) and Admin Service Unit,4300 - Printing & Stationery,01/10/2013,2111411-1,-0.45,2100111 - Banner Business Supplies Ltd,Diary
Tendring DC,http://statistics.data.gov.uk/id/local-authority-district/22UN,Corporate Services,1100 - Corporate Director (Corporate Services) and Admin Service Unit,4300 - Printing & Stationery,15/10/2013,2111737-1,151.92,2100111 - Banner Business Supplies Ltd,Stationery Order
Tendring DC,http://statistics.data.gov.uk/id/local-authority-district/22UN,Corporate Services,7025 - CDRP Support,4900 - Grants,22/10/2013,2111806-1,4.8,2100111 - Banner Business Supplies Ltd,DVDs/Clipboards
Tendring DC,http://statistics.data.gov.uk/id/local-authority-district/22UN,Corporate Services,7025 - CDRP Support,4900 - Grants,22/10/2013,2111806-2,7.34,2100111 - Banner Business Supplies Ltd,DVDs/Clipboards
Tendring DC,http://statistics.data.gov.uk/id/local-authority-district/22UN,Corporate Services,1320 - Print Unit Service Unit,4080 - Materials & Consumables,22/10/2013,2111807-1,101.36,2100111 - Banner Business Supplies Ltd,Paper
Tendring DC,http://statistics.data.gov.uk/id/local-authority-district/22UN,Corporate Services,1100 - Corporate Director (Corporate Services) and Admin Service Unit,4300 - Printing & Stationery,22/10/2013,2111858-1,60.87,2100111 - Banner Business Supplies Ltd,Banner Oct 13
Tendring DC,http://statistics.data.gov.uk/id/local-authority-district/22UN,Corporate Services,1100 - Corporate Director (Corporate Services) and Admin Service Unit,4300 - Printing & Stationery,22/10/2013,2111859-1,5.14,2100111 - Banner Business Supplies Ltd,Banner Stamp
Tendring DC,http://statistics.data.gov.uk/id/local-authority-district/22UN,Corporate Services,4460 - Planning Policy and Conservation,1300 - Salaries - Pensionable Pay,08/10/2013,1055239-1,477,2112486 - Basildon District Council,AIRSHOW INJUNCTION
Tendring DC,http://statistics.data.gov.uk/id/local-authority-district/22UN,Corporate Services,8905 - Parish Precepts,6999 - Parish Precepts,01/10/2013,7104742-0,1520,2100192 - Beaumont Parish Council,Parish Council Precepts - Second Instalment 2013/14
Tendring DC,http://statistics.data.gov.uk/id/local-authority-district/22UN,Corporate Services,6680 - Other Corporate Costs,4902 - Grants to Organisations - Parish Councils,01/10/2013,7104742-1,80,2100192 - Beaumont Parish Council,Parish Council Precepts - Second Instalment 2013/14
Tendring DC,http://statistics.data.gov.uk/id/local-authority-district/22UN,Corporate Services,1760 - IT Direct Service Costs,4753 - Computer - Application Software,08/10/2013,1055243-1,1050,2111031 - Boldon James Ltd,OWA CLASSIFIER LICENCE & SUPPORT
Tendring DC,http://statistics.data.gov.uk/id/local-authority-district/22UN,Corporate Services,8905 - Parish Precepts,6999 - Parish Precepts,01/10/2013,7104745-3,9308,2100166 - Bradfield Parish Council,Parish Council Precepts - Second Instalment 2013/14
Tendring DC,http://statistics.data.gov.uk/id/local-authority-district/22UN,Corporate Services,6680 - Other Corporate Costs,4902 - Grants to Organisations - Parish Councils,01/10/2013,7104745-4,692,2100166 - Bradfield Parish Council,Parish Council Precepts - Second Instalment 2013/14
Tendring DC,http://statistics.data.gov.uk/id/local-authority-district/22UN,Corporate Services,8905 - Parish Precepts,6999 - Parish Precepts,01/10/2013,7104746-0,68575,2100177 - Brightlingsea Town Council,Parish Council Precepts - Second Instalment 2013/14
Tendring DC,http://statistics.data.gov.uk/id/local-authority-district/22UN,Corporate Services,6680 - Other Corporate Costs,4902 - Grants to Organisations - Parish Councils,01/10/2013,7104746-1,10392,2100177 - Brightlingsea Town Council,Parish Council Precepts - Second Instalment 2013/14
Tendring DC,http://statistics.data.gov.uk/id/local-authority-district/22UN,Corporate Services,1760 - IT Direct Service Costs,4715 - Data Communication Charge,08/10/2013,1055247-1,44.7,2100168 - British Telecommunications plc,2531 SEPT 13
Tendring DC,http://statistics.data.gov.uk/id/local-authority-district/22UN,Corporate Services,1760 - IT Direct Service Costs,4715 - Data Communication Charge,08/10/2013,1055248-1,46.89,2100168 - British Telecommunications plc,0166 SEPT 13
Tendring DC,http://statistics.data.gov.uk/id/local-authority-district/22UN,Corporate Services,1760 - IT Direct Service Costs,4715 - Data Communication Charge,15/10/2013,2111740-1,46.89,2100168 - British Telecommunications plc,8418 Sep 13
Tendring DC,http://statistics.data.gov.uk/id/local-authority-district/22UN,Corporate Services,1760 - IT Direct Service Costs,4715 - Data Communication Charge,15/10/2013,2111741-1,51.57,2100168 - British Telecommunications plc,7234 Sept 13
Tendring DC,http://statistics.data.gov.uk/id/local-authority-district/22UN,Corporate Services,1760 - IT Direct Service Costs,4715 - Data Communication Charge,15/10/2013,2111742-1,129,2100168 - British Telecommunications plc,3144 oct 13
Tendring DC,http://statistics.data.gov.uk/id/local-authority-district/22UN,Corporate Services,1760 - IT Direct Service Costs,4715 - Data Communication Charge,01/10/2013,7009557-1,45.36,2100168 - British Telecommunications plc,8878 SEPT 13
Tendring DC,http://statistics.data.gov.uk/id/local-authority-district/22UN,Corporate Services,1760 - IT Direct Service Costs,4715 - Data Communication Charge,01/10/2013,7009567-1,121,2100168 - British Telecommunications plc,1327 SEP 13
Tendring DC,http://statistics.data.gov.uk/id/local-authority-district/22UN,Corporate Services,1760 - IT Direct Service Costs,4715 - Data Communication Charge,01/10/2013,7009568-1,46.89,2100168 - British Telecommunications plc,1625 SEPT 13
Tendring DC,http://statistics.data.gov.uk/id/local-authority-district/22UN,Corporate Services,1760 - IT Direct Service Costs,4715 - Data Communication Charge,01/10/2013,7009569-1,45.36,2100168 - British Telecommunications plc,8827 SEPT 13
Tendring DC,http://statistics.data.gov.uk/id/local-authority-district/22UN,Corporate Services,1760 - IT Direct Service Costs,4715 - Data Communication Charge,01/10/2013,7009570-1,45.36,2100168 - British Telecommunications plc,Sep-13
Tendring DC,http://statistics.data.gov.uk/id/local-authority-district/22UN,Corporate Services,1760 - IT Direct Service Costs,4715 - Data Communication Charge,01/10/2013,7009571-1,45.36,2100168 - British Telecommunications plc,Sep-13
Tendring DC,http://statistics.data.gov.uk/id/local-authority-district/22UN,Corporate Services,1760 - IT Direct Service Costs,4715 - Data Communication Charge,01/10/2013,7009572-1,188.93,2100168 - British Telecommunications plc,2194 SEP 13
Tendring DC,http://statistics.data.gov.uk/id/local-authority-district/22UN,Corporate Services,1760 - IT Direct Service Costs,4715 - Data Communication Charge,01/10/2013,7009573-1,45.36,2100168 - British Telecommunications plc,3347 SEPT 13
Tendring DC,http://statistics.data.gov.uk/id/local-authority-district/22UN,Corporate Services,1815 - Personnel and Human Resources Issues,1708 - Training - New Programme Development Courses,08/10/2013,1055211-1,68.03,REDACTED PERSONAL DATA,REDACTED PERSONAL DATA
Tendring DC,http://statistics.data.gov.uk/id/local-authority-district/22UN,Corporate Services,1815 - Personnel and Human Resources Issues,1708 - Training - New Programme Development Courses,08/10/2013,1055212-1,155,REDACTED PERSONAL DATA,REDACTED PERSONAL DATA
Tendring DC,http://statistics.data.gov.uk/id/local-authority-district/22UN,Corporate Services,9900 - General Fund Balance Sheet,B879 - Charges made by Merchant Acquirer,28/10/2013,2112042-1,44.28,REDACTED PERSONAL DATA,REDACTED PERSONAL DATA
Tendring DC,http://statistics.data.gov.uk/id/local-authority-district/22UN,Corporate Services,9900 - General Fund Balance Sheet,B879 - Charges made by Merchant Acquirer,28/10/2013,2112042-2,115.26,REDACTED PERSONAL DATA,REDACTED PERSONAL DATA
Tendring DC,http://statistics.data.gov.uk/id/local-authority-district/22UN,Corporate Services,9900 - General Fund Balance Sheet,B879 - Charges made by Merchant Acquirer,28/10/2013,2112042-3,267.12,REDACTED PERSONAL DATA,REDACTED PERSONAL DATA
Tendring DC,http://statistics.data.gov.uk/id/local-authority-district/22UN,Corporate Services,9900 - General Fund Balance Sheet,B879 - Charges made by Merchant Acquirer,28/10/2013,2112042-4,495.98,REDACTED PERSONAL DATA,REDACTED PERSONAL DATA
Tendring DC,http://statistics.data.gov.uk/id/local-authority-district/22UN,Corporate Services,9900 - General Fund Balance Sheet,B879 - Charges made by Merchant Acquirer,28/10/2013,2112042-5,356.76,REDACTED PERSONAL DATA,REDACTED PERSONAL DATA
Tendring DC,http://statistics.data.gov.uk/id/local-authority-district/22UN,Corporate Services,9900 - General Fund Balance Sheet,B879 - Charges made by Merchant Acquirer,28/10/2013,2112042-6,224.64,REDACTED PERSONAL DATA,REDACTED PERSONAL DATA
Tendring DC,http://statistics.data.gov.uk/id/local-authority-district/22UN,Corporate Services,9900 - General Fund Balance Sheet,B879 - Charges made by Merchant Acquirer,28/10/2013,2112042-7,351.72,REDACTED PERSONAL DATA,REDACTED PERSONAL DATA
Tendring DC,http://statistics.data.gov.uk/id/local-authority-district/22UN,Corporate Services,9900 - General Fund Balance Sheet,B879 - Charges made by Merchant Acquirer,28/10/2013,2112042-8,245.09,REDACTED PERSONAL DATA,REDACTED PERSONAL DATA
Tendring DC,http://statistics.data.gov.uk/id/local-authority-district/22UN,Corporate Services,1800 - Qualification and Other Training,1700 - Training - Courses,15/10/2013,1055443-1,2020,2100254 - Chartered Institute of Housing,HOUSING TRAINING
Tendring DC,http://statistics.data.gov.uk/id/local-authority-district/22UN,Corporate Services,1800 - Qualification and Other Training,1700 - Training - Courses,01/10/2013,7009537-1,230,2103962 - Chartered Institute of Internal Auditors,MEMBERSHIP QUALIFICATION
Tendring DC,http://statistics.data.gov.uk/id/local-authority-district/22UN,Corporate Services,1800 - Qualification and Other Training,1700 - Training - Courses,01/10/2013,7009538-1,1180,2103962 - Chartered Institute of Internal Auditors,REVISION WORKSHOP
Tendring DC,http://statistics.data.gov.uk/id/local-authority-district/22UN,Corporate Services,1180 - Benefit Fraud Investigation Service Unit,5500 - Miscellaneous Expenses,15/10/2013,2111731-1,48.99,2100265 - Child Poverty Action Group,Welfare Benefits Book
Tendring DC,http://statistics.data.gov.uk/id/local-authority-district/22UN,Corporate Services,1500 - Planning Development Manager,3300 - Public Transport - Officers,15/10/2013,2111711-1,29.4,2112703 - Christoper Brackley,Chris Brackley - Sept 2013
Tendring DC,http://statistics.data.gov.uk/id/local-authority-district/22UN,Corporate Services,1120 - Accountancy Service Unit,4753 - Computer - Application Software,15/10/2013,2111678-1,3210,2109394 - CIPFA Business Ltd,Asset man 1/10/13 - 30/9/14
Tendring DC,http://statistics.data.gov.uk/id/local-authority-district/22UN,Corporate Services,1760 - IT Direct Service Costs,4715 - Data Communication Charge,15/10/2013,2111597-1,1950,2111235 - CityFibre Networks Ltd,Dark fibre conn Weeley
Tendring DC,http://statistics.data.gov.uk/id/local-authority-district/22UN,Corporate Services,1320 - Print Unit Service Unit,4302 - External Print Unit Expenses,01/10/2013,7700603-1,147,2113356 - Classique Design & Print Limted,281
Tendring DC,http://statistics.data.gov.uk/id/local-authority-district/22UN,Corporate Services,1320 - Print Unit Service Unit,4302 - External Print Unit Expenses,01/10/2013,7700604-1,20,2113356 - Classique Design & Print Limted,281
Tendring DC,http://statistics.data.gov.uk/id/local-authority-district/22UN,Corporate Services,6640 - Treasury Management,5192 - Brokerage,01/10/2013,1055621-1,105,2100269 - Co operative Bank plc,FD SEP INVOICE
Tendring DC,http://statistics.data.gov.uk/id/local-authority-district/22UN,Corporate Services,6620 - Corporate Management - General,5190 - Bank Commission Charges,01/10/2013,1055621-2,241,2100269 - Co operative Bank plc,FD SEP INVOICE
Tendring DC,http://statistics.data.gov.uk/id/local-authority-district/22UN,Corporate Services,"1580 - Benefits, Revenues and Customer Contact SU",5186 - Paypoint/post office charges,01/10/2013,1055621-3,1375.14,2100269 - Co operative Bank plc,FD SEP INVOICE
Tendring DC,http://statistics.data.gov.uk/id/local-authority-district/22UN,Corporate Services,"1580 - Benefits, Revenues and Customer Contact SU",5186 - Paypoint/post office charges,01/10/2013,1055621-4,3049.27,2100269 - Co operative Bank plc,FD SEP INVOICE
Tendring DC,http://statistics.data.gov.uk/id/local-authority-district/22UN,Corporate Services,6460 - Career Track,4688 - Career Track Exam Fees,15/10/2013,1055441-1,22,REDACTED PERSONAL DATA,REDACTED PERSONAL DATA
Tendring DC,http://statistics.data.gov.uk/id/local-authority-district/22UN,Corporate Services,6980 - Essex Family Needs Project,5500 - Miscellaneous Expenses,15/10/2013,2111738-1,70.42,2102038 - Crispins Sandwich Bar Ltd,Buffet
Tendring DC,http://statistics.data.gov.uk/id/local-authority-district/22UN,Corporate Services,9900 - General Fund Balance Sheet,B382 - Rechargeable Works - Other,22/10/2013,1055568-1,285.35,2110672 - Dun & Bradstreet Ltd,D+B
Tendring DC,http://statistics.data.gov.uk/id/local-authority-district/22UN,Corporate Services,8905 - Parish Precepts,6999 - Parish Precepts,01/10/2013,7104750-0,13396,2101558 - Elmstead Parish Council,Parish Council Precepts - Second Instalment 2013/14
Tendring DC,http://statistics.data.gov.uk/id/local-authority-district/22UN,Corporate Services,6680 - Other Corporate Costs,4902 - Grants to Organisations - Parish Councils,01/10/2013,7104750-1,1598,2101558 - Elmstead Parish Council,Parish Council Precepts - Second Instalment 2013/14
Tendring DC,http://statistics.data.gov.uk/id/local-authority-district/22UN,Corporate Services,1320 - Print Unit Service Unit,4302 - External Print Unit Expenses,22/10/2013,2111809-1,60,2109136 - Essex Cares Ltd,Job 342
Tendring DC,http://statistics.data.gov.uk/id/local-authority-district/22UN,Corporate Services,1320 - Print Unit Service Unit,4302 - External Print Unit Expenses,22/10/2013,2111810-1,454.5,2109136 - Essex Cares Ltd,Job 319
Tendring DC,http://statistics.data.gov.uk/id/local-authority-district/22UN,Corporate Services,1800 - Qualification and Other Training,1700 - Training - Courses,22/10/2013,1055520-1,550,2100498 - Essex County Council,SPRINGBOARD 2011
Tendring DC,http://statistics.data.gov.uk/id/local-authority-district/22UN,Corporate Services,1815 - Personnel and Human Resources Issues,1500 - Advertising - Recruitment,22/10/2013,1055521-1,3000,2100498 - Essex County Council,VINE HR SUBSCRIPTION 2011/12
Tendring DC,http://statistics.data.gov.uk/id/local-authority-district/22UN,Corporate Services,9880 - Collection Fund - Council Tax,R100 - Precept - ECC,15/10/2013,1055630-1,4616471,2100409 - Essex County Council,PRECEPT 151013
Tendring DC,http://statistics.data.gov.uk/id/local-authority-district/22UN,Corporate Services,9880 - Collection Fund - Council Tax,R110 - Council Tax Balance - ECC,15/10/2013,1055630-2,92582,2100409 - Essex County Council,PRECEPT 151013
Tendring DC,http://statistics.data.gov.uk/id/local-authority-district/22UN,Corporate Services,9890 - Collection Fund - NNDR,R127 - NNDR - Essex County Retention,15/10/2013,1055630-3,217766,2100409 - Essex County Council,PRECEPT 151013
Tendring DC,http://statistics.data.gov.uk/id/local-authority-district/22UN,Corporate Services,6683 - Second Homes Discount Scheme,8109 - Second Homes Discount Scheme - ECC Contribution,15/10/2013,1055630-4,-37770,2100409 - Essex County Council,PRECEPT 151013
Tendring DC,http://statistics.data.gov.uk/id/local-authority-district/22UN,Corporate Services,1760 - IT Direct Service Costs,4880 - Subscriptions Paid,01/10/2013,7009531-1,10457,2100498 - Essex County Council,EOLP SUB CHARGE 13/14
Tendring DC,http://statistics.data.gov.uk/id/local-authority-district/22UN,Corporate Services,8971 - MIRS - Contributions Payable to the Pension Scheme,1816 - Superannuation Deficiency Contribution,15/10/2013,7009597-3,120813.87,2100419 - Essex County Council,Pension 00013
Tendring DC,http://statistics.data.gov.uk/id/local-authority-district/22UN,Corporate Services,8971 - MIRS - Contributions Payable to the Pension Scheme,1810 - Superannuation - Financial Strain/Added Years,15/10/2013,7009597-4,17147.18,2100419 - Essex County Council,Pension 00013
Tendring DC,http://statistics.data.gov.uk/id/local-authority-district/22UN,Corporate Services,8971 - MIRS - Contributions Payable to the Pension Scheme,1822 - Superannuation - Port Health Pensions etc.,15/10/2013,7009598-2,800.05,2100419 - Essex County Council,Port Health Authority
Tendring DC,http://statistics.data.gov.uk/id/local-authority-district/22UN,Corporate Services,7025 - CDRP Support,4900 - Grants,15/10/2013,2111679-1,4000,2108768 - Essex County Fire & Rescue Service,Firebreak Course 30 sept - 4 oct
Tendring DC,http://statistics.data.gov.uk/id/local-authority-district/22UN,Corporate Services,1330 - Human Resources Service Unit,5500 - Miscellaneous Expenses,08/10/2013,1055364-1,10,2100459 - Essex Fire Authority,SUPERVISOR TRAINING
Tendring DC,http://statistics.data.gov.uk/id/local-authority-district/22UN,Corporate Services,9880 - Collection Fund - Council Tax,R101 - Precept - Essex Fire,15/10/2013,1055628-1,282150,2100469 - Essex Fire Authority,PRECEPT 151013 FIRE
Tendring DC,http://statistics.data.gov.uk/id/local-authority-district/22UN,Corporate Services,9880 - Collection Fund - Council Tax,R111 - Council Tax Balance - Essex Fire,15/10/2013,1055628-2,5658,2100469 - Essex Fire Authority,PRECEPT 151013 FIRE
Tendring DC,http://statistics.data.gov.uk/id/local-authority-district/22UN,Corporate Services,9890 - Collection Fund - NNDR,R128 - NNDR - Fire Retention,15/10/2013,1055628-3,24196,2100469 - Essex Fire Authority,PRECEPT 151013 FIRE
Tendring DC,http://statistics.data.gov.uk/id/local-authority-district/22UN,Corporate Services,6683 - Second Homes Discount Scheme,8109 - Second Homes Discount Scheme - ECC Contribution,15/10/2013,1055628-4,-2106,2100469 - Essex Fire Authority,PRECEPT 151013 FIRE
Tendring DC,http://statistics.data.gov.uk/id/local-authority-district/22UN,Corporate Services,6680 - Other Corporate Costs,4589 - Hired Services - Actuaries Costs FRS17/IAS19,01/10/2013,7700602-1,426.12,2110439 - Essex Pension Fund,
Tendring DC,http://statistics.data.gov.uk/id/local-authority-district/22UN,Corporate Services,9880 - Collection Fund - Council Tax,R102 - Precept - Essex Police,15/10/2013,1055629-1,601001,2100500 - Essex Police Authority,PRECEPT 151013 POL
Tendring DC,http://statistics.data.gov.uk/id/local-authority-district/22UN,Corporate Services,9880 - Collection Fund - Council Tax,R112 - Council Tax Balance - Essex Police,15/10/2013,1055629-2,11647,2100500 - Essex Police Authority,PRECEPT 151013 POL
Tendring DC,http://statistics.data.gov.uk/id/local-authority-district/22UN,Corporate Services,1660 - Other Apportionable Overheads,4609 - Child Care Vouchers Management Fee,22/10/2013,1055644-2,83.18,REDACTED PERSONAL DATA,REDACTED PERSONAL DATA
Tendring DC,http://statistics.data.gov.uk/id/local-authority-district/22UN,Corporate Services,8905 - Parish Precepts,6999 - Parish Precepts,01/10/2013,7104751-1,4009,2100544 - Frating Parish Council,Parish Council Precepts - Second Instalment 2013/14
Tendring DC,http://statistics.data.gov.uk/id/local-authority-district/22UN,Corporate Services,6680 - Other Corporate Costs,4902 - Grants to Organisations - Parish Councils,01/10/2013,7104751-2,241,2100544 - Frating Parish Council,Parish Council Precepts - Second Instalment 2013/14
Tendring DC,http://statistics.data.gov.uk/id/local-authority-district/22UN,Corporate Services,8905 - Parish Precepts,6999 - Parish Precepts,01/10/2013,7104752-2,170986,2100584 - Frinton & Walton Town Council,Parish Council Precepts - Second Instalment 2013/14
Tendring DC,http://statistics.data.gov.uk/id/local-authority-district/22UN,Corporate Services,6680 - Other Corporate Costs,4902 - Grants to Organisations - Parish Councils,01/10/2013,7104752-3,29786,2100584 - Frinton & Walton Town Council,Parish Council Precepts - Second Instalment 2013/14
Tendring DC,http://statistics.data.gov.uk/id/local-authority-district/22UN,Corporate Services,1815 - Personnel and Human Resources Issues,1610 - Counselling,22/10/2013,2111803-1,1280,2100517 - Geraldine Craig,Counselling
Tendring DC,http://statistics.data.gov.uk/id/local-authority-district/22UN,Corporate Services,8905 - Parish Precepts,6999 - Parish Precepts,01/10/2013,7104743-3,20322,2100559 - Great Bentley Parish Council,Parish Council Precepts - Second Instalment 2013/14
Tendring DC,http://statistics.data.gov.uk/id/local-authority-district/22UN,Corporate Services,6680 - Other Corporate Costs,4902 - Grants to Organisations - Parish Councils,01/10/2013,7104743-4,2974,2100559 - Great Bentley Parish Council,Parish Council Precepts - Second Instalment 2013/14
Tendring DC,http://statistics.data.gov.uk/id/local-authority-district/22UN,Corporate Services,8905 - Parish Precepts,6999 - Parish Precepts,01/10/2013,7104757-1,8358,2100599 - Great Oakley Parish Council,Parish Council Precepts - Second Instalment 2013/14
Tendring DC,http://statistics.data.gov.uk/id/local-authority-district/22UN,Corporate Services,6680 - Other Corporate Costs,4902 - Grants to Organisations - Parish Councils,01/10/2013,7104757-2,755,2100599 - Great Oakley Parish Council,Parish Council Precepts - Second Instalment 2013/14
Tendring DC,http://statistics.data.gov.uk/id/local-authority-district/22UN,Corporate Services,8905 - Parish Precepts,6999 - Parish Precepts,01/10/2013,7104747-3,7475,2100690 - Gt Bromley Parish Council,Parish Council Precepts - Second Instalment 2013/14
Tendring DC,http://statistics.data.gov.uk/id/local-authority-district/22UN,Corporate Services,6680 - Other Corporate Costs,4902 - Grants to Organisations - Parish Councils,01/10/2013,7104747-4,475,2100690 - Gt Bromley Parish Council,Parish Council Precepts - Second Instalment 2013/14
Tendring DC,http://statistics.data.gov.uk/id/local-authority-district/22UN,Corporate Services,1300 - Legal Services Service Unit,4355 - Books & Periodicals,01/10/2013,2111370-1,33.95,2111590 - Hammicks Legal Information Services,Property Law & Practice
Tendring DC,http://statistics.data.gov.uk/id/local-authority-district/22UN,Corporate Services,1180 - Benefit Fraud Investigation Service Unit,4459 - External Legal Advice,15/10/2013,2111723-1,545.4,2100672 - Harris Cuffaro & Nichols Solicitors,Solicitor Costs
Tendring DC,http://statistics.data.gov.uk/id/local-authority-district/22UN,Corporate Services,1180 - Benefit Fraud Investigation Service Unit,4459 - External Legal Advice,15/10/2013,2111723-2,2,2100672 - Harris Cuffaro & Nichols Solicitors,Solicitor Costs
Tendring DC,http://statistics.data.gov.uk/id/local-authority-district/22UN,Corporate Services,7025 - CDRP Support,4900 - Grants,22/10/2013,2111799-1,20,2100604 - Harwich Taxis,Taxi Borderline
Tendring DC,http://statistics.data.gov.uk/id/local-authority-district/22UN,Corporate Services,6980 - Essex Family Needs Project,5500 - Miscellaneous Expenses,22/10/2013,2111861-1,6,2100604 - Harwich Taxis,Essex Fam Taxi
Tendring DC,http://statistics.data.gov.uk/id/local-authority-district/22UN,Corporate Services,8905 - Parish Precepts,6999 - Parish Precepts,01/10/2013,7104753-2,76884,2100624 - Harwich Town Council,Parish Council Precepts - Second Instalment 2013/14
Tendring DC,http://statistics.data.gov.uk/id/local-authority-district/22UN,Corporate Services,6680 - Other Corporate Costs,4902 - Grants to Organisations - Parish Councils,01/10/2013,7104753-3,17177,2100624 - Harwich Town Council,Parish Council Precepts - Second Instalment 2013/14
Tendring DC,http://statistics.data.gov.uk/id/local-authority-district/22UN,Corporate Services,1930 - Asset Management Service Unit,1000 - Salaries,15/10/2013,1055468-1,4832.32,2112289 - Hays Specialist Recruitment Ltd,HAYS RECRUITMENT
Tendring DC,http://statistics.data.gov.uk/id/local-authority-district/22UN,Corporate Services,1300 - Legal Services Service Unit,4880 - Subscriptions Paid,15/10/2013,2111722-1,25,2113441 - HB Editorial Services Ltd,Plannig Webinar
Tendring DC,http://statistics.data.gov.uk/id/local-authority-district/22UN,Corporate Services,1090 - Chief Executive and Support Service Unit,4355 - Books & Periodicals,15/10/2013,2111735-1,140,2100655 - Hemming Group Ltd,MJ Subscription
Tendring DC,http://statistics.data.gov.uk/id/local-authority-district/22UN,Corporate Services,1520 - Head of Planning and Customer Services,4300 - Printing & Stationery,08/10/2013,1055246-1,456.91,2105003 - Hewlett Packard Ltd,SCANNER PC WEELEY
Tendring DC,http://statistics.data.gov.uk/id/local-authority-district/22UN,Corporate Services,1800 - Qualification and Other Training,1700 - Training - Courses,15/10/2013,1055442-1,475,2100740 - ICCM,CREM TRAINING
Tendring DC,http://statistics.data.gov.uk/id/local-authority-district/22UN,Corporate Services,1520 - Head of Planning and Customer Services,4400 - Maintenance Under Service Agreements,15/10/2013,2111773-1,250,2106643 - Idox Software Ltd,Idox M Cloud Adapter
Tendring DC,http://statistics.data.gov.uk/id/local-authority-district/22UN,Corporate Services,1760 - IT Direct Service Costs,4751 - Hardware & Service Maintenance,08/10/2013,1055193-1,32.16,2100782 - Insight Direct (uk) Limited,WIRELESS MOUSE
Tendring DC,http://statistics.data.gov.uk/id/local-authority-district/22UN,Corporate Services,4460 - Planning Policy and Conservation,5446 - Local Development Frame Workl/Local Plan,08/10/2013,1055244-1,320.62,2100782 - Insight Direct (uk) Limited,IPAD
Tendring DC,http://statistics.data.gov.uk/id/local-authority-district/22UN,Corporate Services,8905 - Parish Precepts,6999 - Parish Precepts,01/10/2013,7104754-1,32391,2100813 - Lawford Parish Council,Parish Council Precepts - Second Instalment 2013/14
Tendring DC,http://statistics.data.gov.uk/id/local-authority-district/22UN,Corporate Services,6680 - Other Corporate Costs,4902 - Grants to Organisations - Parish Councils,01/10/2013,7104754-2,4039,2100813 - Lawford Parish Council,Parish Council Precepts - Second Instalment 2013/14
Tendring DC,http://statistics.data.gov.uk/id/local-authority-district/22UN,Corporate Services,1320 - Print Unit Service Unit,4080 - Materials & Consumables,01/10/2013,7700599-1,677.1,2100864 - Leston Stationery Ltd,PAPER
Tendring DC,http://statistics.data.gov.uk/id/local-authority-district/22UN,Corporate Services,1320 - Print Unit Service Unit,4080 - Materials & Consumables,01/10/2013,7700600-1,164.45,2100864 - Leston Stationery Ltd,PAPER
Tendring DC,http://statistics.data.gov.uk/id/local-authority-district/22UN,Corporate Services,6680 - Other Corporate Costs,5500 - Miscellaneous Expenses,15/10/2013,2111683-1,1174.69,2113470 - LG Futures Ltd,Pooling Report
Tendring DC,http://statistics.data.gov.uk/id/local-authority-district/22UN,Corporate Services,1760 - IT Direct Service Costs,6320 - IT Services Agreements Payment,08/10/2013,1055362-1,51622.01,2108077 - Liberata Financial Services Ltd,LIBERATA MAIN CONTRACT PAYMENT OCT 13
Tendring DC,http://statistics.data.gov.uk/id/local-authority-district/22UN,Corporate Services,1240 - Housing Services Service Unit,1700 - Training - Courses,22/10/2013,2111805-1,180,2108077 - Liberata Financial Services Ltd,Liberata Adhoc
Tendring DC,http://statistics.data.gov.uk/id/local-authority-district/22UN,Corporate Services,1760 - IT Direct Service Costs,4715 - Data Communication Charge,22/10/2013,2111805-2,792.5,2108077 - Liberata Financial Services Ltd,Liberata Adhoc
Tendring DC,http://statistics.data.gov.uk/id/local-authority-district/22UN,Corporate Services,8905 - Parish Precepts,6999 - Parish Precepts,01/10/2013,7104749-3,27795,2100835 - Little Clacton Parish Council,Parish Council Precepts - Second Instalment 2013/14
Tendring DC,http://statistics.data.gov.uk/id/local-authority-district/22UN,Corporate Services,6680 - Other Corporate Costs,4902 - Grants to Organisations - Parish Councils,01/10/2013,7104749-4,5955,2100835 - Little Clacton Parish Council,Parish Council Precepts - Second Instalment 2013/14
Tendring DC,http://statistics.data.gov.uk/id/local-authority-district/22UN,Corporate Services,8905 - Parish Precepts,6999 - Parish Precepts,01/10/2013,7104758-1,4639,2100865 - Little Oakley Parish Council,Parish Council Precepts - Second Instalment 2013/14
Tendring DC,http://statistics.data.gov.uk/id/local-authority-district/22UN,Corporate Services,6680 - Other Corporate Costs,4902 - Grants to Organisations - Parish Councils,01/10/2013,7104758-2,611,2100865 - Little Oakley Parish Council,Parish Council Precepts - Second Instalment 2013/14
Tendring DC,http://statistics.data.gov.uk/id/local-authority-district/22UN,Corporate Services,1300 - Legal Services Service Unit,4495 - Local Land Charges Litigation,01/10/2013,7009529-1,1007.28,2107205 - Local Government Association,PROPERTY SEARCHES LITIGATION
Tendring DC,http://statistics.data.gov.uk/id/local-authority-district/22UN,Corporate Services,8905 - Parish Precepts,6999 - Parish Precepts,01/10/2013,7104744-0,475,2100886 - Lt Bentley Parish Council,Parish Council Precepts - Second Instalment 2013/14
Tendring DC,http://statistics.data.gov.uk/id/local-authority-district/22UN,Corporate Services,6680 - Other Corporate Costs,4902 - Grants to Organisations - Parish Councils,01/10/2013,7104744-1,25,2100886 - Lt Bentley Parish Council,Parish Council Precepts - Second Instalment 2013/14
Tendring DC,http://statistics.data.gov.uk/id/local-authority-district/22UN,Corporate Services,8905 - Parish Precepts,6999 - Parish Precepts,01/10/2013,7104748-0,1767,2100896 - Lt Bromley Parish Council,Parish Council Precepts - Second Instalment 2013/14
Tendring DC,http://statistics.data.gov.uk/id/local-authority-district/22UN,Corporate Services,6680 - Other Corporate Costs,4902 - Grants to Organisations - Parish Councils,01/10/2013,7104748-1,43,2100896 - Lt Bromley Parish Council,Parish Council Precepts - Second Instalment 2013/14
Tendring DC,http://statistics.data.gov.uk/id/local-authority-district/22UN,Corporate Services,8905 - Parish Precepts,6999 - Parish Precepts,01/10/2013,7104755-1,7260,2100888 - Manningtree Town Council,Parish Council Precepts - Second Instalment 2013/14
Tendring DC,http://statistics.data.gov.uk/id/local-authority-district/22UN,Corporate Services,6680 - Other Corporate Costs,4902 - Grants to Organisations - Parish Councils,01/10/2013,7104755-2,1096,2100888 - Manningtree Town Council,Parish Council Precepts - Second Instalment 2013/14
Tendring DC,http://statistics.data.gov.uk/id/local-authority-district/22UN,Corporate Services,8905 - Parish Precepts,6999 - Parish Precepts,01/10/2013,7104756-2,26813,2100943 - Mistley Parish Council,Parish Council Precepts - Second Instalment 2013/14
Tendring DC,http://statistics.data.gov.uk/id/local-authority-district/22UN,Corporate Services,6680 - Other Corporate Costs,4902 - Grants to Organisations - Parish Councils,01/10/2013,7104756-3,2687,2100943 - Mistley Parish Council,Parish Council Precepts - Second Instalment 2013/14
Tendring DC,http://statistics.data.gov.uk/id/local-authority-district/22UN,Corporate Services,6620 - Corporate Management - General,5190 - Bank Commission Charges,01/10/2013,7009530-1,27.5,REDACTED COMMERCIAL CONFIDENTIALITY,REDACTED COMMERCIAL CONFIDENTIALITY
Tendring DC,http://statistics.data.gov.uk/id/local-authority-district/22UN,Corporate Services,1320 - Print Unit Service Unit,4302 - External Print Unit Expenses,01/10/2013,7700594-1,135,2111479 - Neil Goss Litho Printing,PROGRAMMES
Tendring DC,http://statistics.data.gov.uk/id/local-authority-district/22UN,Corporate Services,1320 - Print Unit Service Unit,4302 - External Print Unit Expenses,01/10/2013,7700595-1,1159,2111479 - Neil Goss Litho Printing,346/347
Tendring DC,http://statistics.data.gov.uk/id/local-authority-district/22UN,Corporate Services,1320 - Print Unit Service Unit,4302 - External Print Unit Expenses,01/10/2013,7700596-1,393,2111479 - Neil Goss Litho Printing,348 LEAFLETS
Tendring DC,http://statistics.data.gov.uk/id/local-authority-district/22UN,Corporate Services,1930 - Asset Management Service Unit,4469 - Other Non - Legal Professional Services,08/10/2013,1055301-1,170.61,2100989 - Newsquest (London) Ltd,DISPOSAL OF LAND AW
Tendring DC,http://statistics.data.gov.uk/id/local-authority-district/22UN,Corporate Services,1930 - Asset Management Service Unit,4469 - Other Non - Legal Professional Services,08/10/2013,1055302-1,170.61,2100989 - Newsquest (London) Ltd,AW DISPOSAL OF LAND
Tendring DC,http://statistics.data.gov.uk/id/local-authority-district/22UN,Corporate Services,6460 - Career Track,4688 - Career Track Exam Fees,01/10/2013,7009564-1,38.2,REDACTED PERSONAL DATA,REDACTED PERSONAL DATA
Tendring DC,http://statistics.data.gov.uk/id/local-authority-district/22UN,Corporate Services,6460 - Career Track,4688 - Career Track Exam Fees,08/10/2013,7009589-1,80.9,2101071 - OCR,L2 NVQ NEWLOVE
Tendring DC,http://statistics.data.gov.uk/id/local-authority-district/22UN,Corporate Services,6460 - Career Track,4688 - Career Track Exam Fees,01/10/2013,7700582-1,20.1,2101071 - OCR,OCR LEVEL 3 NVQ J.B.
Tendring DC,http://statistics.data.gov.uk/id/local-authority-district/22UN,Corporate Services,1320 - Print Unit Service Unit,4302 - External Print Unit Expenses,22/10/2013,2111811-1,1110,2111844 - Optimumprint,Job 379
Tendring DC,http://statistics.data.gov.uk/id/local-authority-district/22UN,Corporate Services,1320 - Print Unit Service Unit,4302 - External Print Unit Expenses,22/10/2013,2111812-1,30,2111844 - Optimumprint,Job 365
Tendring DC,http://statistics.data.gov.uk/id/local-authority-district/22UN,Corporate Services,6460 - Career Track,4688 - Career Track Exam Fees,08/10/2013,1055242-1,14.5,REDACTED PERSONAL DATA,REDACTED PERSONAL DATA
Tendring DC,http://statistics.data.gov.uk/id/local-authority-district/22UN,Corporate Services,6460 - Career Track,4688 - Career Track Exam Fees,22/10/2013,1055592-1,43.5,REDACTED PERSONAL DATA,REDACTED PERSONAL DATA
Tendring DC,http://statistics.data.gov.uk/id/local-authority-district/22UN,Corporate Services,6460 - Career Track,4688 - Career Track Exam Fees,22/10/2013,1055593-1,14.5,2100425 - Pearson,EDI FS ENG-L ROBSON
Tendring DC,http://statistics.data.gov.uk/id/local-authority-district/22UN,Corporate Services,6460 - Career Track,4688 - Career Track Exam Fees,22/10/2013,1055594-1,14.5,REDACTED PERSONAL DATA,REDACTED PERSONAL DATA
Tendring DC,http://statistics.data.gov.uk/id/local-authority-district/22UN,Corporate Services,6460 - Career Track,4688 - Career Track Exam Fees,22/10/2013,1055595-1,14.5,REDACTED PERSONAL DATA,REDACTED PERSONAL DATA
Tendring DC,http://statistics.data.gov.uk/id/local-authority-district/22UN,Corporate Services,6460 - Career Track,4688 - Career Track Exam Fees,15/10/2013,2111745-1,29,REDACTED PERSONAL DATA,REDACTED PERSONAL DATA
Tendring DC,http://statistics.data.gov.uk/id/local-authority-district/22UN,Corporate Services,6460 - Career Track,4688 - Career Track Exam Fees,15/10/2013,2111746-1,43.5,REDACTED PERSONAL DATA,REDACTED PERSONAL DATA
Tendring DC,http://statistics.data.gov.uk/id/local-authority-district/22UN,Corporate Services,6460 - Career Track,4688 - Career Track Exam Fees,15/10/2013,2111747-1,14.5,REDACTED PERSONAL DATA,REDACTED PERSONAL DATA
Tendring DC,http://statistics.data.gov.uk/id/local-authority-district/22UN,Corporate Services,6460 - Career Track,4688 - Career Track Exam Fees,01/10/2013,7700581-1,43.5,2100425 - Pearson,FSICT1LBLST/C
Tendring DC,http://statistics.data.gov.uk/id/local-authority-district/22UN,Corporate Services,1100 - Corporate Director (Corporate Services) and Admin Service Unit,4753 - Computer - Application Software,08/10/2013,1055245-1,250.8,2101038 - Phoenix Software Limited,ACROBAT PROF 11
Tendring DC,http://statistics.data.gov.uk/id/local-authority-district/22UN,Corporate Services,6980 - Essex Family Needs Project,5500 - Miscellaneous Expenses,22/10/2013,2111860-1,67.5,2101078 - Pier Avenue Baptist Church,Pier Ave Hall Essex Fam
Tendring DC,http://statistics.data.gov.uk/id/local-authority-district/22UN,Corporate Services,1661 - Other Apportionable Overheads - Corporate Support,4700 - Postage,22/10/2013,1055519-1,5050,2104077 - Pitney Bowes Ltd,RE-CREDIT FRANKING MACHINE-CLACTON-PBP A/C10113561
Tendring DC,http://statistics.data.gov.uk/id/local-authority-district/22UN,Corporate Services,1661 - Other Apportionable Overheads - Corporate Support,4700 - Postage,22/10/2013,1055588-1,1019.68,2104077 - Pitney Bowes Ltd,FRANKING CONSUMABLES
Tendring DC,http://statistics.data.gov.uk/id/local-authority-district/22UN,Corporate Services,1200 - Payroll & Payments,4753 - Computer - Application Software,08/10/2013,1055292-1,378,2111638 - Pressure Seal Solutions Ltd,MAINT CONT DEC13-14
Tendring DC,http://statistics.data.gov.uk/id/local-authority-district/22UN,Corporate Services,7240 - Electoral Registration Expenses,4300 - Printing & Stationery,22/10/2013,1055589-1,6201,2103246 - Print.uk.com,CANVASS FULFILMENT
Tendring DC,http://statistics.data.gov.uk/id/local-authority-district/22UN,Corporate Services,7220 - Election Expenses,4486 - Election Expenses,22/10/2013,2111832-1,1047.88,2103246 - Print.uk.com,St James Ward By-Election
Tendring DC,http://statistics.data.gov.uk/id/local-authority-district/22UN,Corporate Services,7220 - Election Expenses,4486 - Election Expenses,22/10/2013,2111833-1,819.12,2103246 - Print.uk.com,St James By-Election
Tendring DC,http://statistics.data.gov.uk/id/local-authority-district/22UN,Corporate Services,"1580 - Benefits, Revenues and Customer Contact SU",4718 - Fixed Communication Lines,15/10/2013,2111743-1,13.74,2106860 - ProcessFlows UK Ltd,Process Flows Aug 13
Tendring DC,http://statistics.data.gov.uk/id/local-authority-district/22UN,Corporate Services,"1580 - Benefits, Revenues and Customer Contact SU",4718 - Fixed Communication Lines,15/10/2013,2111744-1,16.92,2106860 - ProcessFlows UK Ltd,Process Flows Sep 13
Tendring DC,http://statistics.data.gov.uk/id/local-authority-district/22UN,Corporate Services,9930 - Loans Fund Balance Sheet,B551 - Loans Maturing Within One Year - HRA,28/10/2013,2112046-1,182983.33,REDACTED PERSONAL DATA,REDACTED PERSONAL DATA
Tendring DC,http://statistics.data.gov.uk/id/local-authority-district/22UN,Corporate Services,5760 - HRA - Capital & Interest Charges,9831 - HRA Interest (formerly Item 8),28/10/2013,2112046-2,158015.26,REDACTED PERSONAL DATA,REDACTED PERSONAL DATA
Tendring DC,http://statistics.data.gov.uk/id/local-authority-district/22UN,Corporate Services,1100 - Corporate Director (Corporate Services) and Admin Service Unit,4300 - Printing & Stationery,01/10/2013,7700601-1,180,2113149 - Quality Office Supplies Ltd,SINV00521608
Tendring DC,http://statistics.data.gov.uk/id/local-authority-district/22UN,Corporate Services,9900 - General Fund Balance Sheet,B886 - Rail Warrants Allocation Holding Account,11/10/2013,1055633-1,1612.5,2101174 - R S P Ltd,RAIL WARRANTS
Tendring DC,http://statistics.data.gov.uk/id/local-authority-district/22UN,Corporate Services,8905 - Parish Precepts,6999 - Parish Precepts,01/10/2013,7104759-1,15717,2101125 - Ramsey & Parkeston Parish Council,Parish Council Precepts - Second Instalment 2013/14
Tendring DC,http://statistics.data.gov.uk/id/local-authority-district/22UN,Corporate Services,6680 - Other Corporate Costs,4902 - Grants to Organisations - Parish Councils,01/10/2013,7104759-2,2921,2101125 - Ramsey & Parkeston Parish Council,Parish Council Precepts - Second Instalment 2013/14
Tendring DC,http://statistics.data.gov.uk/id/local-authority-district/22UN,Corporate Services,6580 - Member Support Cost,4350 - Photocopier Hire,01/10/2013,7700587-1,240.55,2101090 - Ricoh UK Ltd,PHOTOCOPIER USAGE
Tendring DC,http://statistics.data.gov.uk/id/local-authority-district/22UN,Corporate Services,7040 - Civic Ceremonial Expenses,4080 - Materials & Consumables,22/10/2013,2111899-1,17.5,REDACTED PERSONAL DATA,REDACTED PERSONAL DATA
Tendring DC,http://statistics.data.gov.uk/id/local-authority-district/22UN,Corporate Services,7240 - Electoral Registration Expenses,4700 - Postage,08/10/2013,1055304-1,110.16,2101139 - Royal Mail,ELECTORAL POSTAGE
Tendring DC,http://statistics.data.gov.uk/id/local-authority-district/22UN,Corporate Services,6640 - Treasury Management,4506 - Consultants Fees - Treasury Management,15/10/2013,2111682-1,6000,2101223 - Sector Treasury Services Ltd,Sector Treasury
Tendring DC,http://statistics.data.gov.uk/id/local-authority-district/22UN,Corporate Services,1760 - IT Direct Service Costs,4753 - Computer - Application Software,01/10/2013,7009528-1,9828.68,2103677 - SecureData Europe Ltd,PAYMENT TERMS
Tendring DC,http://statistics.data.gov.uk/id/local-authority-district/22UN,Corporate Services,1815 - Personnel and Human Resources Issues,1707 - Training - Workforce Development Courses,22/10/2013,2111801-1,495,2101898 - Southend-On-Sea Borough Council,Coaching for Excellence
Tendring DC,http://statistics.data.gov.uk/id/local-authority-district/22UN,Corporate Services,8905 - Parish Precepts,6999 - Parish Precepts,01/10/2013,7104760-2,48944,2101269 - St Osyth Parish Council,Parish Council Precepts - Second Instalment 2013/14
Tendring DC,http://statistics.data.gov.uk/id/local-authority-district/22UN,Corporate Services,6680 - Other Corporate Costs,4902 - Grants to Organisations - Parish Councils,01/10/2013,7104760-3,10656,2101269 - St Osyth Parish Council,Parish Council Precepts - Second Instalment 2013/14
Tendring DC,http://statistics.data.gov.uk/id/local-authority-district/22UN,Corporate Services,7025 - CDRP Support,4900 - Grants,22/10/2013,2111800-1,1638.81,2113402 - Telewave Ltd,Supply & Installation of AV Equipment Telewave
Tendring DC,http://statistics.data.gov.uk/id/local-authority-district/22UN,Corporate Services,7025 - CDRP Support,4900 - Grants,15/10/2013,2111680-1,140.8,2102088 - Tendring Community Transport,Transport to Danbury - Borderline
Tendring DC,http://statistics.data.gov.uk/id/local-authority-district/22UN,Corporate Services,8905 - Parish Precepts,6999 - Parish Precepts,01/10/2013,7104761-1,3331,2101338 - Tendring Parish Council,Parish Council Precepts - Second Instalment 2013/14
Tendring DC,http://statistics.data.gov.uk/id/local-authority-district/22UN,Corporate Services,6680 - Other Corporate Costs,4902 - Grants to Organisations - Parish Councils,01/10/2013,7104761-2,169,2101338 - Tendring Parish Council,Parish Council Precepts - Second Instalment 2013/14
Tendring DC,http://statistics.data.gov.uk/id/local-authority-district/22UN,Corporate Services,1661 - Other Apportionable Overheads - Corporate Support,5199 - Photocopying Licence Fee,22/10/2013,1055679-1,1357.3,2103547 - The Copyright Licensing Agency Ltd,COPY RIGHT LICENCE
Tendring DC,http://statistics.data.gov.uk/id/local-authority-district/22UN,Corporate Services,H880 - New Build Initiatives and Acquisitions,C200 - Main Contractor,14/10/2013,1055631-1,21332.65,2108189 - The Royal Bank of Scotland,TDC PURCHASE OF LEASEHOLD 202 ST OSYTH RD
Tendring DC,http://statistics.data.gov.uk/id/local-authority-district/22UN,Corporate Services,8905 - Parish Precepts,6999 - Parish Precepts,01/10/2013,7104762-2,12742,2101494 - Thorpe le Soken Parish Council,Parish Council Precepts - Second Instalment 2013/14
Tendring DC,http://statistics.data.gov.uk/id/local-authority-district/22UN,Corporate Services,6680 - Other Corporate Costs,4902 - Grants to Organisations - Parish Councils,01/10/2013,7104762-3,1372,2101494 - Thorpe le Soken Parish Council,Parish Council Precepts - Second Instalment 2013/14
Tendring DC,http://statistics.data.gov.uk/id/local-authority-district/22UN,Corporate Services,8905 - Parish Precepts,6999 - Parish Precepts,01/10/2013,7104763-1,7654,2101435 - Thorrington Parish Coucil,Parish Council Precepts - Second Instalment 2013/14
Tendring DC,http://statistics.data.gov.uk/id/local-authority-district/22UN,Corporate Services,6680 - Other Corporate Costs,4902 - Grants to Organisations - Parish Councils,01/10/2013,7104763-2,596,2101435 - Thorrington Parish Coucil,Parish Council Precepts - Second Instalment 2013/14
Tendring DC,http://statistics.data.gov.uk/id/local-authority-district/22UN,Corporate Services,1330 - Human Resources Service Unit,5500 - Miscellaneous Expenses,22/10/2013,2111804-1,250,2112451 - VineHR Ltd,Composica Training
Tendring DC,http://statistics.data.gov.uk/id/local-authority-district/22UN,Corporate Services,7025 - CDRP Support,4900 - Grants,08/10/2013,7009590-1,1840,2112953 - Vision-Redbridge Culture & Leisure,RESIDENTIAL TRIP WALES BORDERLINE
Tendring DC,http://statistics.data.gov.uk/id/local-authority-district/22UN,Corporate Services,8905 - Parish Precepts,6999 - Parish Precepts,01/10/2013,7104764-2,12291,2101504 - Weeley Parish Council,Parish Council Precepts - Second Instalment 2013/14
Tendring DC,http://statistics.data.gov.uk/id/local-authority-district/22UN,Corporate Services,6680 - Other Corporate Costs,4902 - Grants to Organisations - Parish Councils,01/10/2013,7104764-3,2022,2101504 - Weeley Parish Council,Parish Council Precepts - Second Instalment 2013/14
Tendring DC,http://statistics.data.gov.uk/id/local-authority-district/22UN,Corporate Services,8905 - Parish Precepts,6999 - Parish Precepts,01/10/2013,7104765-1,8472,2101595 - Wix Parish Council,Parish Council Precepts - Second Instalment 2013/14
Tendring DC,http://statistics.data.gov.uk/id/local-authority-district/22UN,Corporate Services,6680 - Other Corporate Costs,4902 - Grants to Organisations - Parish Councils,01/10/2013,7104765-2,875,2101595 - Wix Parish Council,Parish Council Precepts - Second Instalment 2013/14
Tendring DC,http://statistics.data.gov.uk/id/local-authority-district/22UN,Corporate Services,8905 - Parish Precepts,6999 - Parish Precepts,01/10/2013,7104766-2,2661,2101576 - Wrabness Parish Council,Parish Council Precepts - Second Instalment 2013/14
Tendring DC,http://statistics.data.gov.uk/id/local-authority-district/22UN,Corporate Services,6680 - Other Corporate Costs,4902 - Grants to Organisations - Parish Councils,01/10/2013,7104766-3,112,2101576 - Wrabness Parish Council,Parish Council Precepts - Second Instalment 2013/14
Tendring DC,http://statistics.data.gov.uk/id/local-authority-district/22UN,Corporate Services,1320 - Print Unit Service Unit,4350 - Photocopier Hire,08/10/2013,1055294-1,250,2101517 - Xerox (UK) Ltd,252 BASIC CHARGE
Tendring DC,http://statistics.data.gov.uk/id/local-authority-district/22UN,Corporate Services,1320 - Print Unit Service Unit,4350 - Photocopier Hire,22/10/2013,2111808-1,1964.1,2101527 - Xerox Finance Ltd,252 Rental
Tendring DC,http://statistics.data.gov.uk/id/local-authority-district/22UN,Corporate Services,1100 - Corporate Director (Corporate Services) and Admin Service Unit,4300 - Printing & Stationery,08/10/2013,1055194-1,56.78,2107546 - XMA Limited,XMA
Tendring DC,http://statistics.data.gov.uk/id/local-authority-district/22UN,Corporate Services,1100 - Corporate Director (Corporate Services) and Admin Service Unit,4300 - Printing & Stationery,15/10/2013,2111739-1,42.27,2107546 - XMA Limited,Ink Cartridges
Tendring DC,http://statistics.data.gov.uk/id/local-authority-district/22UN,Life Opportunities,6160 - Princes Theatre,4597 - Hired Services - Payments to Contractors,22/10/2013,2111938-1,50,2100091 - A Warrender,Piano Tuning Oct13
Tendring DC,http://statistics.data.gov.uk/id/local-authority-district/22UN,Life Opportunities,H705 - Window/Door Replacement,C200 - Main Contractor,22/10/2013,2111787-1,88.5,2113491 - Abacus Security Systems,Supply & Fit Reed Switch @ Coppins Community Hall
Tendring DC,http://statistics.data.gov.uk/id/local-authority-district/22UN,Life Opportunities,5480 - HRA - Repair & Maintenance,2017 - Mechanical Equipment /Extract Fans,22/10/2013,1055566-1,297.85,2100072 - Acorn Pressurisation Services Ltd,SPENDELLS HOUSE
Tendring DC,http://statistics.data.gov.uk/id/local-authority-district/22UN,Life Opportunities,1880 - Office Accommodation Expenses,2100 - Building Repairs,01/10/2013,1055144-1,123,2101609 - Adcock Refrigeration & Air Conditioning Ltd,Adcock - Room 104 Unit
Tendring DC,http://statistics.data.gov.uk/id/local-authority-district/22UN,Life Opportunities,1880 - Office Accommodation Expenses,2100 - Building Repairs,01/10/2013,1055145-1,359.36,2101609 - Adcock Refrigeration & Air Conditioning Ltd,Adcock - CTAX PRint Room
Tendring DC,http://statistics.data.gov.uk/id/local-authority-district/22UN,Life Opportunities,1880 - Office Accommodation Expenses,2100 - Building Repairs,01/10/2013,1055146-1,230.43,2101609 - Adcock Refrigeration & Air Conditioning Ltd,Adcock - Room 104 Fascia
Tendring DC,http://statistics.data.gov.uk/id/local-authority-district/22UN,Life Opportunities,1880 - Office Accommodation Expenses,2100 - Building Repairs,22/10/2013,1055708-1,300,2101609 - Adcock Refrigeration & Air Conditioning Ltd,WEELEY 27/9/13
Tendring DC,http://statistics.data.gov.uk/id/local-authority-district/22UN,Life Opportunities,1880 - Office Accommodation Expenses,2100 - Building Repairs,22/10/2013,2111871-1,300,2101609 - Adcock Refrigeration & Air Conditioning Ltd,Pier Ave 25/9/13
Tendring DC,http://statistics.data.gov.uk/id/local-authority-district/22UN,Life Opportunities,8510 - Dovercourt Swimming Pool & All Weather Facilities,2100 - Building Repairs,15/10/2013,2111667-1,86,REDACTED PERSONAL DATA,REDACTED PERSONAL DATA
Tendring DC,http://statistics.data.gov.uk/id/local-authority-district/22UN,Life Opportunities,1880 - Office Accommodation Expenses,2500 - Water Services - Metered,15/10/2013,1055444-1,1788.53,2112518 - Affinity Water Ltd (East Region),TOWN HALL
Tendring DC,http://statistics.data.gov.uk/id/local-authority-district/22UN,Life Opportunities,1880 - Office Accommodation Expenses,2520 - Sewerage & Environmental Charges,15/10/2013,1055444-2,1678.22,2112518 - Affinity Water Ltd (East Region),TOWN HALL
Tendring DC,http://statistics.data.gov.uk/id/local-authority-district/22UN,Life Opportunities,1880 - Office Accommodation Expenses,2500 - Water Services - Metered,15/10/2013,1055445-1,26.68,2112518 - Affinity Water Ltd (East Region),PRINT UNIT
Tendring DC,http://statistics.data.gov.uk/id/local-authority-district/22UN,Life Opportunities,1880 - Office Accommodation Expenses,2520 - Sewerage & Environmental Charges,15/10/2013,1055445-2,82.67,2112518 - Affinity Water Ltd (East Region),PRINT UNIT
Tendring DC,http://statistics.data.gov.uk/id/local-authority-district/22UN,Life Opportunities,1880 - Office Accommodation Expenses,2500 - Water Services - Metered,15/10/2013,1055446-1,327.81,2112518 - Affinity Water Ltd (East Region),C/TAX
Tendring DC,http://statistics.data.gov.uk/id/local-authority-district/22UN,Life Opportunities,1880 - Office Accommodation Expenses,2520 - Sewerage & Environmental Charges,15/10/2013,1055446-2,333.84,2112518 - Affinity Water Ltd (East Region),C/TAX
Tendring DC,http://statistics.data.gov.uk/id/local-authority-district/22UN,Life Opportunities,1880 - Office Accommodation Expenses,2500 - Water Services - Metered,15/10/2013,1055447-1,209.67,2112518 - Affinity Water Ltd (East Region),BARNES HOUSE
Tendring DC,http://statistics.data.gov.uk/id/local-authority-district/22UN,Life Opportunities,1880 - Office Accommodation Expenses,2520 - Sewerage & Environmental Charges,15/10/2013,1055447-2,236.16,2112518 - Affinity Water Ltd (East Region),BARNES HOUSE
Tendring DC,http://statistics.data.gov.uk/id/local-authority-district/22UN,Life Opportunities,8520 - Frinton & Walton Swimming Pool,2510 - Water Services - Unmetered,22/10/2013,1055572-1,1181.13,2112518 - Affinity Water Ltd (East Region),FWSP-WATER BILL
Tendring DC,http://statistics.data.gov.uk/id/local-authority-district/22UN,Life Opportunities,8520 - Frinton & Walton Swimming Pool,2510 - Water Services - Unmetered,22/10/2013,1055573-1,621.53,2112518 - Affinity Water Ltd (East Region),FWSP-WATER BILL
Tendring DC,http://statistics.data.gov.uk/id/local-authority-district/22UN,Life Opportunities,8520 - Frinton & Walton Swimming Pool,2510 - Water Services - Unmetered,22/10/2013,1055574-1,881.34,2112518 - Affinity Water Ltd (East Region),FWSP-WATER BILL
Tendring DC,http://statistics.data.gov.uk/id/local-authority-district/22UN,Life Opportunities,8540 - Leisure Centre Clacton,2510 - Water Services - Unmetered,22/10/2013,1055579-1,1251.82,2112518 - Affinity Water Ltd (East Region),SEPTEMBER
Tendring DC,http://statistics.data.gov.uk/id/local-authority-district/22UN,Life Opportunities,8510 - Dovercourt Swimming Pool & All Weather Facilities,2510 - Water Services - Unmetered,15/10/2013,2111668-1,767.05,REDACTED PERSONAL DATA,REDACTED PERSONAL DATA
Tendring DC,http://statistics.data.gov.uk/id/local-authority-district/22UN,Life Opportunities,5360 - HRA - Sheltered Units,2500 - Water Services - Metered,01/10/2013,7700613-1,19.43,2112518 - Affinity Water Ltd (East Region),
Tendring DC,http://statistics.data.gov.uk/id/local-authority-district/22UN,Life Opportunities,4965 - Local Housing Allowance,1700 - Training - Courses,01/10/2013,2111496-1,499,2106864 - Airey Consultancy Services Ltd,Bens Leg Module Subscription
Tendring DC,http://statistics.data.gov.uk/id/local-authority-district/22UN,Life Opportunities,5480 - HRA - Repair & Maintenance,2017 - Mechanical Equipment /Extract Fans,08/10/2013,1055201-1,295.5,REDACTED PERSONAL DATA,REDACTED PERSONAL DATA
Tendring DC,http://statistics.data.gov.uk/id/local-authority-district/22UN,Life Opportunities,5480 - HRA - Repair & Maintenance,2017 - Mechanical Equipment /Extract Fans,08/10/2013,1055206-1,295.5,REDACTED PERSONAL DATA,REDACTED PERSONAL DATA
Tendring DC,http://statistics.data.gov.uk/id/local-authority-district/22UN,Life Opportunities,5480 - HRA - Repair & Maintenance,2017 - Mechanical Equipment /Extract Fans,22/10/2013,1055601-1,941.2,REDACTED PERSONAL DATA,REDACTED PERSONAL DATA
Tendring DC,http://statistics.data.gov.uk/id/local-authority-district/22UN,Life Opportunities,5480 - HRA - Repair & Maintenance,2017 - Mechanical Equipment /Extract Fans,22/10/2013,1055608-1,444.5,REDACTED PERSONAL DATA,REDACTED PERSONAL DATA
Tendring DC,http://statistics.data.gov.uk/id/local-authority-district/22UN,Life Opportunities,5480 - HRA - Repair & Maintenance,2017 - Mechanical Equipment /Extract Fans,22/10/2013,2111951-1,766,2110902 - Airtech Environmental Systems,3 Porter Way
Tendring DC,http://statistics.data.gov.uk/id/local-authority-district/22UN,Life Opportunities,6740 - Careline,9050 - Careline Income - General,22/10/2013,1055535-1,10.8,REDACTED PERSONAL DATA,REDACTED PERSONAL DATA
Tendring DC,http://statistics.data.gov.uk/id/local-authority-district/22UN,Life Opportunities,C021 - Mercury Abatement Equipment and Cremators replacement,C200 - Main Contractor,15/10/2013,1055472-1,2250,2113215 - Allman Woodcock Limited,WEELY CREM UPGRADE
Tendring DC,http://statistics.data.gov.uk/id/local-authority-district/22UN,Life Opportunities,6740 - Careline,3060 - Running Costs - Diesel,22/10/2013,1055669-1,413.38,2101825 - Allstar Business Solutions Ltd,FUEL CARDS-SEPTEMBER 13
Tendring DC,http://statistics.data.gov.uk/id/local-authority-district/22UN,Life Opportunities,"1580 - Benefits, Revenues and Customer Contact SU",4469 - Other Non - Legal Professional Services,15/10/2013,2111555-1,23.6,2101674 - Anglia Courier Express,10/09/2013
Tendring DC,http://statistics.data.gov.uk/id/local-authority-district/22UN,Life Opportunities,"1580 - Benefits, Revenues and Customer Contact SU",4469 - Other Non - Legal Professional Services,15/10/2013,2111556-1,23.6,2101674 - Anglia Courier Express,06/08/2013
Tendring DC,http://statistics.data.gov.uk/id/local-authority-district/22UN,Life Opportunities,"1580 - Benefits, Revenues and Customer Contact SU",4469 - Other Non - Legal Professional Services,22/10/2013,2111790-1,23.6,2101674 - Anglia Courier Express,Oct-13
Tendring DC,http://statistics.data.gov.uk/id/local-authority-district/22UN,Life Opportunities,8540 - Leisure Centre Clacton,2100 - Building Repairs,22/10/2013,1055576-1,61.25,2100096 - Anglia Welding (Fabrications) Co,BOXERCISE
Tendring DC,http://statistics.data.gov.uk/id/local-authority-district/22UN,Life Opportunities,6160 - Princes Theatre,4040 - Equipment & Tools,15/10/2013,2111665-1,39.54,REDACTED PERSONAL DATA,REDACTED PERSONAL DATA
Tendring DC,http://statistics.data.gov.uk/id/local-authority-district/22UN,Life Opportunities,6160 - Princes Theatre,5160 - Advertising,15/10/2013,1055485-1,200,2102337 - Archant Regional Ltd,ADVERT IN COASTAL LIFE
Tendring DC,http://statistics.data.gov.uk/id/local-authority-district/22UN,Life Opportunities,1880 - Office Accommodation Expenses,2100 - Building Repairs,15/10/2013,1055486-1,4.34,2100097 - Arco Ltd,ARCO
Tendring DC,http://statistics.data.gov.uk/id/local-authority-district/22UN,Life Opportunities,1880 - Office Accommodation Expenses,2100 - Building Repairs,15/10/2013,1055487-1,35.75,2100097 - Arco Ltd,ARCO
Tendring DC,http://statistics.data.gov.uk/id/local-authority-district/22UN,Life Opportunities,6160 - Princes Theatre,4000 - Furniture,08/10/2013,1055227-1,19.24,2100048 - Argos Business Solutions,COFFEE TABLE
Tendring DC,http://statistics.data.gov.uk/id/local-authority-district/22UN,Life Opportunities,5240 - HRA - Managing Tenancies,5248 - Estate Management Expenses,22/10/2013,1055667-1,71.24,2100048 - Argos Business Solutions,CAMERA
Tendring DC,http://statistics.data.gov.uk/id/local-authority-district/22UN,Life Opportunities,5240 - HRA - Managing Tenancies,5242 - Tenant Relations,01/10/2013,7700625-1,1945,2113366 - ARP Research,CRIME & ASB SURVEY
Tendring DC,http://statistics.data.gov.uk/id/local-authority-district/22UN,Life Opportunities,H860 - Disabled Adaptations,C200 - Main Contractor,08/10/2013,1055273-1,1100,REDACTED PERSONAL DATA,REDACTED PERSONAL DATA
Tendring DC,http://statistics.data.gov.uk/id/local-authority-district/22UN,Life Opportunities,H860 - Disabled Adaptations,C200 - Main Contractor,08/10/2013,1055273-2,4275,REDACTED PERSONAL DATA,REDACTED PERSONAL DATA
Tendring DC,http://statistics.data.gov.uk/id/local-authority-district/22UN,Life Opportunities,8520 - Frinton & Walton Swimming Pool,5300 - Resaleable Items,22/10/2013,2111796-1,272.85,2100088 - ASA Merchandising Ltd,Frinton & Walton Pool
Tendring DC,http://statistics.data.gov.uk/id/local-authority-district/22UN,Life Opportunities,8520 - Frinton & Walton Swimming Pool,4400 - Maintenance Under Service Agreements,15/10/2013,2111558-1,81.07,2112129 - Autobar Vending Services Ltd,FWSP Vending Machine
Tendring DC,http://statistics.data.gov.uk/id/local-authority-district/22UN,Life Opportunities,6160 - Princes Theatre,5160 - Advertising,01/10/2013,1055178-1,112,2100069 - Autoprint,banner & stickers
Tendring DC,http://statistics.data.gov.uk/id/local-authority-district/22UN,Life Opportunities,6160 - Princes Theatre,4622 - Hired Services - Artistes and Production Companies,01/10/2013,1055179-1,5000,2108465 - Avalon Promotions Ltd,russell kane
Tendring DC,http://statistics.data.gov.uk/id/local-authority-district/22UN,Life Opportunities,7520 - Tourism Publicity Marketing Promotion,8460 - Sponsored Events income,15/10/2013,1055492-1,200,2113359 - B & H Stocks,REFUND OF DEPOSIT
Tendring DC,http://statistics.data.gov.uk/id/local-authority-district/22UN,Life Opportunities,1880 - Office Accommodation Expenses,4080 - Materials & Consumables,22/10/2013,2111943-1,11.65,2100099 - B & Q Trade Account,BQ
Tendring DC,http://statistics.data.gov.uk/id/local-authority-district/22UN,Life Opportunities,8540 - Leisure Centre Clacton,4880 - Subscriptions Paid,08/10/2013,1055377-1,60,2111966 - BACPR Education Consortium,MP REVALDATE
Tendring DC,http://statistics.data.gov.uk/id/local-authority-district/22UN,Life Opportunities,5860 - Manningtree Sports Centre,4200 - Clothing & Uniforms,01/10/2013,2111477-1,17.7,2106876 - Badgemaster Ltd,Name Badges
Tendring DC,http://statistics.data.gov.uk/id/local-authority-district/22UN,Life Opportunities,5820 - Harwich Sports Centre,4200 - Clothing & Uniforms,15/10/2013,2111561-1,15.6,2106876 - Badgemaster Ltd,Badges Staff
Tendring DC,http://statistics.data.gov.uk/id/local-authority-district/22UN,Life Opportunities,5820 - Harwich Sports Centre,4200 - Clothing & Uniforms,01/10/2013,2111441-1,294.5,REDACTED PERSONAL DATA,REDACTED PERSONAL DATA
Tendring DC,http://statistics.data.gov.uk/id/local-authority-district/22UN,Life Opportunities,8510 - Dovercourt Swimming Pool & All Weather Facilities,4300 - Printing & Stationery,08/10/2013,1055217-1,-65.82,2100111 - Banner Business Supplies Ltd,DOVERCOURT POOL-PAPER
Tendring DC,http://statistics.data.gov.uk/id/local-authority-district/22UN,Life Opportunities,8510 - Dovercourt Swimming Pool & All Weather Facilities,4300 - Printing & Stationery,08/10/2013,1055335-1,65.82,2100111 - Banner Business Supplies Ltd,DOVERCOURT POOL-PAPER
Tendring DC,http://statistics.data.gov.uk/id/local-authority-district/22UN,Life Opportunities,5240 - HRA - Managing Tenancies,4312 - Tenancy Stationery,08/10/2013,1055365-1,85.43,2100111 - Banner Business Supplies Ltd,BANNER ORDER 23/9/13
Tendring DC,http://statistics.data.gov.uk/id/local-authority-district/22UN,Life Opportunities,6160 - Princes Theatre,4300 - Printing & Stationery,08/10/2013,1055365-2,7.95,2100111 - Banner Business Supplies Ltd,BANNER ORDER 23/9/13
Tendring DC,http://statistics.data.gov.uk/id/local-authority-district/22UN,Life Opportunities,1565 - Careline / CCTV Service Unit,4300 - Printing & Stationery,22/10/2013,1055672-1,21.7,2100111 - Banner Business Supplies Ltd,STATIONERY OCTOBER 2013
Tendring DC,http://statistics.data.gov.uk/id/local-authority-district/22UN,Life Opportunities,7000 - CCTV,4400 - Maintenance Under Service Agreements,22/10/2013,1055672-2,41.64,2100111 - Banner Business Supplies Ltd,STATIONERY OCTOBER 2013
Tendring DC,http://statistics.data.gov.uk/id/local-authority-district/22UN,Life Opportunities,1880 - Office Accommodation Expenses,4080 - Materials & Consumables,22/10/2013,1055673-1,44,2100111 - Banner Business Supplies Ltd,BATTERIES
Tendring DC,http://statistics.data.gov.uk/id/local-authority-district/22UN,Life Opportunities,"1580 - Benefits, Revenues and Customer Contact SU",4300 - Printing & Stationery,22/10/2013,1055674-1,113.36,2100111 - Banner Business Supplies Ltd,BANNER ORDER
Tendring DC,http://statistics.data.gov.uk/id/local-authority-district/22UN,Life Opportunities,5240 - HRA - Managing Tenancies,4312 - Tenancy Stationery,22/10/2013,1055675-1,69.2,2100111 - Banner Business Supplies Ltd,BANNER ORDER 30/10
Tendring DC,http://statistics.data.gov.uk/id/local-authority-district/22UN,Life Opportunities,6160 - Princes Theatre,4300 - Printing & Stationery,22/10/2013,1055675-2,0.47,2100111 - Banner Business Supplies Ltd,BANNER ORDER 30/10
Tendring DC,http://statistics.data.gov.uk/id/local-authority-district/22UN,Life Opportunities,6160 - Princes Theatre,4105 - Bar/Catering Expenses,22/10/2013,1055675-3,7.22,2100111 - Banner Business Supplies Ltd,BANNER ORDER 30/10
Tendring DC,http://statistics.data.gov.uk/id/local-authority-district/22UN,Life Opportunities,5240 - HRA - Managing Tenancies,4312 - Tenancy Stationery,22/10/2013,1055676-1,25.56,2100111 - Banner Business Supplies Ltd,BANNER ORDER 16/9/13
Tendring DC,http://statistics.data.gov.uk/id/local-authority-district/22UN,Life Opportunities,5240 - HRA - Managing Tenancies,4312 - Tenancy Stationery,22/10/2013,1055677-1,46.57,2100111 - Banner Business Supplies Ltd,BANNER ORDER 7/10/13
Tendring DC,http://statistics.data.gov.uk/id/local-authority-district/22UN,Life Opportunities,5820 - Harwich Sports Centre,4300 - Printing & Stationery,01/10/2013,2111381-1,22.68,2100111 - Banner Business Supplies Ltd,Photocopier Paper
Tendring DC,http://statistics.data.gov.uk/id/local-authority-district/22UN,Life Opportunities,6160 - Princes Theatre,4300 - Printing & Stationery,01/10/2013,2111382-1,3.12,2100111 - Banner Business Supplies Ltd,Banner Order 16/9/13
Tendring DC,http://statistics.data.gov.uk/id/local-authority-district/22UN,Life Opportunities,6160 - Princes Theatre,4105 - Bar/Catering Expenses,01/10/2013,2111382-2,7.15,2100111 - Banner Business Supplies Ltd,Banner Order 16/9/13
Tendring DC,http://statistics.data.gov.uk/id/local-authority-district/22UN,Life Opportunities,5240 - HRA - Managing Tenancies,4312 - Tenancy Stationery,01/10/2013,2111382-3,166.01,2100111 - Banner Business Supplies Ltd,Banner Order 16/9/13
Tendring DC,http://statistics.data.gov.uk/id/local-authority-district/22UN,Life Opportunities,5360 - HRA - Sheltered Units,4300 - Printing & Stationery,01/10/2013,2111382-4,55.77,2100111 - Banner Business Supplies Ltd,Banner Order 16/9/13
Tendring DC,http://statistics.data.gov.uk/id/local-authority-district/22UN,Life Opportunities,5360 - HRA - Sheltered Units,4040 - Equipment & Tools,01/10/2013,2111383-1,6.89,2100111 - Banner Business Supplies Ltd,Whiteboard for St Marys Court
Tendring DC,http://statistics.data.gov.uk/id/local-authority-district/22UN,Life Opportunities,5360 - HRA - Sheltered Units,4040 - Equipment & Tools,01/10/2013,2111384-1,137.41,2100111 - Banner Business Supplies Ltd,Whiteboard for St Marys
Tendring DC,http://statistics.data.gov.uk/id/local-authority-district/22UN,Life Opportunities,"1580 - Benefits, Revenues and Customer Contact SU",4300 - Printing & Stationery,01/10/2013,2111390-1,89.4,2100111 - Banner Business Supplies Ltd,Paper/Tape/Sticky Tac
Tendring DC,http://statistics.data.gov.uk/id/local-authority-district/22UN,Life Opportunities,1565 - Careline / CCTV Service Unit,4300 - Printing & Stationery,15/10/2013,2111765-1,55.42,2100111 - Banner Business Supplies Ltd,Banner Date Stamps
Tendring DC,http://statistics.data.gov.uk/id/local-authority-district/22UN,Life Opportunities,8510 - Dovercourt Swimming Pool & All Weather Facilities,5196 - Credit Card Charges,28/10/2013,2112040-1,19.35,REDACTED PERSONAL DATA,REDACTED PERSONAL DATA
Tendring DC,http://statistics.data.gov.uk/id/local-authority-district/22UN,Life Opportunities,8510 - Dovercourt Swimming Pool & All Weather Facilities,5196 - Credit Card Charges,28/10/2013,2112040-2,109.88,REDACTED PERSONAL DATA,REDACTED PERSONAL DATA
Tendring DC,http://statistics.data.gov.uk/id/local-authority-district/22UN,Life Opportunities,5800 - Brightlingsea Sports Centre,5300 - Resaleable Items,28/10/2013,2112041-1,-22.4,REDACTED PERSONAL DATA,REDACTED PERSONAL DATA
Tendring DC,http://statistics.data.gov.uk/id/local-authority-district/22UN,Life Opportunities,5800 - Brightlingsea Sports Centre,5300 - Resaleable Items,28/10/2013,2112041-2,-21.05,REDACTED PERSONAL DATA,REDACTED PERSONAL DATA
Tendring DC,http://statistics.data.gov.uk/id/local-authority-district/22UN,Life Opportunities,5800 - Brightlingsea Sports Centre,5300 - Resaleable Items,29/10/2013,2112047-1,22.4,2100141 - Barclaycard Merchant Services,Correction to 2112041
Tendring DC,http://statistics.data.gov.uk/id/local-authority-district/22UN,Life Opportunities,5800 - Brightlingsea Sports Centre,5300 - Resaleable Items,29/10/2013,2112047-2,21.05,2100141 - Barclaycard Merchant Services,Correction to 2112041
Tendring DC,http://statistics.data.gov.uk/id/local-authority-district/22UN,Life Opportunities,5800 - Brightlingsea Sports Centre,5300 - Resaleable Items,29/10/2013,2112048-1,22.4,2100141 - Barclaycard Merchant Services,Correction of 2111282
Tendring DC,http://statistics.data.gov.uk/id/local-authority-district/22UN,Life Opportunities,5800 - Brightlingsea Sports Centre,5300 - Resaleable Items,29/10/2013,2112048-2,20.99,2100141 - Barclaycard Merchant Services,Correction of 2111282
Tendring DC,http://statistics.data.gov.uk/id/local-authority-district/22UN,Life Opportunities,5800 - Brightlingsea Sports Centre,5300 - Resaleable Items,29/10/2013,2112049-1,21.05,2100141 - Barclaycard Merchant Services,Barclaycard
Tendring DC,http://statistics.data.gov.uk/id/local-authority-district/22UN,Life Opportunities,5800 - Brightlingsea Sports Centre,5300 - Resaleable Items,29/10/2013,2112049-2,22.4,2100141 - Barclaycard Merchant Services,Barclaycard
Tendring DC,http://statistics.data.gov.uk/id/local-authority-district/22UN,Life Opportunities,5800 - Brightlingsea Sports Centre,5300 - Resaleable Items,29/10/2013,2112050-1,22.4,2100141 - Barclaycard Merchant Services,Barclaycard
Tendring DC,http://statistics.data.gov.uk/id/local-authority-district/22UN,Life Opportunities,5800 - Brightlingsea Sports Centre,5300 - Resaleable Items,29/10/2013,2112050-2,20.99,2100141 - Barclaycard Merchant Services,Barclaycard
Tendring DC,http://statistics.data.gov.uk/id/local-authority-district/22UN,Life Opportunities,6160 - Princes Theatre,4622 - Hired Services - Artistes and Production Companies,22/10/2013,2111953-1,2787.28,2111423 - Barry Collings Entertainments,The Illegal Eagles
Tendring DC,http://statistics.data.gov.uk/id/local-authority-district/22UN,Life Opportunities,8540 - Leisure Centre Clacton,2300 - Energy Costs - Fuel Oil,08/10/2013,1055376-1,1360,2112681 - BIRLEM Ltd,2000 LT
Tendring DC,http://statistics.data.gov.uk/id/local-authority-district/22UN,Life Opportunities,8540 - Leisure Centre Clacton,2300 - Energy Costs - Fuel Oil,01/10/2013,2111488-1,1390.08,2112681 - BIRLEM Ltd,2003 Lt
Tendring DC,http://statistics.data.gov.uk/id/local-authority-district/22UN,Life Opportunities,5860 - Manningtree Sports Centre,4040 - Equipment & Tools,01/10/2013,2111500-1,50.95,REDACTED PERSONAL DATA,REDACTED PERSONAL DATA
Tendring DC,http://statistics.data.gov.uk/id/local-authority-district/22UN,Life Opportunities,H805 - Major Refurbishment of Heating,C200 - Main Contractor,15/10/2013,1055508-1,36331.75,2100155 - Blue Flame (Colchester) Ltd,HEATING REFURBISHMENT & UPGRADE CONTRACT
Tendring DC,http://statistics.data.gov.uk/id/local-authority-district/22UN,Life Opportunities,H860 - Disabled Adaptations,C200 - Main Contractor,08/10/2013,1055341-1,95,2100117 - Brian Birt Carpets Ltd,ST MARYS COURT
Tendring DC,http://statistics.data.gov.uk/id/local-authority-district/22UN,Life Opportunities,5480 - HRA - Repair & Maintenance,2008 - Responsive Maintenance - Floor Wall And Ceiling Fi,15/10/2013,1055471-1,890,2100117 - Brian Birt Carpets Ltd,HONEYCROFT
Tendring DC,http://statistics.data.gov.uk/id/local-authority-district/22UN,Life Opportunities,1880 - Office Accommodation Expenses,2308 - Energy Costs - Gas (Including LPG),15/10/2013,2111734-1,97.34,2106318 - British Gas Business,British Gas - Clay Hall Gas
Tendring DC,http://statistics.data.gov.uk/id/local-authority-district/22UN,Life Opportunities,1880 - Office Accommodation Expenses,2304 - Energy Costs - Electricity,15/10/2013,1055470-1,63.78,2100197 - British Gas Trading Ltd,BRITISH GAS-ALL SITES (AUG 13)
Tendring DC,http://statistics.data.gov.uk/id/local-authority-district/22UN,Life Opportunities,1860 - Depots General,2304 - Energy Costs - Electricity,15/10/2013,1055470-10,408.21,2100197 - British Gas Trading Ltd,BRITISH GAS-ALL SITES (AUG 13)
Tendring DC,http://statistics.data.gov.uk/id/local-authority-district/22UN,Life Opportunities,1880 - Office Accommodation Expenses,2304 - Energy Costs - Electricity,15/10/2013,1055470-2,110.31,2100197 - British Gas Trading Ltd,BRITISH GAS-ALL SITES (AUG 13)
Tendring DC,http://statistics.data.gov.uk/id/local-authority-district/22UN,Life Opportunities,1860 - Depots General,2304 - Energy Costs - Electricity,15/10/2013,1055470-3,21.83,2100197 - British Gas Trading Ltd,BRITISH GAS-ALL SITES (AUG 13)
Tendring DC,http://statistics.data.gov.uk/id/local-authority-district/22UN,Life Opportunities,1880 - Office Accommodation Expenses,2304 - Energy Costs - Electricity,15/10/2013,1055470-4,1037.55,2100197 - British Gas Trading Ltd,BRITISH GAS-ALL SITES (AUG 13)
Tendring DC,http://statistics.data.gov.uk/id/local-authority-district/22UN,Life Opportunities,1880 - Office Accommodation Expenses,2304 - Energy Costs - Electricity,15/10/2013,1055470-5,239.84,2100197 - British Gas Trading Ltd,BRITISH GAS-ALL SITES (AUG 13)
Tendring DC,http://statistics.data.gov.uk/id/local-authority-district/22UN,Life Opportunities,1880 - Office Accommodation Expenses,2304 - Energy Costs - Electricity,15/10/2013,1055470-6,172.85,2100197 - British Gas Trading Ltd,BRITISH GAS-ALL SITES (AUG 13)
Tendring DC,http://statistics.data.gov.uk/id/local-authority-district/22UN,Life Opportunities,1880 - Office Accommodation Expenses,2304 - Energy Costs - Electricity,15/10/2013,1055470-7,847.78,2100197 - British Gas Trading Ltd,BRITISH GAS-ALL SITES (AUG 13)
Tendring DC,http://statistics.data.gov.uk/id/local-authority-district/22UN,Life Opportunities,1860 - Depots General,2304 - Energy Costs - Electricity,15/10/2013,1055470-8,436.95,2100197 - British Gas Trading Ltd,BRITISH GAS-ALL SITES (AUG 13)
Tendring DC,http://statistics.data.gov.uk/id/local-authority-district/22UN,Life Opportunities,1880 - Office Accommodation Expenses,2304 - Energy Costs - Electricity,15/10/2013,1055470-9,882.03,2100197 - British Gas Trading Ltd,BRITISH GAS-ALL SITES (AUG 13)
Tendring DC,http://statistics.data.gov.uk/id/local-authority-district/22UN,Life Opportunities,6740 - Careline,2304 - Energy Costs - Electricity,22/10/2013,1055682-1,105.08,2100197 - British Gas Trading Ltd,ELECTRIC-SEPTEMBER 13
Tendring DC,http://statistics.data.gov.uk/id/local-authority-district/22UN,Life Opportunities,5440 - HRA - Communal Electricity,2304 - Energy Costs - Electricity,22/10/2013,1055683-1,553.73,2100197 - British Gas Trading Ltd,COMM ELEC SEPT 13
Tendring DC,http://statistics.data.gov.uk/id/local-authority-district/22UN,Life Opportunities,5340 - HRA - Communal Central Heating,2304 - Energy Costs - Electricity,22/10/2013,1055683-2,876.3,2100197 - British Gas Trading Ltd,COMM ELEC SEPT 13
Tendring DC,http://statistics.data.gov.uk/id/local-authority-district/22UN,Life Opportunities,5360 - HRA - Sheltered Units,2304 - Energy Costs - Electricity,22/10/2013,1055683-3,282.01,2100197 - British Gas Trading Ltd,COMM ELEC SEPT 13
Tendring DC,http://statistics.data.gov.uk/id/local-authority-district/22UN,Life Opportunities,5440 - HRA - Communal Electricity,2304 - Energy Costs - Electricity,22/10/2013,1055683-4,6213.47,2100197 - British Gas Trading Ltd,COMM ELEC SEPT 13
Tendring DC,http://statistics.data.gov.uk/id/local-authority-district/22UN,Life Opportunities,5440 - HRA - Communal Electricity,2304 - Energy Costs - Electricity,22/10/2013,1055683-5,-683.6,2100197 - British Gas Trading Ltd,COMM ELEC SEPT 13
Tendring DC,http://statistics.data.gov.uk/id/local-authority-district/22UN,Life Opportunities,5820 - Harwich Sports Centre,2304 - Energy Costs - Electricity,22/10/2013,1055684-1,398.42,2100197 - British Gas Trading Ltd,SC'S TIC SEPT 13
Tendring DC,http://statistics.data.gov.uk/id/local-authority-district/22UN,Life Opportunities,5860 - Manningtree Sports Centre,2304 - Energy Costs - Electricity,22/10/2013,1055684-2,581.08,2100197 - British Gas Trading Ltd,SC'S TIC SEPT 13
Tendring DC,http://statistics.data.gov.uk/id/local-authority-district/22UN,Life Opportunities,7600 - Tourist Information Centres,2304 - Energy Costs - Electricity,22/10/2013,1055684-3,11.65,2100197 - British Gas Trading Ltd,SC'S TIC SEPT 13
Tendring DC,http://statistics.data.gov.uk/id/local-authority-district/22UN,Life Opportunities,6080 - Shops & Kiosks,2304 - Energy Costs - Electricity,22/10/2013,1055684-4,17.77,2100197 - British Gas Trading Ltd,SC'S TIC SEPT 13
Tendring DC,http://statistics.data.gov.uk/id/local-authority-district/22UN,Life Opportunities,5960 - Recreation Grounds,2304 - Energy Costs - Electricity,22/10/2013,1055684-5,62.39,2100197 - British Gas Trading Ltd,SC'S TIC SEPT 13
Tendring DC,http://statistics.data.gov.uk/id/local-authority-district/22UN,Life Opportunities,8520 - Frinton & Walton Swimming Pool,2304 - Energy Costs - Electricity,01/10/2013,2111373-1,166.79,2100197 - British Gas Trading Ltd,Elec Walton Pool
Tendring DC,http://statistics.data.gov.uk/id/local-authority-district/22UN,Life Opportunities,6740 - Careline,2304 - Energy Costs - Electricity,01/10/2013,2111374-1,63.18,2100197 - British Gas Trading Ltd,British Gas September
Tendring DC,http://statistics.data.gov.uk/id/local-authority-district/22UN,Life Opportunities,8540 - Leisure Centre Clacton,4597 - Hired Services - Payments to Contractors,01/10/2013,2111487-1,273,2100148 - British Gymnastics,Gymnastics Scheme
Tendring DC,http://statistics.data.gov.uk/id/local-authority-district/22UN,Life Opportunities,8510 - Dovercourt Swimming Pool & All Weather Facilities,4710 - Telephones - Charges,08/10/2013,1055385-1,331.02,2100168 - British Telecommunications plc,SEPT 2013 LIFE OPPS
Tendring DC,http://statistics.data.gov.uk/id/local-authority-district/22UN,Life Opportunities,6040 - Miscellaneous Seafront Activities,4710 - Telephones - Charges,08/10/2013,1055385-10,83.38,2100168 - British Telecommunications plc,SEPT 2013 LIFE OPPS
Tendring DC,http://statistics.data.gov.uk/id/local-authority-district/22UN,Life Opportunities,6160 - Princes Theatre,4710 - Telephones - Charges,08/10/2013,1055385-11,253.53,2100168 - British Telecommunications plc,SEPT 2013 LIFE OPPS
Tendring DC,http://statistics.data.gov.uk/id/local-authority-district/22UN,Life Opportunities,1915 - Low Road Depot,4710 - Telephones - Charges,08/10/2013,1055385-12,36.4,2100168 - British Telecommunications plc,SEPT 2013 LIFE OPPS
Tendring DC,http://statistics.data.gov.uk/id/local-authority-district/22UN,Life Opportunities,1920 - Mill Lane Depot,4710 - Telephones - Charges,08/10/2013,1055385-13,37.87,2100168 - British Telecommunications plc,SEPT 2013 LIFE OPPS
Tendring DC,http://statistics.data.gov.uk/id/local-authority-district/22UN,Life Opportunities,8125 - Horticultural Services,4710 - Telephones - Charges,08/10/2013,1055385-14,46.73,2100168 - British Telecommunications plc,SEPT 2013 LIFE OPPS
Tendring DC,http://statistics.data.gov.uk/id/local-authority-district/22UN,Life Opportunities,7600 - Tourist Information Centres,4710 - Telephones - Charges,08/10/2013,1055385-15,143.54,2100168 - British Telecommunications plc,SEPT 2013 LIFE OPPS
Tendring DC,http://statistics.data.gov.uk/id/local-authority-district/22UN,Life Opportunities,4560 - Crematorium,4710 - Telephones - Charges,08/10/2013,1055385-2,255.9,2100168 - British Telecommunications plc,SEPT 2013 LIFE OPPS
Tendring DC,http://statistics.data.gov.uk/id/local-authority-district/22UN,Life Opportunities,4560 - Crematorium,4710 - Telephones - Charges,08/10/2013,1055385-3,184.23,2100168 - British Telecommunications plc,SEPT 2013 LIFE OPPS
Tendring DC,http://statistics.data.gov.uk/id/local-authority-district/22UN,Life Opportunities,8540 - Leisure Centre Clacton,4710 - Telephones - Charges,08/10/2013,1055385-4,794.16,2100168 - British Telecommunications plc,SEPT 2013 LIFE OPPS
Tendring DC,http://statistics.data.gov.uk/id/local-authority-district/22UN,Life Opportunities,5860 - Manningtree Sports Centre,4710 - Telephones - Charges,08/10/2013,1055385-5,370.58,2100168 - British Telecommunications plc,SEPT 2013 LIFE OPPS
Tendring DC,http://statistics.data.gov.uk/id/local-authority-district/22UN,Life Opportunities,5820 - Harwich Sports Centre,4710 - Telephones - Charges,08/10/2013,1055385-6,356.44,2100168 - British Telecommunications plc,SEPT 2013 LIFE OPPS
Tendring DC,http://statistics.data.gov.uk/id/local-authority-district/22UN,Life Opportunities,8520 - Frinton & Walton Swimming Pool,4710 - Telephones - Charges,08/10/2013,1055385-7,292.68,2100168 - British Telecommunications plc,SEPT 2013 LIFE OPPS
Tendring DC,http://statistics.data.gov.uk/id/local-authority-district/22UN,Life Opportunities,6060 - First Aid Posts,4710 - Telephones - Charges,08/10/2013,1055385-8,81,2100168 - British Telecommunications plc,SEPT 2013 LIFE OPPS
Tendring DC,http://statistics.data.gov.uk/id/local-authority-district/22UN,Life Opportunities,6040 - Miscellaneous Seafront Activities,4710 - Telephones - Charges,08/10/2013,1055385-9,162.01,2100168 - British Telecommunications plc,SEPT 2013 LIFE OPPS
Tendring DC,http://statistics.data.gov.uk/id/local-authority-district/22UN,Life Opportunities,4680 - Abandoned Vehicles,4597 - Hired Services - Payments to Contractors,15/10/2013,1055469-1,244.3,2100168 - British Telecommunications plc,BT-ONE BILL
Tendring DC,http://statistics.data.gov.uk/id/local-authority-district/22UN,Life Opportunities,5360 - HRA - Sheltered Units,4710 - Telephones - Charges,15/10/2013,1055469-10,35.7,2100168 - British Telecommunications plc,BT-ONE BILL
Tendring DC,http://statistics.data.gov.uk/id/local-authority-district/22UN,Life Opportunities,5360 - HRA - Sheltered Units,4710 - Telephones - Charges,15/10/2013,1055469-11,35.7,2100168 - British Telecommunications plc,BT-ONE BILL
Tendring DC,http://statistics.data.gov.uk/id/local-authority-district/22UN,Life Opportunities,5360 - HRA - Sheltered Units,4710 - Telephones - Charges,15/10/2013,1055469-12,158.96,2100168 - British Telecommunications plc,BT-ONE BILL
Tendring DC,http://statistics.data.gov.uk/id/local-authority-district/22UN,Life Opportunities,5360 - HRA - Sheltered Units,4710 - Telephones - Charges,15/10/2013,1055469-13,99.21,2100168 - British Telecommunications plc,BT-ONE BILL
Tendring DC,http://statistics.data.gov.uk/id/local-authority-district/22UN,Life Opportunities,5360 - HRA - Sheltered Units,4710 - Telephones - Charges,15/10/2013,1055469-14,79.2,2100168 - British Telecommunications plc,BT-ONE BILL
Tendring DC,http://statistics.data.gov.uk/id/local-authority-district/22UN,Life Opportunities,5360 - HRA - Sheltered Units,4710 - Telephones - Charges,15/10/2013,1055469-15,35.7,2100168 - British Telecommunications plc,BT-ONE BILL
Tendring DC,http://statistics.data.gov.uk/id/local-authority-district/22UN,Life Opportunities,5360 - HRA - Sheltered Units,4710 - Telephones - Charges,15/10/2013,1055469-16,52.31,2100168 - British Telecommunications plc,BT-ONE BILL
Tendring DC,http://statistics.data.gov.uk/id/local-authority-district/22UN,Life Opportunities,5360 - HRA - Sheltered Units,4710 - Telephones - Charges,15/10/2013,1055469-17,47,2100168 - British Telecommunications plc,BT-ONE BILL
Tendring DC,http://statistics.data.gov.uk/id/local-authority-district/22UN,Life Opportunities,5360 - HRA - Sheltered Units,4710 - Telephones - Charges,15/10/2013,1055469-18,98.81,2100168 - British Telecommunications plc,BT-ONE BILL
Tendring DC,http://statistics.data.gov.uk/id/local-authority-district/22UN,Life Opportunities,6740 - Careline,4710 - Telephones - Charges,15/10/2013,1055469-19,155.47,2100168 - British Telecommunications plc,BT-ONE BILL
Tendring DC,http://statistics.data.gov.uk/id/local-authority-district/22UN,Life Opportunities,1880 - Office Accommodation Expenses,4632 - Security,15/10/2013,1055469-2,528.23,2100168 - British Telecommunications plc,BT-ONE BILL
Tendring DC,http://statistics.data.gov.uk/id/local-authority-district/22UN,Life Opportunities,7620 - Air Show,4710 - Telephones - Charges,15/10/2013,1055469-20,160.05,2100168 - British Telecommunications plc,BT-ONE BILL
Tendring DC,http://statistics.data.gov.uk/id/local-authority-district/22UN,Life Opportunities,6740 - Careline,4716 - Mobile Telephone Costs,15/10/2013,1055469-21,1887.9,2100168 - British Telecommunications plc,BT-ONE BILL
Tendring DC,http://statistics.data.gov.uk/id/local-authority-district/22UN,Life Opportunities,"1580 - Benefits, Revenues and Customer Contact SU",4718 - Fixed Communication Lines,15/10/2013,1055469-22,140.76,2100168 - British Telecommunications plc,BT-ONE BILL
Tendring DC,http://statistics.data.gov.uk/id/local-authority-district/22UN,Life Opportunities,6740 - Careline,4718 - Fixed Communication Lines,15/10/2013,1055469-23,76.8,2100168 - British Telecommunications plc,BT-ONE BILL
Tendring DC,http://statistics.data.gov.uk/id/local-authority-district/22UN,Life Opportunities,1040 - Regeneration Service Unit,4730 - Fax Machine,15/10/2013,1055469-24,38.04,2100168 - British Telecommunications plc,BT-ONE BILL
Tendring DC,http://statistics.data.gov.uk/id/local-authority-district/22UN,Life Opportunities,4680 - Abandoned Vehicles,4597 - Hired Services - Payments to Contractors,15/10/2013,1055469-25,149.14,2100168 - British Telecommunications plc,BT-ONE BILL
Tendring DC,http://statistics.data.gov.uk/id/local-authority-district/22UN,Life Opportunities,1661 - Other Apportionable Overheads - Corporate Support,4700 - Postage,15/10/2013,1055469-3,38.07,2100168 - British Telecommunications plc,BT-ONE BILL
Tendring DC,http://statistics.data.gov.uk/id/local-authority-district/22UN,Life Opportunities,1320 - Print Unit Service Unit,4710 - Telephones - Charges,15/10/2013,1055469-4,36.19,2100168 - British Telecommunications plc,BT-ONE BILL
Tendring DC,http://statistics.data.gov.uk/id/local-authority-district/22UN,Life Opportunities,1560 - Cashiers Service Unit,4710 - Telephones - Charges,15/10/2013,1055469-5,368.86,2100168 - British Telecommunications plc,BT-ONE BILL
Tendring DC,http://statistics.data.gov.uk/id/local-authority-district/22UN,Life Opportunities,1860 - Depots General,4710 - Telephones - Charges,15/10/2013,1055469-6,36.36,2100168 - British Telecommunications plc,BT-ONE BILL
Tendring DC,http://statistics.data.gov.uk/id/local-authority-district/22UN,Life Opportunities,1840 - Central Telephone Service,4710 - Telephones - Charges,15/10/2013,1055469-7,113.55,2100168 - British Telecommunications plc,BT-ONE BILL
Tendring DC,http://statistics.data.gov.uk/id/local-authority-district/22UN,Life Opportunities,4780 - Rodent & Pest Control,4710 - Telephones - Charges,15/10/2013,1055469-8,165.85,2100168 - British Telecommunications plc,BT-ONE BILL
Tendring DC,http://statistics.data.gov.uk/id/local-authority-district/22UN,Life Opportunities,5360 - HRA - Sheltered Units,4710 - Telephones - Charges,15/10/2013,1055469-9,35.7,2100168 - British Telecommunications plc,BT-ONE BILL
Tendring DC,http://statistics.data.gov.uk/id/local-authority-district/22UN,Life Opportunities,6740 - Careline,4710 - Telephones - Charges,15/10/2013,2111693-1,117.28,2100168 - British Telecommunications plc,BT Bill - Lone Worker
Tendring DC,http://statistics.data.gov.uk/id/local-authority-district/22UN,Life Opportunities,6740 - Careline,4710 - Telephones - Charges,01/10/2013,7009566-1,248.89,2100168 - British Telecommunications plc,BT BILL PNC 422990
Tendring DC,http://statistics.data.gov.uk/id/local-authority-district/22UN,Life Opportunities,1880 - Office Accommodation Expenses,2100 - Building Repairs,22/10/2013,2111844-1,444,2106146 - Brown Roofing Contractors Ltd,Roof Repairs to Town Hall
Tendring DC,http://statistics.data.gov.uk/id/local-authority-district/22UN,Life Opportunities,1840 - Central Telephone Service,4710 - Telephones - Charges,22/10/2013,2111870-1,592.25,2109821 - BT Convergent Solutions Ltd,Red Box Maintenance
Tendring DC,http://statistics.data.gov.uk/id/local-authority-district/22UN,Life Opportunities,8520 - Frinton & Walton Swimming Pool,2700 - Cleaning Materials,15/10/2013,1055513-1,56.43,2101624 - Bunzl,FWSP-CLEANING MATERIALS
Tendring DC,http://statistics.data.gov.uk/id/local-authority-district/22UN,Life Opportunities,8150 - Office Cleaning,4080 - Materials & Consumables,22/10/2013,1055709-1,137.85,2101624 - Bunzl,CLEANING SUPPLIES
Tendring DC,http://statistics.data.gov.uk/id/local-authority-district/22UN,Life Opportunities,8150 - Office Cleaning,4080 - Materials & Consumables,22/10/2013,1055710-1,47.86,2101624 - Bunzl,TOILET PAPER
Tendring DC,http://statistics.data.gov.uk/id/local-authority-district/22UN,Life Opportunities,8150 - Office Cleaning,4080 - Materials & Consumables,22/10/2013,1055711-1,610.73,2101624 - Bunzl,CLEANING SUPPLIES
Tendring DC,http://statistics.data.gov.uk/id/local-authority-district/22UN,Life Opportunities,8150 - Office Cleaning,4080 - Materials & Consumables,22/10/2013,1055712-1,232.54,2101624 - Bunzl,CLEANING SUPPLIES
Tendring DC,http://statistics.data.gov.uk/id/local-authority-district/22UN,Life Opportunities,8520 - Frinton & Walton Swimming Pool,2700 - Cleaning Materials,15/10/2013,2111552-1,107.83,2101624 - Bunzl,FWSP - Cleaning Supplies
Tendring DC,http://statistics.data.gov.uk/id/local-authority-district/22UN,Life Opportunities,5360 - HRA - Sheltered Units,2700 - Cleaning Materials,15/10/2013,2111676-1,4.49,2101624 - Bunzl,Cleaning Supplies for Crooked Elms
Tendring DC,http://statistics.data.gov.uk/id/local-authority-district/22UN,Life Opportunities,5820 - Harwich Sports Centre,2700 - Cleaning Materials,15/10/2013,2111719-1,41.26,2101624 - Bunzl,Cleaning Supplies
Tendring DC,http://statistics.data.gov.uk/id/local-authority-district/22UN,Life Opportunities,8530 - Brightlingsea Swimming Pool,2100 - Building Repairs,01/10/2013,7700611-1,80.97,2101624 - Bunzl,BUNZL
Tendring DC,http://statistics.data.gov.uk/id/local-authority-district/22UN,Life Opportunities,8540 - Leisure Centre Clacton,2100 - Building Repairs,22/10/2013,1055580-1,466,2100280 - C H Lindsey & Son Ltd,REPLACE SENSOR
Tendring DC,http://statistics.data.gov.uk/id/local-authority-district/22UN,Life Opportunities,8540 - Leisure Centre Clacton,2100 - Building Repairs,22/10/2013,1055581-1,1869,2100280 - C H Lindsey & Son Ltd,VARIOUS WORKS
Tendring DC,http://statistics.data.gov.uk/id/local-authority-district/22UN,Life Opportunities,8540 - Leisure Centre Clacton,2100 - Building Repairs,22/10/2013,1055582-1,252,2100280 - C H Lindsey & Son Ltd,HYDRAULIC JACK BURNER NO2
Tendring DC,http://statistics.data.gov.uk/id/local-authority-district/22UN,Life Opportunities,8520 - Frinton & Walton Swimming Pool,2100 - Building Repairs,01/10/2013,2111463-1,1281,2100280 - C H Lindsey & Son Ltd,Frinton Pool Sensor
Tendring DC,http://statistics.data.gov.uk/id/local-authority-district/22UN,Life Opportunities,8510 - Dovercourt Swimming Pool & All Weather Facilities,2100 - Building Repairs,01/10/2013,2111481-1,937,2100280 - C H Lindsey & Son Ltd,Dcourt Pool Boiler
Tendring DC,http://statistics.data.gov.uk/id/local-authority-district/22UN,Life Opportunities,6160 - Princes Theatre,4105 - Bar/Catering Expenses,01/10/2013,2111494-1,185,2112687 - Cabana Soft Drinks (Essex) Ltd,Soft Drinks
Tendring DC,http://statistics.data.gov.uk/id/local-authority-district/22UN,Life Opportunities,1650 - Building Services Service Unit,4400 - Maintenance Under Service Agreements,15/10/2013,1055474-1,9.07,2100291 - Canon (UK) Ltd,COPIES SEPT 13
Tendring DC,http://statistics.data.gov.uk/id/local-authority-district/22UN,Life Opportunities,1650 - Building Services Service Unit,4400 - Maintenance Under Service Agreements,15/10/2013,1055475-1,48.6,2100291 - Canon (UK) Ltd,SERVICE NOV 13
Tendring DC,http://statistics.data.gov.uk/id/local-authority-district/22UN,Life Opportunities,5240 - HRA - Managing Tenancies,5242 - Tenant Relations,01/10/2013,7700622-1,350,2100202 - Capita Business Services Ltd,
Tendring DC,http://statistics.data.gov.uk/id/local-authority-district/22UN,Life Opportunities,5820 - Harwich Sports Centre,9245 - Room Hire - Main Hall,15/10/2013,2111695-1,16.67,2113490 - Carol Banninster,
Tendring DC,http://statistics.data.gov.uk/id/local-authority-district/22UN,Life Opportunities,"1580 - Benefits, Revenues and Customer Contact SU",3312 - Car Allowances - Car Hire,22/10/2013,1055686-1,25,REDACTED PERSONAL DATA,REDACTED PERSONAL DATA
Tendring DC,http://statistics.data.gov.uk/id/local-authority-district/22UN,Life Opportunities,8540 - Leisure Centre Clacton,5500 - Miscellaneous Expenses,22/10/2013,1055583-1,235,2112389 - Central YMCA,CYQ MATERIALS
Tendring DC,http://statistics.data.gov.uk/id/local-authority-district/22UN,Life Opportunities,5220 - HRA - Policy & Management,5930 - Business Planning Expenses,22/10/2013,2111843-1,750,2100254 - Chartered Institute of Housing,Practice Online Subscription
Tendring DC,http://statistics.data.gov.uk/id/local-authority-district/22UN,Life Opportunities,5480 - HRA - Repair & Maintenance,2017 - Mechanical Equipment /Extract Fans,15/10/2013,2111567-1,134.5,2100858 - Chelmer Electrical Ltd,1-30 Vyntoner House
Tendring DC,http://statistics.data.gov.uk/id/local-authority-district/22UN,Life Opportunities,7840 - Concessionary Rail Fares,4602 - Hired Services - Purchase of Railcards,08/10/2013,1055264-1,105,2101847 - Chelmsford City Council,ADMIN FOR 500 RAILCARDS
Tendring DC,http://statistics.data.gov.uk/id/local-authority-district/22UN,Life Opportunities,7840 - Concessionary Rail Fares,4602 - Hired Services - Purchase of Railcards,08/10/2013,1055265-1,10500,2101847 - Chelmsford City Council,500 RAILCARDS
Tendring DC,http://statistics.data.gov.uk/id/local-authority-district/22UN,Life Opportunities,5220 - HRA - Policy & Management,5253 - HRA Health & Safety Expenses,01/10/2013,7700621-1,56.12,2100205 - Chelmsford Safety Supplies Ltd,DR MARTEN SHOES
Tendring DC,http://statistics.data.gov.uk/id/local-authority-district/22UN,Life Opportunities,7000 - CCTV,4400 - Maintenance Under Service Agreements,15/10/2013,2111581-1,1824,2113346 - Chroma Vision Ltd,CCTV Maintenance Oct Dec 13
Tendring DC,http://statistics.data.gov.uk/id/local-authority-district/22UN,Life Opportunities,7000 - CCTV,4400 - Maintenance Under Service Agreements,01/10/2013,7009543-1,2643,2113346 - Chroma Vision Ltd,JULY DEC
Tendring DC,http://statistics.data.gov.uk/id/local-authority-district/22UN,Life Opportunities,7000 - CCTV,4400 - Maintenance Under Service Agreements,01/10/2013,7009544-1,1824,2113346 - Chroma Vision Ltd,JULY-SEPT
Tendring DC,http://statistics.data.gov.uk/id/local-authority-district/22UN,Life Opportunities,5800 - Brightlingsea Sports Centre,5160 - Advertising,08/10/2013,1055366-1,104,2100246 - Chronicle Publishing Services,
Tendring DC,http://statistics.data.gov.uk/id/local-authority-district/22UN,Life Opportunities,6160 - Princes Theatre,5308 - Ice Cream,08/10/2013,1055342-1,295.24,2108623 - CICC Ltd,ICE CREAM FOR THEATRE
Tendring DC,http://statistics.data.gov.uk/id/local-authority-district/22UN,Life Opportunities,6160 - Princes Theatre,5308 - Ice Cream,08/10/2013,1055342-2,20.24,2108623 - CICC Ltd,ICE CREAM FOR THEATRE
Tendring DC,http://statistics.data.gov.uk/id/local-authority-district/22UN,Life Opportunities,5360 - HRA - Sheltered Units,4400 - Maintenance Under Service Agreements,22/10/2013,2111864-1,170,2100237 - Cirrus Communication Systems Ltd,Cleaning of Apparatus
Tendring DC,http://statistics.data.gov.uk/id/local-authority-district/22UN,Life Opportunities,"1580 - Benefits, Revenues and Customer Contact SU",4461 - Court Fees,01/10/2013,1055619-1,3728,2100269 - Co operative Bank plc,HM COURT
Tendring DC,http://statistics.data.gov.uk/id/local-authority-district/22UN,Life Opportunities,6160 - Princes Theatre,5160 - Advertising,01/10/2013,1055620-1,78,2100269 - Co operative Bank plc,SEPT 2013 CREDIT CARD
Tendring DC,http://statistics.data.gov.uk/id/local-authority-district/22UN,Life Opportunities,5260 - HRA - Rent Collection And Accounting,4461 - Court Fees,01/10/2013,1055620-2,650,2100269 - Co operative Bank plc,SEPT 2013 CREDIT CARD
Tendring DC,http://statistics.data.gov.uk/id/local-authority-district/22UN,Life Opportunities,H880 - New Build Initiatives and Acquisitions,C200 - Main Contractor,01/10/2013,1055620-3,14.95,2100269 - Co operative Bank plc,SEPT 2013 CREDIT CARD
Tendring DC,http://statistics.data.gov.uk/id/local-authority-district/22UN,Life Opportunities,6620 - Corporate Management - General,5190 - Bank Commission Charges,01/10/2013,1055620-4,2,2100269 - Co operative Bank plc,SEPT 2013 CREDIT CARD
Tendring DC,http://statistics.data.gov.uk/id/local-authority-district/22UN,Life Opportunities,5860 - Manningtree Sports Centre,4597 - Hired Services - Payments to Contractors,15/10/2013,2111720-1,630,2112840 - Colchester School of Gymnastics,Gym Classes
Tendring DC,http://statistics.data.gov.uk/id/local-authority-district/22UN,Life Opportunities,"1580 - Benefits, Revenues and Customer Contact SU",4462 - Bailiffs and Tracing Agent Fees re debt recovery,08/10/2013,1055299-1,10,2100381 - Collect Services Ltd,VAT ON FEES COLLECTED C/T
Tendring DC,http://statistics.data.gov.uk/id/local-authority-district/22UN,Life Opportunities,"1580 - Benefits, Revenues and Customer Contact SU",4462 - Bailiffs and Tracing Agent Fees re debt recovery,08/10/2013,1055299-2,-10,2100381 - Collect Services Ltd,VAT ON FEES COLLECTED C/T
Tendring DC,http://statistics.data.gov.uk/id/local-authority-district/22UN,Life Opportunities,"1580 - Benefits, Revenues and Customer Contact SU",4462 - Bailiffs and Tracing Agent Fees re debt recovery,08/10/2013,1055299-3,8.75,2100381 - Collect Services Ltd,VAT ON FEES COLLECTED C/T
Tendring DC,http://statistics.data.gov.uk/id/local-authority-district/22UN,Life Opportunities,"1580 - Benefits, Revenues and Customer Contact SU",4462 - Bailiffs and Tracing Agent Fees re debt recovery,08/10/2013,1055299-4,-8.75,2100381 - Collect Services Ltd,VAT ON FEES COLLECTED C/T
Tendring DC,http://statistics.data.gov.uk/id/local-authority-district/22UN,Life Opportunities,"1580 - Benefits, Revenues and Customer Contact SU",4462 - Bailiffs and Tracing Agent Fees re debt recovery,08/10/2013,1055299-5,2834.65,2100381 - Collect Services Ltd,VAT ON FEES COLLECTED C/T
Tendring DC,http://statistics.data.gov.uk/id/local-authority-district/22UN,Life Opportunities,"1580 - Benefits, Revenues and Customer Contact SU",4462 - Bailiffs and Tracing Agent Fees re debt recovery,08/10/2013,1055299-6,-2834.65,2100381 - Collect Services Ltd,VAT ON FEES COLLECTED C/T
Tendring DC,http://statistics.data.gov.uk/id/local-authority-district/22UN,Life Opportunities,"1580 - Benefits, Revenues and Customer Contact SU",4462 - Bailiffs and Tracing Agent Fees re debt recovery,08/10/2013,1055299-7,0.36,2100381 - Collect Services Ltd,VAT ON FEES COLLECTED C/T
Tendring DC,http://statistics.data.gov.uk/id/local-authority-district/22UN,Life Opportunities,"1580 - Benefits, Revenues and Customer Contact SU",4462 - Bailiffs and Tracing Agent Fees re debt recovery,08/10/2013,1055300-1,234.5,2100381 - Collect Services Ltd,VAT ON FEES COLLECTED NNDR
Tendring DC,http://statistics.data.gov.uk/id/local-authority-district/22UN,Life Opportunities,"1580 - Benefits, Revenues and Customer Contact SU",4462 - Bailiffs and Tracing Agent Fees re debt recovery,08/10/2013,1055300-2,-234.5,2100381 - Collect Services Ltd,VAT ON FEES COLLECTED NNDR
Tendring DC,http://statistics.data.gov.uk/id/local-authority-district/22UN,Life Opportunities,"1580 - Benefits, Revenues and Customer Contact SU",4462 - Bailiffs and Tracing Agent Fees re debt recovery,01/10/2013,2111469-1,67.14,2100381 - Collect Services Ltd,Vat on fees collected
Tendring DC,http://statistics.data.gov.uk/id/local-authority-district/22UN,Life Opportunities,"1580 - Benefits, Revenues and Customer Contact SU",4462 - Bailiffs and Tracing Agent Fees re debt recovery,01/10/2013,2111469-2,-67.14,2100381 - Collect Services Ltd,Vat on fees collected
Tendring DC,http://statistics.data.gov.uk/id/local-authority-district/22UN,Life Opportunities,"1580 - Benefits, Revenues and Customer Contact SU",4462 - Bailiffs and Tracing Agent Fees re debt recovery,01/10/2013,2111469-3,2518.93,2100381 - Collect Services Ltd,Vat on fees collected
Tendring DC,http://statistics.data.gov.uk/id/local-authority-district/22UN,Life Opportunities,"1580 - Benefits, Revenues and Customer Contact SU",4462 - Bailiffs and Tracing Agent Fees re debt recovery,01/10/2013,2111469-4,-2518.93,2100381 - Collect Services Ltd,Vat on fees collected
Tendring DC,http://statistics.data.gov.uk/id/local-authority-district/22UN,Life Opportunities,"1580 - Benefits, Revenues and Customer Contact SU",4462 - Bailiffs and Tracing Agent Fees re debt recovery,01/10/2013,2111470-1,1284.5,2100381 - Collect Services Ltd,Vat on fees collected NNDR
Tendring DC,http://statistics.data.gov.uk/id/local-authority-district/22UN,Life Opportunities,"1580 - Benefits, Revenues and Customer Contact SU",4462 - Bailiffs and Tracing Agent Fees re debt recovery,01/10/2013,2111470-2,-1284.5,2100381 - Collect Services Ltd,Vat on fees collected NNDR
Tendring DC,http://statistics.data.gov.uk/id/local-authority-district/22UN,Life Opportunities,"1580 - Benefits, Revenues and Customer Contact SU",4462 - Bailiffs and Tracing Agent Fees re debt recovery,22/10/2013,2111836-1,2518.23,2100381 - Collect Services Ltd,VAT on Fees Collected CT
Tendring DC,http://statistics.data.gov.uk/id/local-authority-district/22UN,Life Opportunities,"1580 - Benefits, Revenues and Customer Contact SU",4462 - Bailiffs and Tracing Agent Fees re debt recovery,22/10/2013,2111836-2,-2518.23,2100381 - Collect Services Ltd,VAT on Fees Collected CT
Tendring DC,http://statistics.data.gov.uk/id/local-authority-district/22UN,Life Opportunities,"1580 - Benefits, Revenues and Customer Contact SU",4462 - Bailiffs and Tracing Agent Fees re debt recovery,22/10/2013,2111836-3,47.5,2100381 - Collect Services Ltd,VAT on Fees Collected CT
Tendring DC,http://statistics.data.gov.uk/id/local-authority-district/22UN,Life Opportunities,"1580 - Benefits, Revenues and Customer Contact SU",4462 - Bailiffs and Tracing Agent Fees re debt recovery,22/10/2013,2111836-4,-47.5,2100381 - Collect Services Ltd,VAT on Fees Collected CT
Tendring DC,http://statistics.data.gov.uk/id/local-authority-district/22UN,Life Opportunities,"1580 - Benefits, Revenues and Customer Contact SU",4462 - Bailiffs and Tracing Agent Fees re debt recovery,22/10/2013,2111836-5,2.5,2100381 - Collect Services Ltd,VAT on Fees Collected CT
Tendring DC,http://statistics.data.gov.uk/id/local-authority-district/22UN,Life Opportunities,"1580 - Benefits, Revenues and Customer Contact SU",4462 - Bailiffs and Tracing Agent Fees re debt recovery,22/10/2013,2111836-6,-2.5,2100381 - Collect Services Ltd,VAT on Fees Collected CT
Tendring DC,http://statistics.data.gov.uk/id/local-authority-district/22UN,Life Opportunities,"1580 - Benefits, Revenues and Customer Contact SU",4462 - Bailiffs and Tracing Agent Fees re debt recovery,22/10/2013,2111836-7,24.5,2100381 - Collect Services Ltd,VAT on Fees Collected CT
Tendring DC,http://statistics.data.gov.uk/id/local-authority-district/22UN,Life Opportunities,"1580 - Benefits, Revenues and Customer Contact SU",4462 - Bailiffs and Tracing Agent Fees re debt recovery,22/10/2013,2111837-1,2.5,2100381 - Collect Services Ltd,VAT on fees Collected NNDR
Tendring DC,http://statistics.data.gov.uk/id/local-authority-district/22UN,Life Opportunities,"1580 - Benefits, Revenues and Customer Contact SU",4462 - Bailiffs and Tracing Agent Fees re debt recovery,22/10/2013,2111837-2,-2.5,2100381 - Collect Services Ltd,VAT on fees Collected NNDR
Tendring DC,http://statistics.data.gov.uk/id/local-authority-district/22UN,Life Opportunities,"1580 - Benefits, Revenues and Customer Contact SU",4462 - Bailiffs and Tracing Agent Fees re debt recovery,22/10/2013,2111838-1,3686.75,2100381 - Collect Services Ltd,VAT on fees collected CT
Tendring DC,http://statistics.data.gov.uk/id/local-authority-district/22UN,Life Opportunities,"1580 - Benefits, Revenues and Customer Contact SU",4462 - Bailiffs and Tracing Agent Fees re debt recovery,22/10/2013,2111838-2,-3686.75,2100381 - Collect Services Ltd,VAT on fees collected CT
Tendring DC,http://statistics.data.gov.uk/id/local-authority-district/22UN,Life Opportunities,"1580 - Benefits, Revenues and Customer Contact SU",4462 - Bailiffs and Tracing Agent Fees re debt recovery,22/10/2013,2111838-3,135,2100381 - Collect Services Ltd,VAT on fees collected CT
Tendring DC,http://statistics.data.gov.uk/id/local-authority-district/22UN,Life Opportunities,"1580 - Benefits, Revenues and Customer Contact SU",4462 - Bailiffs and Tracing Agent Fees re debt recovery,22/10/2013,2111838-4,-135,2100381 - Collect Services Ltd,VAT on fees collected CT
Tendring DC,http://statistics.data.gov.uk/id/local-authority-district/22UN,Life Opportunities,"1580 - Benefits, Revenues and Customer Contact SU",4462 - Bailiffs and Tracing Agent Fees re debt recovery,22/10/2013,2111838-5,70.61,2100381 - Collect Services Ltd,VAT on fees collected CT
Tendring DC,http://statistics.data.gov.uk/id/local-authority-district/22UN,Life Opportunities,"1580 - Benefits, Revenues and Customer Contact SU",4462 - Bailiffs and Tracing Agent Fees re debt recovery,22/10/2013,2111838-6,-70.61,2100381 - Collect Services Ltd,VAT on fees collected CT
Tendring DC,http://statistics.data.gov.uk/id/local-authority-district/22UN,Life Opportunities,"1580 - Benefits, Revenues and Customer Contact SU",4462 - Bailiffs and Tracing Agent Fees re debt recovery,22/10/2013,2111839-1,2498,2100381 - Collect Services Ltd,VAT on fees collected CT
Tendring DC,http://statistics.data.gov.uk/id/local-authority-district/22UN,Life Opportunities,"1580 - Benefits, Revenues and Customer Contact SU",4462 - Bailiffs and Tracing Agent Fees re debt recovery,22/10/2013,2111839-2,-2498,2100381 - Collect Services Ltd,VAT on fees collected CT
Tendring DC,http://statistics.data.gov.uk/id/local-authority-district/22UN,Life Opportunities,"1580 - Benefits, Revenues and Customer Contact SU",4462 - Bailiffs and Tracing Agent Fees re debt recovery,22/10/2013,2111839-3,5,2100381 - Collect Services Ltd,VAT on fees collected CT
Tendring DC,http://statistics.data.gov.uk/id/local-authority-district/22UN,Life Opportunities,"1580 - Benefits, Revenues and Customer Contact SU",4462 - Bailiffs and Tracing Agent Fees re debt recovery,22/10/2013,2111839-4,-5,2100381 - Collect Services Ltd,VAT on fees collected CT
Tendring DC,http://statistics.data.gov.uk/id/local-authority-district/22UN,Life Opportunities,"1580 - Benefits, Revenues and Customer Contact SU",4462 - Bailiffs and Tracing Agent Fees re debt recovery,22/10/2013,2111840-1,697.5,2100381 - Collect Services Ltd,VAT on Fees Collected NNDR
Tendring DC,http://statistics.data.gov.uk/id/local-authority-district/22UN,Life Opportunities,"1580 - Benefits, Revenues and Customer Contact SU",4462 - Bailiffs and Tracing Agent Fees re debt recovery,22/10/2013,2111840-2,-697.5,2100381 - Collect Services Ltd,VAT on Fees Collected NNDR
Tendring DC,http://statistics.data.gov.uk/id/local-authority-district/22UN,Life Opportunities,"1580 - Benefits, Revenues and Customer Contact SU",5189 - External Debt Recovery Commission,22/10/2013,2111841-1,299.51,2100381 - Collect Services Ltd,Commission
Tendring DC,http://statistics.data.gov.uk/id/local-authority-district/22UN,Life Opportunities,9900 - General Fund Balance Sheet,B863 - Bailiff Payments Holding Account,01/10/2013,1055183-1,1478.5,REDACTED COMMERCIAL CONFIDENTIALITY,REDACTED COMMERCIAL CONFIDENTIALITY
Tendring DC,http://statistics.data.gov.uk/id/local-authority-district/22UN,Life Opportunities,9900 - General Fund Balance Sheet,B863 - Bailiff Payments Holding Account,08/10/2013,1055357-1,2821.1,REDACTED COMMERCIAL CONFIDENTIALITY,REDACTED COMMERCIAL CONFIDENTIALITY
Tendring DC,http://statistics.data.gov.uk/id/local-authority-district/22UN,Life Opportunities,9900 - General Fund Balance Sheet,B863 - Bailiff Payments Holding Account,15/10/2013,1055509-1,2118.39,REDACTED COMMERCIAL CONFIDENTIALITY,REDACTED COMMERCIAL CONFIDENTIALITY
Tendring DC,http://statistics.data.gov.uk/id/local-authority-district/22UN,Life Opportunities,9920 - HRA Balance Sheet,B860 - Housing Rents - Cash,22/10/2013,1055645-1,1547,REDACTED COMMERCIAL CONFIDENTIALITY,REDACTED COMMERCIAL CONFIDENTIALITY
Tendring DC,http://statistics.data.gov.uk/id/local-authority-district/22UN,Life Opportunities,1650 - Building Services Service Unit,4094 - Other Equipment Hire/Leasing,01/10/2013,2111471-1,120,2110168 - CoolerAid Ltd,x2 Rental Renewal Yearly CoolerAid
Tendring DC,http://statistics.data.gov.uk/id/local-authority-district/22UN,Life Opportunities,1100 - Corporate Director (Corporate Services) and Admin Service Unit,4094 - Other Equipment Hire/Leasing,01/10/2013,2111471-2,120,2110168 - CoolerAid Ltd,x2 Rental Renewal Yearly CoolerAid
Tendring DC,http://statistics.data.gov.uk/id/local-authority-district/22UN,Life Opportunities,5800 - Brightlingsea Sports Centre,2100 - Building Repairs,01/10/2013,2111402-1,143,2108459 - Cooper & Brome (Contracts) Ltd,Cooper & Brome Ltd
Tendring DC,http://statistics.data.gov.uk/id/local-authority-district/22UN,Life Opportunities,H920 - Disabled Facilities Grants,C400 - Grant payments,08/10/2013,1055259-1,3849.41,REDACTED PERSONAL DATA,REDACTED PERSONAL DATA
Tendring DC,http://statistics.data.gov.uk/id/local-authority-district/22UN,Life Opportunities,H700 - First time Heating,C200 - Main Contractor,15/10/2013,1055414-1,1125.25,2100314 - Cooper & Brome (Plumbing & Heating) Ltd,INSTAL VAILLANT @ SPENDELLS HOUSE
Tendring DC,http://statistics.data.gov.uk/id/local-authority-district/22UN,Life Opportunities,H920 - Disabled Facilities Grants,C400 - Grant payments,15/10/2013,1055417-1,2665.44,REDACTED PERSONAL DATA,REDACTED PERSONAL DATA
Tendring DC,http://statistics.data.gov.uk/id/local-authority-district/22UN,Life Opportunities,H920 - Disabled Facilities Grants,C400 - Grant payments,15/10/2013,1055420-1,2270.56,REDACTED PERSONAL DATA,REDACTED PERSONAL DATA
Tendring DC,http://statistics.data.gov.uk/id/local-authority-district/22UN,Life Opportunities,1860 - Depots General,2100 - Building Repairs,22/10/2013,1055563-1,167.82,2100314 - Cooper & Brome (Plumbing & Heating) Ltd,REPAIRS TO HEATING SYSTEM
Tendring DC,http://statistics.data.gov.uk/id/local-authority-district/22UN,Life Opportunities,1860 - Depots General,2100 - Building Repairs,22/10/2013,1055564-1,67.18,2100314 - Cooper & Brome (Plumbing & Heating) Ltd,REMOVE RADIATOR
Tendring DC,http://statistics.data.gov.uk/id/local-authority-district/22UN,Life Opportunities,H920 - Disabled Facilities Grants,C400 - Grant payments,01/10/2013,2111422-1,3643.69,REDACTED PERSONAL DATA,REDACTED PERSONAL DATA
Tendring DC,http://statistics.data.gov.uk/id/local-authority-district/22UN,Life Opportunities,8540 - Leisure Centre Clacton,2308 - Energy Costs - Gas (Including LPG),22/10/2013,1055575-1,1306.87,2104620 - Corona Energy Retail 4 Limited,SEPTEMBER
Tendring DC,http://statistics.data.gov.uk/id/local-authority-district/22UN,Life Opportunities,8520 - Frinton & Walton Swimming Pool,2308 - Energy Costs - Gas (Including LPG),22/10/2013,1055587-1,2857,2104620 - Corona Energy Retail 4 Limited,FWSP-GAS
Tendring DC,http://statistics.data.gov.uk/id/local-authority-district/22UN,Life Opportunities,5340 - HRA - Communal Central Heating,2308 - Energy Costs - Gas (Including LPG),22/10/2013,1055680-1,4611.12,2104620 - Corona Energy Retail 4 Limited,GAS SEPT 13
Tendring DC,http://statistics.data.gov.uk/id/local-authority-district/22UN,Life Opportunities,5360 - HRA - Sheltered Units,2308 - Energy Costs - Gas (Including LPG),22/10/2013,1055680-2,24.38,2104620 - Corona Energy Retail 4 Limited,GAS SEPT 13
Tendring DC,http://statistics.data.gov.uk/id/local-authority-district/22UN,Life Opportunities,1860 - Depots General,2308 - Energy Costs - Gas (Including LPG),22/10/2013,1055681-1,130.57,2104620 - Corona Energy Retail 4 Limited,CORONA ENERGY-SEP 13
Tendring DC,http://statistics.data.gov.uk/id/local-authority-district/22UN,Life Opportunities,1880 - Office Accommodation Expenses,2308 - Energy Costs - Gas (Including LPG),22/10/2013,1055681-2,31.03,2104620 - Corona Energy Retail 4 Limited,CORONA ENERGY-SEP 13
Tendring DC,http://statistics.data.gov.uk/id/local-authority-district/22UN,Life Opportunities,1880 - Office Accommodation Expenses,2308 - Energy Costs - Gas (Including LPG),22/10/2013,1055681-3,66.24,2104620 - Corona Energy Retail 4 Limited,CORONA ENERGY-SEP 13
Tendring DC,http://statistics.data.gov.uk/id/local-authority-district/22UN,Life Opportunities,1880 - Office Accommodation Expenses,2308 - Energy Costs - Gas (Including LPG),22/10/2013,1055681-4,23.37,2104620 - Corona Energy Retail 4 Limited,CORONA ENERGY-SEP 13
Tendring DC,http://statistics.data.gov.uk/id/local-authority-district/22UN,Life Opportunities,1880 - Office Accommodation Expenses,2308 - Energy Costs - Gas (Including LPG),22/10/2013,1055681-5,224.91,2104620 - Corona Energy Retail 4 Limited,CORONA ENERGY-SEP 13
Tendring DC,http://statistics.data.gov.uk/id/local-authority-district/22UN,Life Opportunities,6160 - Princes Theatre,2308 - Energy Costs - Gas (Including LPG),22/10/2013,1055681-6,24.99,2104620 - Corona Energy Retail 4 Limited,CORONA ENERGY-SEP 13
Tendring DC,http://statistics.data.gov.uk/id/local-authority-district/22UN,Life Opportunities,8510 - Dovercourt Swimming Pool & All Weather Facilities,2308 - Energy Costs - Gas (Including LPG),15/10/2013,2111669-1,1554.61,REDACTED PERSONAL DATA,REDACTED PERSONAL DATA
Tendring DC,http://statistics.data.gov.uk/id/local-authority-district/22UN,Life Opportunities,5340 - HRA - Communal Central Heating,2308 - Energy Costs - Gas (Including LPG),15/10/2013,2111769-1,3645.32,2104620 - Corona Energy Retail 4 Limited,Gas SHU July 13
Tendring DC,http://statistics.data.gov.uk/id/local-authority-district/22UN,Life Opportunities,5360 - HRA - Sheltered Units,2308 - Energy Costs - Gas (Including LPG),15/10/2013,2111769-2,22.65,2104620 - Corona Energy Retail 4 Limited,Gas SHU July 13
Tendring DC,http://statistics.data.gov.uk/id/local-authority-district/22UN,Life Opportunities,5340 - HRA - Communal Central Heating,2308 - Energy Costs - Gas (Including LPG),15/10/2013,2111770-1,3537.59,2104620 - Corona Energy Retail 4 Limited,Has SHU August
Tendring DC,http://statistics.data.gov.uk/id/local-authority-district/22UN,Life Opportunities,5360 - HRA - Sheltered Units,2308 - Energy Costs - Gas (Including LPG),15/10/2013,2111770-2,21.11,2104620 - Corona Energy Retail 4 Limited,Has SHU August
Tendring DC,http://statistics.data.gov.uk/id/local-authority-district/22UN,Life Opportunities,1860 - Depots General,2308 - Energy Costs - Gas (Including LPG),15/10/2013,2111771-1,125.24,2104620 - Corona Energy Retail 4 Limited,Corona Energy July 13
Tendring DC,http://statistics.data.gov.uk/id/local-authority-district/22UN,Life Opportunities,1880 - Office Accommodation Expenses,2308 - Energy Costs - Gas (Including LPG),15/10/2013,2111771-2,30.88,2104620 - Corona Energy Retail 4 Limited,Corona Energy July 13
Tendring DC,http://statistics.data.gov.uk/id/local-authority-district/22UN,Life Opportunities,1880 - Office Accommodation Expenses,2308 - Energy Costs - Gas (Including LPG),15/10/2013,2111771-3,51.84,2104620 - Corona Energy Retail 4 Limited,Corona Energy July 13
Tendring DC,http://statistics.data.gov.uk/id/local-authority-district/22UN,Life Opportunities,1880 - Office Accommodation Expenses,2308 - Energy Costs - Gas (Including LPG),15/10/2013,2111771-4,25.71,2104620 - Corona Energy Retail 4 Limited,Corona Energy July 13
Tendring DC,http://statistics.data.gov.uk/id/local-authority-district/22UN,Life Opportunities,1880 - Office Accommodation Expenses,2308 - Energy Costs - Gas (Including LPG),15/10/2013,2111771-5,126,2104620 - Corona Energy Retail 4 Limited,Corona Energy July 13
Tendring DC,http://statistics.data.gov.uk/id/local-authority-district/22UN,Life Opportunities,6160 - Princes Theatre,2308 - Energy Costs - Gas (Including LPG),15/10/2013,2111771-6,14.73,2104620 - Corona Energy Retail 4 Limited,Corona Energy July 13
Tendring DC,http://statistics.data.gov.uk/id/local-authority-district/22UN,Life Opportunities,1860 - Depots General,2308 - Energy Costs - Gas (Including LPG),15/10/2013,2111772-1,113.48,2104620 - Corona Energy Retail 4 Limited,Corona Energy Aug 13
Tendring DC,http://statistics.data.gov.uk/id/local-authority-district/22UN,Life Opportunities,1880 - Office Accommodation Expenses,2308 - Energy Costs - Gas (Including LPG),15/10/2013,2111772-2,27.7,2104620 - Corona Energy Retail 4 Limited,Corona Energy Aug 13
Tendring DC,http://statistics.data.gov.uk/id/local-authority-district/22UN,Life Opportunities,1880 - Office Accommodation Expenses,2308 - Energy Costs - Gas (Including LPG),15/10/2013,2111772-3,51.63,2104620 - Corona Energy Retail 4 Limited,Corona Energy Aug 13
Tendring DC,http://statistics.data.gov.uk/id/local-authority-district/22UN,Life Opportunities,1880 - Office Accommodation Expenses,2308 - Energy Costs - Gas (Including LPG),15/10/2013,2111772-4,22.03,2104620 - Corona Energy Retail 4 Limited,Corona Energy Aug 13
Tendring DC,http://statistics.data.gov.uk/id/local-authority-district/22UN,Life Opportunities,1880 - Office Accommodation Expenses,2308 - Energy Costs - Gas (Including LPG),15/10/2013,2111772-5,128,2104620 - Corona Energy Retail 4 Limited,Corona Energy Aug 13
Tendring DC,http://statistics.data.gov.uk/id/local-authority-district/22UN,Life Opportunities,6160 - Princes Theatre,2308 - Energy Costs - Gas (Including LPG),15/10/2013,2111772-6,14.22,2104620 - Corona Energy Retail 4 Limited,Corona Energy Aug 13
Tendring DC,http://statistics.data.gov.uk/id/local-authority-district/22UN,Life Opportunities,5240 - HRA - Managing Tenancies,5242 - Tenant Relations,15/10/2013,2111606-1,374.4,2104177 - Corporate Document Services Ltd,Reception Satisfaction x 2
Tendring DC,http://statistics.data.gov.uk/id/local-authority-district/22UN,Life Opportunities,5140 - Homelessness,4683 - Other Homelessness Expenses,23/10/2013,7009681-1,265,REDACTED PERSONAL DATA,REDACTED PERSONAL DATA
Tendring DC,http://statistics.data.gov.uk/id/local-authority-district/22UN,Life Opportunities,5140 - Homelessness,4683 - Other Homelessness Expenses,23/10/2013,7009682-1,265,REDACTED PERSONAL DATA,REDACTED PERSONAL DATA
Tendring DC,http://statistics.data.gov.uk/id/local-authority-district/22UN,Life Opportunities,6160 - Princes Theatre,4105 - Bar/Catering Expenses,15/10/2013,2111603-1,270.83,2102038 - Crispins Sandwich Bar Ltd,Buffet 2 Princes Theatre
Tendring DC,http://statistics.data.gov.uk/id/local-authority-district/22UN,Life Opportunities,H815 - Re-roofing,C200 - Main Contractor,08/10/2013,1055195-1,14297,2113184 - D & B Roofing,THE GROVE WALTON
Tendring DC,http://statistics.data.gov.uk/id/local-authority-district/22UN,Life Opportunities,H860 - Disabled Adaptations,C200 - Main Contractor,08/10/2013,1055278-1,5980,REDACTED PERSONAL DATA,REDACTED PERSONAL DATA
Tendring DC,http://statistics.data.gov.uk/id/local-authority-district/22UN,Life Opportunities,5360 - HRA - Sheltered Units,4710 - Telephones - Charges,01/10/2013,1055162-1,362.97,2106704 - Daisy Communications Ltd,daisy bill - august
Tendring DC,http://statistics.data.gov.uk/id/local-authority-district/22UN,Life Opportunities,6160 - Princes Theatre,4597 - Hired Services - Payments to Contractors,15/10/2013,1055478-1,67.38,2100397 - Danes of Colchester Ltd,DRY CLEANING FOR THEATRE
Tendring DC,http://statistics.data.gov.uk/id/local-authority-district/22UN,Life Opportunities,6160 - Princes Theatre,4597 - Hired Services - Payments to Contractors,15/10/2013,1055479-1,22,2100397 - Danes of Colchester Ltd,DRY CLEANING FOR THEATRE
Tendring DC,http://statistics.data.gov.uk/id/local-authority-district/22UN,Life Opportunities,6160 - Princes Theatre,4597 - Hired Services - Payments to Contractors,15/10/2013,1055480-1,6.18,2100397 - Danes of Colchester Ltd,DRY CLEANING FOR THEATRE
Tendring DC,http://statistics.data.gov.uk/id/local-authority-district/22UN,Life Opportunities,8540 - Leisure Centre Clacton,4400 - Maintenance Under Service Agreements,08/10/2013,1055333-1,72.88,2107840 - Digital Office Systems Ltd,COPIES TO 20-9-13
Tendring DC,http://statistics.data.gov.uk/id/local-authority-district/22UN,Life Opportunities,5800 - Brightlingsea Sports Centre,4080 - Materials & Consumables,01/10/2013,7700608-1,125.61,2112697 - Direct Global Solutions Ltd,GLOBAL SOLUTIONS LIMITED
Tendring DC,http://statistics.data.gov.uk/id/local-authority-district/22UN,Life Opportunities,5480 - HRA - Repair & Maintenance,2018 - Other Responsive Repairs,15/10/2013,2111575-1,80,REDACTED PERSONAL DATA,REDACTED PERSONAL DATA
Tendring DC,http://statistics.data.gov.uk/id/local-authority-district/22UN,Life Opportunities,5140 - Homelessness,4683 - Other Homelessness Expenses,04/10/2013,2111699-1,385.71,REDACTED PERSONAL DATA,REDACTED PERSONAL DATA
Tendring DC,http://statistics.data.gov.uk/id/local-authority-district/22UN,Life Opportunities,H920 - Disabled Facilities Grants,C400 - Grant payments,08/10/2013,1055354-1,750,REDACTED PERSONAL DATA,REDACTED PERSONAL DATA
Tendring DC,http://statistics.data.gov.uk/id/local-authority-district/22UN,Life Opportunities,H920 - Disabled Facilities Grants,C400 - Grant payments,15/10/2013,1055517-1,750,REDACTED PERSONAL DATA,REDACTED PERSONAL DATA
Tendring DC,http://statistics.data.gov.uk/id/local-authority-district/22UN,Life Opportunities,5820 - Harwich Sports Centre,4597 - Hired Services - Payments to Contractors,15/10/2013,2111718-1,75,2112824 - Dynamic Stability,Pilates Classes
Tendring DC,http://statistics.data.gov.uk/id/local-authority-district/22UN,Life Opportunities,5860 - Manningtree Sports Centre,4597 - Hired Services - Payments to Contractors,15/10/2013,2111726-1,75,2112824 - Dynamic Stability,Pilates Instructor x 3 Hours
Tendring DC,http://statistics.data.gov.uk/id/local-authority-district/22UN,Life Opportunities,5480 - HRA - Repair & Maintenance,2304 - Energy Costs - Electricity,01/10/2013,1055176-1,10.1,REDACTED PERSONAL DATA,REDACTED PERSONAL DATA
Tendring DC,http://statistics.data.gov.uk/id/local-authority-district/22UN,Life Opportunities,6740 - Careline,2304 - Energy Costs - Electricity,22/10/2013,1055714-1,34.8,2107521 - E.On,EON-JULY TO SEPT 13
Tendring DC,http://statistics.data.gov.uk/id/local-authority-district/22UN,Life Opportunities,6740 - Careline,2304 - Energy Costs - Electricity,22/10/2013,1055714-2,33.51,2107521 - E.On,EON-JULY TO SEPT 13
Tendring DC,http://statistics.data.gov.uk/id/local-authority-district/22UN,Life Opportunities,H825 - Refurbishment of Door Entry Systems,C200 - Main Contractor,22/10/2013,1055609-1,175,REDACTED PERSONAL DATA,REDACTED PERSONAL DATA
Tendring DC,http://statistics.data.gov.uk/id/local-authority-district/22UN,Life Opportunities,5480 - HRA - Repair & Maintenance,2072 - Planned Partial Refurbishment To Electrical Instal,22/10/2013,1055610-1,160,REDACTED PERSONAL DATA,REDACTED PERSONAL DATA
Tendring DC,http://statistics.data.gov.uk/id/local-authority-district/22UN,Life Opportunities,H860 - Disabled Adaptations,C200 - Main Contractor,22/10/2013,1055611-1,175,2110229 - East Coast Electrical Contractors Ltd,INSTALLATION OF DOOR ENTRY SYSTEM
Tendring DC,http://statistics.data.gov.uk/id/local-authority-district/22UN,Life Opportunities,5480 - HRA - Repair & Maintenance,2071 - Electric Installation Testing,22/10/2013,2111856-1,300,2110229 - East Coast Electrical Contractors Ltd,12 Colchester Rd
Tendring DC,http://statistics.data.gov.uk/id/local-authority-district/22UN,Life Opportunities,H810 - Electrical Re-wiring,C200 - Main Contractor,22/10/2013,2111857-1,2400,2110229 - East Coast Electrical Contractors Ltd,12 Colchester Road
Tendring DC,http://statistics.data.gov.uk/id/local-authority-district/22UN,Life Opportunities,8540 - Leisure Centre Clacton,4081 - Chemicals,08/10/2013,1055334-1,66.5,2100433 - East Essex Pool Care,ACID
Tendring DC,http://statistics.data.gov.uk/id/local-authority-district/22UN,Life Opportunities,8540 - Leisure Centre Clacton,4081 - Chemicals,08/10/2013,1055369-1,360,2100433 - East Essex Pool Care,POOL CHEMICALS
Tendring DC,http://statistics.data.gov.uk/id/local-authority-district/22UN,Life Opportunities,8540 - Leisure Centre Clacton,4081 - Chemicals,08/10/2013,1055370-1,205.4,2100433 - East Essex Pool Care,SPA CHEMICALS
Tendring DC,http://statistics.data.gov.uk/id/local-authority-district/22UN,Life Opportunities,8540 - Leisure Centre Clacton,4081 - Chemicals,08/10/2013,1055371-1,75.9,2100433 - East Essex Pool Care,POOL CHEMICALS
Tendring DC,http://statistics.data.gov.uk/id/local-authority-district/22UN,Life Opportunities,8530 - Brightlingsea Swimming Pool,4081 - Chemicals,08/10/2013,1055372-1,406.3,2100433 - East Essex Pool Care,BSP CHEMICALS
Tendring DC,http://statistics.data.gov.uk/id/local-authority-district/22UN,Life Opportunities,8530 - Brightlingsea Swimming Pool,4081 - Chemicals,08/10/2013,1055373-1,205.4,2100433 - East Essex Pool Care,BSP CHEMICALS
Tendring DC,http://statistics.data.gov.uk/id/local-authority-district/22UN,Life Opportunities,8530 - Brightlingsea Swimming Pool,4081 - Chemicals,08/10/2013,1055374-1,166.25,2100433 - East Essex Pool Care,BSP CHEMICALS
Tendring DC,http://statistics.data.gov.uk/id/local-authority-district/22UN,Life Opportunities,1880 - Office Accommodation Expenses,2100 - Building Repairs,08/10/2013,1055297-1,5593,2100478 - East of England Ambulance Service NHS Trust,AMBULANCE FOR 2013 AIR SHOW
Tendring DC,http://statistics.data.gov.uk/id/local-authority-district/22UN,Life Opportunities,7560 - Tourism Publications,4668 - Production Expenses,01/10/2013,2111468-1,20,2100404 - Easy Tigernet,Create JPG Image for Airshow
Tendring DC,http://statistics.data.gov.uk/id/local-authority-district/22UN,Life Opportunities,1090 - Chief Executive and Support Service Unit,4400 - Maintenance Under Service Agreements,15/10/2013,2111736-1,30.44,2102826 - Eden Springs UK Ltd,
Tendring DC,http://statistics.data.gov.uk/id/local-authority-district/22UN,Life Opportunities,1880 - Office Accommodation Expenses,2304 - Energy Costs - Electricity,15/10/2013,1055448-1,4013.4,2105146 - EDF Energy 1 Ltd,EDF TOWN HALL-SEP 13
Tendring DC,http://statistics.data.gov.uk/id/local-authority-district/22UN,Life Opportunities,6160 - Princes Theatre,2304 - Energy Costs - Electricity,15/10/2013,1055448-2,445.93,2105146 - EDF Energy 1 Ltd,EDF TOWN HALL-SEP 13
Tendring DC,http://statistics.data.gov.uk/id/local-authority-district/22UN,Life Opportunities,8510 - Dovercourt Swimming Pool & All Weather Facilities,2304 - Energy Costs - Electricity,15/10/2013,2111615-1,2676.75,REDACTED PERSONAL DATA,REDACTED PERSONAL DATA
Tendring DC,http://statistics.data.gov.uk/id/local-authority-district/22UN,Life Opportunities,8520 - Frinton & Walton Swimming Pool,4000 - Furniture,01/10/2013,2111439-1,198.75,REDACTED PERSONAL DATA,REDACTED PERSONAL DATA
Tendring DC,http://statistics.data.gov.uk/id/local-authority-district/22UN,Life Opportunities,5440 - HRA - Communal Electricity,2304 - Energy Costs - Electricity,15/10/2013,2111661-1,25.39,2107644 - Eon,TV Amps 1/7/13 - 30/9/13
Tendring DC,http://statistics.data.gov.uk/id/local-authority-district/22UN,Life Opportunities,5480 - HRA - Repair & Maintenance,2060 - Fire Fighting Equipment Repairs,08/10/2013,1055207-1,121.7,2100531 - Euro-Fire Ltd,CROOKED ELMS
Tendring DC,http://statistics.data.gov.uk/id/local-authority-district/22UN,Life Opportunities,5480 - HRA - Repair & Maintenance,2057 - Fire Alarms Servicing,08/10/2013,1055349-1,110,2108583 - Firesite,CROOKED ELMS
Tendring DC,http://statistics.data.gov.uk/id/local-authority-district/22UN,Life Opportunities,5480 - HRA - Repair & Maintenance,2057 - Fire Alarms Servicing,08/10/2013,1055350-1,135,2108583 - Firesite,SPENDELLS HOUSE
Tendring DC,http://statistics.data.gov.uk/id/local-authority-district/22UN,Life Opportunities,5480 - HRA - Repair & Maintenance,2057 - Fire Alarms Servicing,08/10/2013,1055351-1,110,2108583 - Firesite,ST MARYS COURT
Tendring DC,http://statistics.data.gov.uk/id/local-authority-district/22UN,Life Opportunities,5480 - HRA - Repair & Maintenance,2058 - Fire Alarms Repairs,22/10/2013,1055646-1,95,2108583 - Firesite,GROOM HOUSE
Tendring DC,http://statistics.data.gov.uk/id/local-authority-district/22UN,Life Opportunities,5480 - HRA - Repair & Maintenance,2058 - Fire Alarms Repairs,15/10/2013,2111569-1,495,REDACTED PERSONAL DATA,REDACTED PERSONAL DATA
Tendring DC,http://statistics.data.gov.uk/id/local-authority-district/22UN,Life Opportunities,5480 - HRA - Repair & Maintenance,2058 - Fire Alarms Repairs,15/10/2013,2111774-1,50,2108583 - Firesite,Kate Daniels House
Tendring DC,http://statistics.data.gov.uk/id/local-authority-district/22UN,Life Opportunities,7600 - Tourist Information Centres,9356 - Commission Sales,08/10/2013,1055258-1,3168,2103743 - First Essex Buses Ltd,Sep-13
Tendring DC,http://statistics.data.gov.uk/id/local-authority-district/22UN,Life Opportunities,5480 - HRA - Repair & Maintenance,2089 - Sewer Repairs,01/10/2013,2111497-1,230,REDACTED PERSONAL DATA,REDACTED PERSONAL DATA
Tendring DC,http://statistics.data.gov.uk/id/local-authority-district/22UN,Life Opportunities,"1580 - Benefits, Revenues and Customer Contact SU",4635 - Cash Collection Contract,01/10/2013,1055185-1,2.33,2101233 - G4S Cash Services (UK) Limited,CASH/BULK CASH 1.8.13-30.8.13
Tendring DC,http://statistics.data.gov.uk/id/local-authority-district/22UN,Life Opportunities,H920 - Disabled Facilities Grants,C400 - Grant payments,15/10/2013,1055421-1,4910.88,REDACTED PERSONAL DATA,REDACTED PERSONAL DATA
Tendring DC,http://statistics.data.gov.uk/id/local-authority-district/22UN,Life Opportunities,6740 - Careline,4040 - Equipment & Tools,22/10/2013,1055713-1,163.6,2101874 - GBS,GBS-BATTERIES
Tendring DC,http://statistics.data.gov.uk/id/local-authority-district/22UN,Life Opportunities,1860 - Depots General,4632 - Security,08/10/2013,1055237-1,35,2100546 - GCS Alarms,GCS ALARMS-NORTHBOURNE
Tendring DC,http://statistics.data.gov.uk/id/local-authority-district/22UN,Life Opportunities,1880 - Office Accommodation Expenses,4632 - Security,08/10/2013,1055238-1,203.5,2100546 - GCS Alarms,GCS ALARMS-CCTV HOUSING
Tendring DC,http://statistics.data.gov.uk/id/local-authority-district/22UN,Life Opportunities,8540 - Leisure Centre Clacton,2100 - Building Repairs,08/10/2013,1055380-1,88.5,2100546 - GCS Alarms,REPLACE BREAKGLASS SPA
Tendring DC,http://statistics.data.gov.uk/id/local-authority-district/22UN,Life Opportunities,8540 - Leisure Centre Clacton,2100 - Building Repairs,08/10/2013,1055381-1,220.75,2100546 - GCS Alarms,CALLPOINTS IN SPA
Tendring DC,http://statistics.data.gov.uk/id/local-authority-district/22UN,Life Opportunities,8540 - Leisure Centre Clacton,2100 - Building Repairs,08/10/2013,1055382-1,139,2100546 - GCS Alarms,INTRUDER FAULT CANTEEN
Tendring DC,http://statistics.data.gov.uk/id/local-authority-district/22UN,Life Opportunities,8540 - Leisure Centre Clacton,2100 - Building Repairs,08/10/2013,1055383-1,100,2100546 - GCS Alarms,FAULTY SMOKE HEAD IN SPA
Tendring DC,http://statistics.data.gov.uk/id/local-authority-district/22UN,Life Opportunities,8540 - Leisure Centre Clacton,2100 - Building Repairs,08/10/2013,1055384-1,55,2100546 - GCS Alarms,CALLPOINT FAULT
Tendring DC,http://statistics.data.gov.uk/id/local-authority-district/22UN,Life Opportunities,5860 - Manningtree Sports Centre,2100 - Building Repairs,15/10/2013,2111598-1,105,2100546 - GCS Alarms,Fix Faire Alarm
Tendring DC,http://statistics.data.gov.uk/id/local-authority-district/22UN,Life Opportunities,7620 - Air Show,4094 - Other Equipment Hire/Leasing,22/10/2013,2111868-1,663,2100546 - GCS Alarms,Supply Radios for Air Show 13
Tendring DC,http://statistics.data.gov.uk/id/local-authority-district/22UN,Life Opportunities,5480 - HRA - Repair & Maintenance,2018 - Other Responsive Repairs,01/10/2013,2111498-1,26.5,REDACTED PERSONAL DATA,REDACTED PERSONAL DATA
Tendring DC,http://statistics.data.gov.uk/id/local-authority-district/22UN,Life Opportunities,5140 - Homelessness,4683 - Other Homelessness Expenses,22/10/2013,2111895-1,275,REDACTED PERSONAL DATA,REDACTED PERSONAL DATA
Tendring DC,http://statistics.data.gov.uk/id/local-authority-district/22UN,Life Opportunities,1880 - Office Accommodation Expenses,4446 - Bulk Bin Collection,15/10/2013,1055451-1,39.72,2111348 - Green Recycling Ltd,GREEN RECYLING-TOWN HALL (OCT)
Tendring DC,http://statistics.data.gov.uk/id/local-authority-district/22UN,Life Opportunities,1880 - Office Accommodation Expenses,4446 - Bulk Bin Collection,15/10/2013,1055452-1,39.72,2111348 - Green Recycling Ltd,GREEN RECYCLING-CTAX (OCT)
Tendring DC,http://statistics.data.gov.uk/id/local-authority-district/22UN,Life Opportunities,1880 - Office Accommodation Expenses,4446 - Bulk Bin Collection,15/10/2013,1055453-1,39.72,2111348 - Green Recycling Ltd,GREEN RECYCLING-WEELEY (OCT)
Tendring DC,http://statistics.data.gov.uk/id/local-authority-district/22UN,Life Opportunities,6160 - Princes Theatre,4105 - Bar/Catering Expenses,08/10/2013,1055228-1,655.92,2112641 - Greene King Brewing and Retailing Ltd,BAR SUPPLIES
Tendring DC,http://statistics.data.gov.uk/id/local-authority-district/22UN,Life Opportunities,5480 - HRA - Repair & Maintenance,2017 - Mechanical Equipment /Extract Fans,22/10/2013,1055600-1,60,2106272 - Greenleaf Pest Control Services,WASP NEST@GREENFIELDS
Tendring DC,http://statistics.data.gov.uk/id/local-authority-district/22UN,Life Opportunities,1880 - Office Accommodation Expenses,2100 - Building Repairs,22/10/2013,2111872-1,90,2106272 - Greenleaf Pest Control Services,Pest Control Visit to Weeley
Tendring DC,http://statistics.data.gov.uk/id/local-authority-district/22UN,Life Opportunities,1880 - Office Accommodation Expenses,2100 - Building Repairs,22/10/2013,2111873-1,190,2106272 - Greenleaf Pest Control Services,Flea Spray @ CT Office Sept 13
Tendring DC,http://statistics.data.gov.uk/id/local-authority-district/22UN,Life Opportunities,5860 - Manningtree Sports Centre,4040 - Equipment & Tools,01/10/2013,2111501-1,163.95,2111983 - Gymnova (UK) Ltd,Gymnastics Training Beam
Tendring DC,http://statistics.data.gov.uk/id/local-authority-district/22UN,Life Opportunities,H860 - Disabled Adaptations,C200 - Main Contractor,22/10/2013,1055565-1,5543,REDACTED PERSONAL DATA,REDACTED PERSONAL DATA
Tendring DC,http://statistics.data.gov.uk/id/local-authority-district/22UN,Life Opportunities,H920 - Disabled Facilities Grants,C401 - Loan,22/10/2013,1055534-1,375,REDACTED PERSONAL DATA,REDACTED PERSONAL DATA
Tendring DC,http://statistics.data.gov.uk/id/local-authority-district/22UN,Life Opportunities,5240 - HRA - Managing Tenancies,5242 - Tenant Relations,15/10/2013,2111671-1,12,2100604 - Harwich Taxis,Transport from Belmans Court to Crooked Elms
Tendring DC,http://statistics.data.gov.uk/id/local-authority-district/22UN,Life Opportunities,5240 - HRA - Managing Tenancies,5242 - Tenant Relations,15/10/2013,2111672-1,140,2100604 - Harwich Taxis,Transport on 27/9/13 Harwich Taxis
Tendring DC,http://statistics.data.gov.uk/id/local-authority-district/22UN,Life Opportunities,5240 - HRA - Managing Tenancies,5242 - Tenant Relations,15/10/2013,2111673-1,260,2100604 - Harwich Taxis,Harwich to GT Yarmouth 19/9/13 Harwich taxis
Tendring DC,http://statistics.data.gov.uk/id/local-authority-district/22UN,Life Opportunities,7600 - Tourist Information Centres,9356 - Commission Sales,15/10/2013,2111660-1,277.68,2103622 - Hedingham & District Omnibuses Ltd,Tickets for Southend
Tendring DC,http://statistics.data.gov.uk/id/local-authority-district/22UN,Life Opportunities,8540 - Leisure Centre Clacton,5160 - Advertising,28/10/2013,2112043-1,52,REDACTED PERSONAL DATA,REDACTED PERSONAL DATA
Tendring DC,http://statistics.data.gov.uk/id/local-authority-district/22UN,Life Opportunities,"1580 - Benefits, Revenues and Customer Contact SU",4466 - Land Registry Fees,08/10/2013,2111842-1,309,2100636 - HM Land Registry,Sep-13
Tendring DC,http://statistics.data.gov.uk/id/local-authority-district/22UN,Life Opportunities,5240 - HRA - Managing Tenancies,5249 - Housing ASB Expenses,22/10/2013,1055634-1,110,2100661 - HMCTS,APPLICATION FOR POSSESSION WARRANT
Tendring DC,http://statistics.data.gov.uk/id/local-authority-district/22UN,Life Opportunities,5240 - HRA - Managing Tenancies,5249 - Housing ASB Expenses,22/10/2013,1055635-1,110,2100661 - HMCTS,APPLICATION FOR POSSESSION WARRANT
Tendring DC,http://statistics.data.gov.uk/id/local-authority-district/22UN,Life Opportunities,5240 - HRA - Managing Tenancies,5249 - Housing ASB Expenses,22/10/2013,1055636-1,110,2100661 - HMCTS,APPLICATION FOR POSSESSION WARRANT
Tendring DC,http://statistics.data.gov.uk/id/local-authority-district/22UN,Life Opportunities,5240 - HRA - Managing Tenancies,5249 - Housing ASB Expenses,22/10/2013,1055637-1,110,2100661 - HMCTS,APPLICATION FOR POSSESSION WARRANT
Tendring DC,http://statistics.data.gov.uk/id/local-authority-district/22UN,Life Opportunities,5240 - HRA - Managing Tenancies,5249 - Housing ASB Expenses,22/10/2013,1055638-1,175,2100661 - HMCTS,CLAIM FOR POSSESSION
Tendring DC,http://statistics.data.gov.uk/id/local-authority-district/22UN,Life Opportunities,5240 - HRA - Managing Tenancies,5249 - Housing ASB Expenses,22/10/2013,1055639-1,175,2100661 - HMCTS,CLAIM FOR POSSESSION
Tendring DC,http://statistics.data.gov.uk/id/local-authority-district/22UN,Life Opportunities,5240 - HRA - Managing Tenancies,5249 - Housing ASB Expenses,22/10/2013,1055640-1,175,2100661 - HMCTS,CLAIM FOR POSSESSION
Tendring DC,http://statistics.data.gov.uk/id/local-authority-district/22UN,Life Opportunities,5240 - HRA - Managing Tenancies,5249 - Housing ASB Expenses,22/10/2013,1055641-1,175,2100661 - HMCTS,CLAIM FOR POSSESSION
Tendring DC,http://statistics.data.gov.uk/id/local-authority-district/22UN,Life Opportunities,8510 - Dovercourt Swimming Pool & All Weather Facilities,2100 - Building Repairs,15/10/2013,2111614-1,30,REDACTED PERSONAL DATA,REDACTED PERSONAL DATA
Tendring DC,http://statistics.data.gov.uk/id/local-authority-district/22UN,Life Opportunities,H920 - Disabled Facilities Grants,C400 - Grant payments,22/10/2013,1055525-1,2775,REDACTED PERSONAL DATA,REDACTED PERSONAL DATA
Tendring DC,http://statistics.data.gov.uk/id/local-authority-district/22UN,Life Opportunities,8520 - Frinton & Walton Swimming Pool,2100 - Building Repairs,22/10/2013,1055571-1,225,2101848 - Homecraft Contracts Ltd,FWSP-REPAIRS
Tendring DC,http://statistics.data.gov.uk/id/local-authority-district/22UN,Life Opportunities,5260 - HRA - Rent Collection And Accounting,4757 - IT External Charges,15/10/2013,2111565-1,33,2111338 - Housing Partners Limited,Properties Advertised July Sept
Tendring DC,http://statistics.data.gov.uk/id/local-authority-district/22UN,Life Opportunities,6740 - Careline,1700 - Training - Courses,15/10/2013,1055473-1,199,2102449 - HQN Ltd,RENT & INCOME EXCELLENCE NETWORK ANNUAL SUMMIT
Tendring DC,http://statistics.data.gov.uk/id/local-authority-district/22UN,Life Opportunities,5800 - Brightlingsea Sports Centre,1180 - Instructors / Coaches Fee,15/10/2013,2111727-1,60,2113090 - HRC All Stars,3 hrs Zumba Instructors B'Sea
Tendring DC,http://statistics.data.gov.uk/id/local-authority-district/22UN,Life Opportunities,5480 - HRA - Repair & Maintenance,2014 - Decoration Allowances,22/10/2013,1055612-1,106.98,2109778 - ICI Contract Direct,DECORATING VOUCHERS SEPT 2013
Tendring DC,http://statistics.data.gov.uk/id/local-authority-district/22UN,Life Opportunities,1880 - Office Accommodation Expenses,4666 - Hygiene Services,22/10/2013,2111948-1,15,2104976 - Initial Washroom Solutions,Initial 28/10 - 27/11/13
Tendring DC,http://statistics.data.gov.uk/id/local-authority-district/22UN,Life Opportunities,1860 - Depots General,4666 - Hygiene Services,22/10/2013,2111948-2,7.5,2104976 - Initial Washroom Solutions,Initial 28/10 - 27/11/13
Tendring DC,http://statistics.data.gov.uk/id/local-authority-district/22UN,Life Opportunities,1880 - Office Accommodation Expenses,4666 - Hygiene Services,22/10/2013,2111948-3,15,2104976 - Initial Washroom Solutions,Initial 28/10 - 27/11/13
Tendring DC,http://statistics.data.gov.uk/id/local-authority-district/22UN,Life Opportunities,1880 - Office Accommodation Expenses,4666 - Hygiene Services,22/10/2013,2111948-4,83.75,2104976 - Initial Washroom Solutions,Initial 28/10 - 27/11/13
Tendring DC,http://statistics.data.gov.uk/id/local-authority-district/22UN,Life Opportunities,4820 - Public Conveniences,4080 - Materials & Consumables,22/10/2013,2111948-5,103.75,2104976 - Initial Washroom Solutions,Initial 28/10 - 27/11/13
Tendring DC,http://statistics.data.gov.uk/id/local-authority-district/22UN,Life Opportunities,1880 - Office Accommodation Expenses,4666 - Hygiene Services,22/10/2013,2111948-6,7.5,2104976 - Initial Washroom Solutions,Initial 28/10 - 27/11/13
Tendring DC,http://statistics.data.gov.uk/id/local-authority-district/22UN,Life Opportunities,H810 - Electrical Re-wiring,C200 - Main Contractor,22/10/2013,2111855-1,35,2105202 - International Soft Furnishers,Crooked Elms
Tendring DC,http://statistics.data.gov.uk/id/local-authority-district/22UN,Life Opportunities,6740 - Careline,4448 - Confidential Waste,15/10/2013,2111585-1,16.45,2110936 - IPPlus (UK) Ltd,Shredding Collection 9/9/13
Tendring DC,http://statistics.data.gov.uk/id/local-authority-district/22UN,Life Opportunities,1880 - Office Accommodation Expenses,4448 - Confidential Waste,22/10/2013,2111848-1,110.45,2110936 - IPPlus (UK) Ltd,Town hall 27 CT20
Tendring DC,http://statistics.data.gov.uk/id/local-authority-district/22UN,Life Opportunities,8540 - Leisure Centre Clacton,4000 - Furniture,08/10/2013,1055375-1,173.15,2100755 - J P Lennard Ltd,HAIR DRYER
Tendring DC,http://statistics.data.gov.uk/id/local-authority-district/22UN,Life Opportunities,8520 - Frinton & Walton Swimming Pool,4000 - Furniture,01/10/2013,2111440-1,98.1,REDACTED PERSONAL DATA,REDACTED PERSONAL DATA
Tendring DC,http://statistics.data.gov.uk/id/local-authority-district/22UN,Life Opportunities,8520 - Frinton & Walton Swimming Pool,5300 - Resaleable Items,01/10/2013,2111462-1,57.56,2100755 - J P Lennard Ltd,Frinton Pool CAPS
Tendring DC,http://statistics.data.gov.uk/id/local-authority-district/22UN,Life Opportunities,8520 - Frinton & Walton Swimming Pool,5300 - Resaleable Items,15/10/2013,2111551-1,20.87,2100755 - J P Lennard Ltd,FWSP - Saleables
Tendring DC,http://statistics.data.gov.uk/id/local-authority-district/22UN,Life Opportunities,8520 - Frinton & Walton Swimming Pool,5300 - Resaleable Items,15/10/2013,2111551-2,403.32,2100755 - J P Lennard Ltd,FWSP - Saleables
Tendring DC,http://statistics.data.gov.uk/id/local-authority-district/22UN,Life Opportunities,5800 - Brightlingsea Sports Centre,4000 - Furniture,15/10/2013,2111666-1,196.64,REDACTED PERSONAL DATA,REDACTED PERSONAL DATA
Tendring DC,http://statistics.data.gov.uk/id/local-authority-district/22UN,Life Opportunities,5800 - Brightlingsea Sports Centre,4080 - Materials & Consumables,01/10/2013,7700609-1,39.3,2100755 - J P Lennard Ltd,J P LENNARD
Tendring DC,http://statistics.data.gov.uk/id/local-authority-district/22UN,Life Opportunities,5800 - Brightlingsea Sports Centre,4080 - Materials & Consumables,01/10/2013,7700610-1,91.84,2100755 - J P Lennard Ltd,J P LENNARD
Tendring DC,http://statistics.data.gov.uk/id/local-authority-district/22UN,Life Opportunities,5800 - Brightlingsea Sports Centre,4000 - Furniture,01/10/2013,7700612-1,50.7,2100755 - J P Lennard Ltd,J P LENNARD
Tendring DC,http://statistics.data.gov.uk/id/local-authority-district/22UN,Life Opportunities,5800 - Brightlingsea Sports Centre,4000 - Furniture,15/10/2013,2111611-1,187.5,REDACTED PERSONAL DATA,REDACTED PERSONAL DATA
Tendring DC,http://statistics.data.gov.uk/id/local-authority-district/22UN,Life Opportunities,1240 - Housing Services Service Unit,3302 - Car Allowances - Officers,15/10/2013,1055423-1,44,REDACTED PERSONAL DATA,REDACTED PERSONAL DATA
Tendring DC,http://statistics.data.gov.uk/id/local-authority-district/22UN,Life Opportunities,1240 - Housing Services Service Unit,3302 - Car Allowances - Officers,22/10/2013,1055522-1,22,REDACTED PERSONAL DATA,REDACTED PERSONAL DATA
Tendring DC,http://statistics.data.gov.uk/id/local-authority-district/22UN,Life Opportunities,5140 - Homelessness,4683 - Other Homelessness Expenses,15/10/2013,2111775-1,385.71,REDACTED PERSONAL DATA,REDACTED PERSONAL DATA
Tendring DC,http://statistics.data.gov.uk/id/local-authority-district/22UN,Life Opportunities,H920 - Disabled Facilities Grants,C401 - Loan,15/10/2013,1055422-1,5938.2,REDACTED PERSONAL DATA,REDACTED PERSONAL DATA
Tendring DC,http://statistics.data.gov.uk/id/local-authority-district/22UN,Life Opportunities,5480 - HRA - Repair & Maintenance,2064 - Domestic Appliance Repairs,08/10/2013,1055221-1,25,REDACTED PERSONAL DATA,REDACTED PERSONAL DATA
Tendring DC,http://statistics.data.gov.uk/id/local-authority-district/22UN,Life Opportunities,5480 - HRA - Repair & Maintenance,2064 - Domestic Appliance Repairs,08/10/2013,1055222-1,25,REDACTED PERSONAL DATA,REDACTED PERSONAL DATA
Tendring DC,http://statistics.data.gov.uk/id/local-authority-district/22UN,Life Opportunities,5480 - HRA - Repair & Maintenance,2064 - Domestic Appliance Repairs,01/10/2013,2111360-1,60,REDACTED PERSONAL DATA,REDACTED PERSONAL DATA
Tendring DC,http://statistics.data.gov.uk/id/local-authority-district/22UN,Life Opportunities,5480 - HRA - Repair & Maintenance,2064 - Domestic Appliance Repairs,01/10/2013,2111361-1,60,REDACTED PERSONAL DATA,REDACTED PERSONAL DATA
Tendring DC,http://statistics.data.gov.uk/id/local-authority-district/22UN,Life Opportunities,5480 - HRA - Repair & Maintenance,2064 - Domestic Appliance Repairs,01/10/2013,2111362-1,60,REDACTED PERSONAL DATA,REDACTED PERSONAL DATA
Tendring DC,http://statistics.data.gov.uk/id/local-authority-district/22UN,Life Opportunities,5480 - HRA - Repair & Maintenance,2064 - Domestic Appliance Repairs,01/10/2013,2111363-1,60,REDACTED PERSONAL DATA,REDACTED PERSONAL DATA
Tendring DC,http://statistics.data.gov.uk/id/local-authority-district/22UN,Life Opportunities,5480 - HRA - Repair & Maintenance,2064 - Domestic Appliance Repairs,01/10/2013,2111364-1,30,REDACTED PERSONAL DATA,REDACTED PERSONAL DATA
Tendring DC,http://statistics.data.gov.uk/id/local-authority-district/22UN,Life Opportunities,5480 - HRA - Repair & Maintenance,2064 - Domestic Appliance Repairs,01/10/2013,2111365-1,30,2112159 - Justins Domestic Appliance Repairs,Honeycroft
Tendring DC,http://statistics.data.gov.uk/id/local-authority-district/22UN,Life Opportunities,5480 - HRA - Repair & Maintenance,2064 - Domestic Appliance Repairs,01/10/2013,2111366-1,30,2112159 - Justins Domestic Appliance Repairs,Kate Daniels
Tendring DC,http://statistics.data.gov.uk/id/local-authority-district/22UN,Life Opportunities,5480 - HRA - Repair & Maintenance,2064 - Domestic Appliance Repairs,01/10/2013,2111367-1,30,2112159 - Justins Domestic Appliance Repairs,Crooked Elms
Tendring DC,http://statistics.data.gov.uk/id/local-authority-district/22UN,Life Opportunities,5480 - HRA - Repair & Maintenance,2064 - Domestic Appliance Repairs,01/10/2013,2111368-1,60,2112159 - Justins Domestic Appliance Repairs,Belmans Court
Tendring DC,http://statistics.data.gov.uk/id/local-authority-district/22UN,Life Opportunities,5480 - HRA - Repair & Maintenance,2064 - Domestic Appliance Repairs,01/10/2013,2111369-1,30,2112159 - Justins Domestic Appliance Repairs,Spendells House
Tendring DC,http://statistics.data.gov.uk/id/local-authority-district/22UN,Life Opportunities,1880 - Office Accommodation Expenses,2100 - Building Repairs,22/10/2013,1055555-1,75,2111266 - JW Plumbing and Heating,NEW TAPS IN TOWN HALL
Tendring DC,http://statistics.data.gov.uk/id/local-authority-district/22UN,Life Opportunities,1880 - Office Accommodation Expenses,2100 - Building Repairs,22/10/2013,1055555-2,95,2111266 - JW Plumbing and Heating,NEW TAPS IN TOWN HALL
Tendring DC,http://statistics.data.gov.uk/id/local-authority-district/22UN,Life Opportunities,1880 - Office Accommodation Expenses,2100 - Building Repairs,22/10/2013,1055556-1,75,2111266 - JW Plumbing and Heating,REPLACE TAPS IN TOWN HALL
Tendring DC,http://statistics.data.gov.uk/id/local-authority-district/22UN,Life Opportunities,1880 - Office Accommodation Expenses,2100 - Building Repairs,22/10/2013,1055556-2,50,2111266 - JW Plumbing and Heating,REPLACE TAPS IN TOWN HALL
Tendring DC,http://statistics.data.gov.uk/id/local-authority-district/22UN,Life Opportunities,H860 - Disabled Adaptations,C200 - Main Contractor,15/10/2013,2111566-1,1494,REDACTED PERSONAL DATA,REDACTED PERSONAL DATA
Tendring DC,http://statistics.data.gov.uk/id/local-authority-district/22UN,Life Opportunities,H860 - Disabled Adaptations,C200 - Main Contractor,15/10/2013,2111566-2,1485,REDACTED PERSONAL DATA,REDACTED PERSONAL DATA
Tendring DC,http://statistics.data.gov.uk/id/local-authority-district/22UN,Life Opportunities,8520 - Frinton & Walton Swimming Pool,2100 - Building Repairs,15/10/2013,1055410-1,60,2100758 - K A Hockley Ltd,FWSP-REPAIRS
Tendring DC,http://statistics.data.gov.uk/id/local-authority-district/22UN,Life Opportunities,6160 - Princes Theatre,4105 - Bar/Catering Expenses,08/10/2013,1055343-1,29.5,2103413 - K H Catering Equipment Hire,HIRE OF WINE GLASSES
Tendring DC,http://statistics.data.gov.uk/id/local-authority-district/22UN,Life Opportunities,6160 - Princes Theatre,4080 - Materials & Consumables,08/10/2013,1055344-1,253.5,2103413 - K H Catering Equipment Hire,TABLES CHAIRS & CLOTHS
Tendring DC,http://statistics.data.gov.uk/id/local-authority-district/22UN,Life Opportunities,5140 - Homelessness,4683 - Other Homelessness Expenses,15/10/2013,2111698-1,435,REDACTED PERSONAL DATA,REDACTED PERSONAL DATA
Tendring DC,http://statistics.data.gov.uk/id/local-authority-district/22UN,Life Opportunities,5140 - Homelessness,4683 - Other Homelessness Expenses,22/10/2013,2111898-1,435,REDACTED PERSONAL DATA,REDACTED PERSONAL DATA
Tendring DC,http://statistics.data.gov.uk/id/local-authority-district/22UN,Life Opportunities,1565 - Careline / CCTV Service Unit,3302 - Car Allowances - Officers,15/10/2013,2111712-1,8,2112682 - K Williams,Career Track Mileage
Tendring DC,http://statistics.data.gov.uk/id/local-authority-district/22UN,Life Opportunities,6355 - Community Activity Network,4597 - Hired Services - Payments to Contractors,01/10/2013,1055177-1,200,2104322 - Kirby Tennis Club,tennis coaching
Tendring DC,http://statistics.data.gov.uk/id/local-authority-district/22UN,Life Opportunities,5860 - Manningtree Sports Centre,4601 - Hired services - Cleaning,01/10/2013,2111478-1,63.75,2100851 - KO-SHEEN Contract Cleaning Ltd,Contract Cleaning Aug
Tendring DC,http://statistics.data.gov.uk/id/local-authority-district/22UN,Life Opportunities,5360 - HRA - Sheltered Units,4601 - Hired services - Cleaning,15/10/2013,2111607-1,289,2100851 - KO-SHEEN Contract Cleaning Ltd,"Sept 13 Greenfields, St marys, Honeycroft, Mead"
Tendring DC,http://statistics.data.gov.uk/id/local-authority-district/22UN,Life Opportunities,5360 - HRA - Sheltered Units,4601 - Hired services - Cleaning,15/10/2013,2111608-1,221,2100851 - KO-SHEEN Contract Cleaning Ltd,Spendells Clean Sept 2013
Tendring DC,http://statistics.data.gov.uk/id/local-authority-district/22UN,Life Opportunities,5360 - HRA - Sheltered Units,4601 - Hired services - Cleaning,15/10/2013,2111609-1,588.88,2100851 - KO-SHEEN Contract Cleaning Ltd,Belmans Clean Sept 13
Tendring DC,http://statistics.data.gov.uk/id/local-authority-district/22UN,Life Opportunities,5800 - Brightlingsea Sports Centre,4000 - Furniture,15/10/2013,1055427-1,164.13,REDACTED PERSONAL DATA,REDACTED PERSONAL DATA
Tendring DC,http://statistics.data.gov.uk/id/local-authority-district/22UN,Life Opportunities,5880 - Management Of Sport & Leisure Facilities,5166 - Marketing and Promotion,22/10/2013,1055523-1,188,2110135 - L Anderson,TRX TRAINING UK
Tendring DC,http://statistics.data.gov.uk/id/local-authority-district/22UN,Life Opportunities,5240 - HRA - Managing Tenancies,4469 - Other Non - Legal Professional Services,08/10/2013,1055256-1,40,REDACTED PERSONAL DATA,REDACTED PERSONAL DATA
Tendring DC,http://statistics.data.gov.uk/id/local-authority-district/22UN,Life Opportunities,"1580 - Benefits, Revenues and Customer Contact SU",4466 - Land Registry Fees,22/10/2013,1055727-1,309,2113091 - Land Registry Commercial Services,Sep-13
Tendring DC,http://statistics.data.gov.uk/id/local-authority-district/22UN,Life Opportunities,5480 - HRA - Repair & Maintenance,2018 - Other Responsive Repairs,22/10/2013,2111854-1,2130,2112386 - Lee Bilsby Ltd,Honeycroft
Tendring DC,http://statistics.data.gov.uk/id/local-authority-district/22UN,Life Opportunities,6740 - Careline,5160 - Advertising,22/10/2013,2111941-1,290,2113080 - Lets Get Group Ltd,Lets Get Group Ltd
Tendring DC,http://statistics.data.gov.uk/id/local-authority-district/22UN,Life Opportunities,"1580 - Benefits, Revenues and Customer Contact SU",1350 - Agency Staff,01/10/2013,2111495-1,734.2,2108077 - Liberata Financial Services Ltd,Aug 13 Submissions
Tendring DC,http://statistics.data.gov.uk/id/local-authority-district/22UN,Life Opportunities,5240 - HRA - Managing Tenancies,5248 - Estate Management Expenses,22/10/2013,1055597-1,295,2107257 - Lime Legal Ltd,SOCIAL HOUSING CONFERENCE 22/11/13
Tendring DC,http://statistics.data.gov.uk/id/local-authority-district/22UN,Life Opportunities,5240 - HRA - Managing Tenancies,5248 - Estate Management Expenses,10/10/2013,1055810-1,295,REDACTED PERSONAL DATA,REDACTED PERSONAL DATA
Tendring DC,http://statistics.data.gov.uk/id/local-authority-district/22UN,Life Opportunities,8540 - Leisure Centre Clacton,9275 - Lifestyles Plus - DD,15/10/2013,1055511-1,30.83,REDACTED PERSONAL DATA,REDACTED PERSONAL DATA
Tendring DC,http://statistics.data.gov.uk/id/local-authority-district/22UN,Life Opportunities,6740 - Careline,3300 - Public Transport - Officers,22/10/2013,2111909-1,40,REDACTED PERSONAL DATA,REDACTED PERSONAL DATA
Tendring DC,http://statistics.data.gov.uk/id/local-authority-district/22UN,Life Opportunities,8540 - Leisure Centre Clacton,4400 - Maintenance Under Service Agreements,22/10/2013,1055577-1,80,2100837 - M A Williams,STOCKTAKE 6/10/13
Tendring DC,http://statistics.data.gov.uk/id/local-authority-district/22UN,Life Opportunities,5480 - HRA - Repair & Maintenance,2002 - Responsive Maintenance - Drainage,15/10/2013,2111675-1,1876.25,2107196 - Mains 'N' Drains 24-Hour Plumbing Services,Various Blockages February
Tendring DC,http://statistics.data.gov.uk/id/local-authority-district/22UN,Life Opportunities,5860 - Manningtree Sports Centre,2308 - Energy Costs - Gas (Including LPG),15/10/2013,2111721-1,1813.03,2105903 - Manningtree High School,School re-charges
Tendring DC,http://statistics.data.gov.uk/id/local-authority-district/22UN,Life Opportunities,5860 - Manningtree Sports Centre,2410 - National Non Domestic Rates,15/10/2013,2111721-2,1843.53,2105903 - Manningtree High School,School re-charges
Tendring DC,http://statistics.data.gov.uk/id/local-authority-district/22UN,Life Opportunities,5860 - Manningtree Sports Centre,2510 - Water Services - Unmetered,15/10/2013,2111721-3,1114.8,2105903 - Manningtree High School,School re-charges
Tendring DC,http://statistics.data.gov.uk/id/local-authority-district/22UN,Life Opportunities,5860 - Manningtree Sports Centre,2804 - Premises Insurance - General,15/10/2013,2111721-4,755.75,2105903 - Manningtree High School,School re-charges
Tendring DC,http://statistics.data.gov.uk/id/local-authority-district/22UN,Life Opportunities,5860 - Manningtree Sports Centre,4400 - Maintenance Under Service Agreements,15/10/2013,2111721-5,754.06,2105903 - Manningtree High School,School re-charges
Tendring DC,http://statistics.data.gov.uk/id/local-authority-district/22UN,Life Opportunities,5240 - HRA - Managing Tenancies,5242 - Tenant Relations,15/10/2013,2111674-1,110,2113137 - Manningtree Taxis,Manningtree Taxis Transport 24/9/13 - 27/9/13
Tendring DC,http://statistics.data.gov.uk/id/local-authority-district/22UN,Life Opportunities,5140 - Homelessness,4680 - Bed & Breakfast Accommodation,08/10/2013,1055218-1,140,REDACTED PERSONAL DATA,REDACTED PERSONAL DATA
Tendring DC,http://statistics.data.gov.uk/id/local-authority-district/22UN,Life Opportunities,5140 - Homelessness,9032 - Homelessness Accommodation Charges,08/10/2013,1055218-2,-16.45,REDACTED PERSONAL DATA,REDACTED PERSONAL DATA
Tendring DC,http://statistics.data.gov.uk/id/local-authority-district/22UN,Life Opportunities,5140 - Homelessness,4680 - Bed & Breakfast Accommodation,08/10/2013,1055219-1,420,REDACTED PERSONAL DATA,REDACTED PERSONAL DATA
Tendring DC,http://statistics.data.gov.uk/id/local-authority-district/22UN,Life Opportunities,5140 - Homelessness,9032 - Homelessness Accommodation Charges,08/10/2013,1055219-2,-16.45,REDACTED PERSONAL DATA,REDACTED PERSONAL DATA
Tendring DC,http://statistics.data.gov.uk/id/local-authority-district/22UN,Life Opportunities,5140 - Homelessness,4680 - Bed & Breakfast Accommodation,08/10/2013,1055220-1,140,REDACTED PERSONAL DATA,REDACTED PERSONAL DATA
Tendring DC,http://statistics.data.gov.uk/id/local-authority-district/22UN,Life Opportunities,5140 - Homelessness,9032 - Homelessness Accommodation Charges,08/10/2013,1055220-2,-16.45,REDACTED PERSONAL DATA,REDACTED PERSONAL DATA
Tendring DC,http://statistics.data.gov.uk/id/local-authority-district/22UN,Life Opportunities,5140 - Homelessness,4680 - Bed & Breakfast Accommodation,01/10/2013,2111357-1,60,REDACTED PERSONAL DATA,REDACTED PERSONAL DATA
Tendring DC,http://statistics.data.gov.uk/id/local-authority-district/22UN,Life Opportunities,5140 - Homelessness,9032 - Homelessness Accommodation Charges,01/10/2013,2111357-2,-7.05,REDACTED PERSONAL DATA,REDACTED PERSONAL DATA
Tendring DC,http://statistics.data.gov.uk/id/local-authority-district/22UN,Life Opportunities,5140 - Homelessness,4680 - Bed & Breakfast Accommodation,01/10/2013,2111358-1,140,REDACTED PERSONAL DATA,REDACTED PERSONAL DATA
Tendring DC,http://statistics.data.gov.uk/id/local-authority-district/22UN,Life Opportunities,5140 - Homelessness,9032 - Homelessness Accommodation Charges,01/10/2013,2111358-2,-16.45,REDACTED PERSONAL DATA,REDACTED PERSONAL DATA
Tendring DC,http://statistics.data.gov.uk/id/local-authority-district/22UN,Life Opportunities,5140 - Homelessness,4680 - Bed & Breakfast Accommodation,01/10/2013,2111359-1,420,REDACTED PERSONAL DATA,REDACTED PERSONAL DATA
Tendring DC,http://statistics.data.gov.uk/id/local-authority-district/22UN,Life Opportunities,5140 - Homelessness,9032 - Homelessness Accommodation Charges,01/10/2013,2111359-2,-16.45,REDACTED PERSONAL DATA,REDACTED PERSONAL DATA
Tendring DC,http://statistics.data.gov.uk/id/local-authority-district/22UN,Life Opportunities,5140 - Homelessness,4680 - Bed & Breakfast Accommodation,15/10/2013,2111755-1,20,REDACTED PERSONAL DATA,REDACTED PERSONAL DATA
Tendring DC,http://statistics.data.gov.uk/id/local-authority-district/22UN,Life Opportunities,5140 - Homelessness,9032 - Homelessness Accommodation Charges,15/10/2013,2111755-2,-2.35,REDACTED PERSONAL DATA,REDACTED PERSONAL DATA
Tendring DC,http://statistics.data.gov.uk/id/local-authority-district/22UN,Life Opportunities,5140 - Homelessness,4680 - Bed & Breakfast Accommodation,15/10/2013,2111756-1,140,REDACTED PERSONAL DATA,REDACTED PERSONAL DATA
Tendring DC,http://statistics.data.gov.uk/id/local-authority-district/22UN,Life Opportunities,5140 - Homelessness,9032 - Homelessness Accommodation Charges,15/10/2013,2111756-2,-16.45,REDACTED PERSONAL DATA,REDACTED PERSONAL DATA
Tendring DC,http://statistics.data.gov.uk/id/local-authority-district/22UN,Life Opportunities,5140 - Homelessness,4680 - Bed & Breakfast Accommodation,15/10/2013,2111757-1,420,REDACTED PERSONAL DATA,REDACTED PERSONAL DATA
Tendring DC,http://statistics.data.gov.uk/id/local-authority-district/22UN,Life Opportunities,5140 - Homelessness,9032 - Homelessness Accommodation Charges,15/10/2013,2111757-2,-16.45,REDACTED PERSONAL DATA,REDACTED PERSONAL DATA
Tendring DC,http://statistics.data.gov.uk/id/local-authority-district/22UN,Life Opportunities,H860 - Disabled Adaptations,C200 - Main Contractor,08/10/2013,1055272-1,1625,REDACTED PERSONAL DATA,REDACTED PERSONAL DATA
Tendring DC,http://statistics.data.gov.uk/id/local-authority-district/22UN,Life Opportunities,H860 - Disabled Adaptations,C200 - Main Contractor,08/10/2013,1055272-2,835,REDACTED PERSONAL DATA,REDACTED PERSONAL DATA
Tendring DC,http://statistics.data.gov.uk/id/local-authority-district/22UN,Life Opportunities,H860 - Disabled Adaptations,C200 - Main Contractor,22/10/2013,1055552-1,561,REDACTED PERSONAL DATA,REDACTED PERSONAL DATA
Tendring DC,http://statistics.data.gov.uk/id/local-authority-district/22UN,Life Opportunities,H860 - Disabled Adaptations,C200 - Main Contractor,22/10/2013,1055552-2,319,REDACTED PERSONAL DATA,REDACTED PERSONAL DATA
Tendring DC,http://statistics.data.gov.uk/id/local-authority-district/22UN,Life Opportunities,H860 - Disabled Adaptations,C200 - Main Contractor,22/10/2013,1055553-1,517,2103408 - Mark Jones,BELMANS COURT
Tendring DC,http://statistics.data.gov.uk/id/local-authority-district/22UN,Life Opportunities,H860 - Disabled Adaptations,C200 - Main Contractor,22/10/2013,1055553-2,258,2103408 - Mark Jones,BELMANS COURT
Tendring DC,http://statistics.data.gov.uk/id/local-authority-district/22UN,Life Opportunities,H860 - Disabled Adaptations,C200 - Main Contractor,22/10/2013,1055554-1,485,REDACTED PERSONAL DATA,REDACTED PERSONAL DATA
Tendring DC,http://statistics.data.gov.uk/id/local-authority-district/22UN,Life Opportunities,H860 - Disabled Adaptations,C200 - Main Contractor,22/10/2013,1055554-2,260,REDACTED PERSONAL DATA,REDACTED PERSONAL DATA
Tendring DC,http://statistics.data.gov.uk/id/local-authority-district/22UN,Life Opportunities,5480 - HRA - Repair & Maintenance,2088 - Disabled Adaptations,01/10/2013,2111405-1,160,REDACTED PERSONAL DATA,REDACTED PERSONAL DATA
Tendring DC,http://statistics.data.gov.uk/id/local-authority-district/22UN,Life Opportunities,5480 - HRA - Repair & Maintenance,2088 - Disabled Adaptations,01/10/2013,2111405-2,105,REDACTED PERSONAL DATA,REDACTED PERSONAL DATA
Tendring DC,http://statistics.data.gov.uk/id/local-authority-district/22UN,Life Opportunities,5480 - HRA - Repair & Maintenance,2088 - Disabled Adaptations,01/10/2013,2111406-1,179,REDACTED PERSONAL DATA,REDACTED PERSONAL DATA
Tendring DC,http://statistics.data.gov.uk/id/local-authority-district/22UN,Life Opportunities,5480 - HRA - Repair & Maintenance,2088 - Disabled Adaptations,01/10/2013,2111406-2,111,REDACTED PERSONAL DATA,REDACTED PERSONAL DATA
Tendring DC,http://statistics.data.gov.uk/id/local-authority-district/22UN,Life Opportunities,1090 - Chief Executive and Support Service Unit,4355 - Books & Periodicals,15/10/2013,2111768-1,32.7,2112734 - Matt's Carousel,Newspapers Sep 2013
Tendring DC,http://statistics.data.gov.uk/id/local-authority-district/22UN,Life Opportunities,1100 - Corporate Director (Corporate Services) and Admin Service Unit,4355 - Books & Periodicals,15/10/2013,2111768-2,44.1,2112734 - Matt's Carousel,Newspapers Sep 2013
Tendring DC,http://statistics.data.gov.uk/id/local-authority-district/22UN,Life Opportunities,1040 - Regeneration Service Unit,4355 - Books & Periodicals,15/10/2013,2111768-3,19.05,2112734 - Matt's Carousel,Newspapers Sep 2013
Tendring DC,http://statistics.data.gov.uk/id/local-authority-district/22UN,Life Opportunities,"1580 - Benefits, Revenues and Customer Contact SU",4355 - Books & Periodicals,15/10/2013,2111768-4,19.05,2112734 - Matt's Carousel,Newspapers Sep 2013
Tendring DC,http://statistics.data.gov.uk/id/local-authority-district/22UN,Life Opportunities,7040 - Civic Ceremonial Expenses,4080 - Materials & Consumables,15/10/2013,2111768-5,3.2,2112734 - Matt's Carousel,Newspapers Sep 2013
Tendring DC,http://statistics.data.gov.uk/id/local-authority-district/22UN,Life Opportunities,1090 - Chief Executive and Support Service Unit,4355 - Books & Periodicals,15/10/2013,2111768-6,28,2112734 - Matt's Carousel,Newspapers Sep 2013
Tendring DC,http://statistics.data.gov.uk/id/local-authority-district/22UN,Life Opportunities,6160 - Princes Theatre,4040 - Equipment & Tools,15/10/2013,2111547-1,345,2101791 - Medlock Electrical,Medlock Floodlights
Tendring DC,http://statistics.data.gov.uk/id/local-authority-district/22UN,Life Opportunities,6160 - Princes Theatre,2100 - Building Repairs,15/10/2013,2111548-1,51.53,2101791 - Medlock Electrical,Medlock Order Theatre
Tendring DC,http://statistics.data.gov.uk/id/local-authority-district/22UN,Life Opportunities,6160 - Princes Theatre,4040 - Equipment & Tools,15/10/2013,2111549-1,774.2,2101791 - Medlock Electrical,Medlock Lights & Plugs
Tendring DC,http://statistics.data.gov.uk/id/local-authority-district/22UN,Life Opportunities,1880 - Office Accommodation Expenses,4080 - Materials & Consumables,22/10/2013,2111849-1,236.55,2101791 - Medlock Electrical,Tubes & Pat Testing Stickers
Tendring DC,http://statistics.data.gov.uk/id/local-authority-district/22UN,Life Opportunities,1880 - Office Accommodation Expenses,4080 - Materials & Consumables,22/10/2013,2111850-1,8.25,2101791 - Medlock Electrical,Labels
Tendring DC,http://statistics.data.gov.uk/id/local-authority-district/22UN,Life Opportunities,8510 - Dovercourt Swimming Pool & All Weather Facilities,4000 - Furniture,22/10/2013,2111866-1,15,2101791 - Medlock Electrical,Lighting System
Tendring DC,http://statistics.data.gov.uk/id/local-authority-district/22UN,Life Opportunities,1880 - Office Accommodation Expenses,2100 - Building Repairs,22/10/2013,2111867-1,5.25,2101791 - Medlock Electrical,Halogen Flood
Tendring DC,http://statistics.data.gov.uk/id/local-authority-district/22UN,Life Opportunities,H920 - Disabled Facilities Grants,C400 - Grant payments,08/10/2013,1055355-1,675,REDACTED PERSONAL DATA,REDACTED PERSONAL DATA
Tendring DC,http://statistics.data.gov.uk/id/local-authority-district/22UN,Life Opportunities,H920 - Disabled Facilities Grants,C400 - Grant payments,15/10/2013,1055518-1,600,REDACTED PERSONAL DATA,REDACTED PERSONAL DATA
Tendring DC,http://statistics.data.gov.uk/id/local-authority-district/22UN,Life Opportunities,7520 - Tourism Publicity Marketing Promotion,5160 - Advertising,15/10/2013,2111601-1,250,2109596 - Metropolis Business Media,Sept 13 The Pass
Tendring DC,http://statistics.data.gov.uk/id/local-authority-district/22UN,Life Opportunities,5140 - Homelessness,4683 - Other Homelessness Expenses,15/10/2013,2111696-1,435,REDACTED PERSONAL DATA,REDACTED PERSONAL DATA
Tendring DC,http://statistics.data.gov.uk/id/local-authority-district/22UN,Life Opportunities,9920 - HRA Balance Sheet,B860 - Housing Rents - Cash,08/10/2013,1055266-1,490.59,REDACTED PERSONAL DATA,REDACTED PERSONAL DATA
Tendring DC,http://statistics.data.gov.uk/id/local-authority-district/22UN,Life Opportunities,9920 - HRA Balance Sheet,B860 - Housing Rents - Cash,01/10/2013,1055181-1,419.94,REDACTED PERSONAL DATA,REDACTED PERSONAL DATA
Tendring DC,http://statistics.data.gov.uk/id/local-authority-district/22UN,Life Opportunities,9920 - HRA Balance Sheet,B860 - Housing Rents - Cash,22/10/2013,2111900-1,18.16,REDACTED PERSONAL DATA,REDACTED PERSONAL DATA
Tendring DC,http://statistics.data.gov.uk/id/local-authority-district/22UN,Life Opportunities,9920 - HRA Balance Sheet,B860 - Housing Rents - Cash,01/10/2013,2111429-1,68.83,REDACTED PERSONAL DATA,REDACTED PERSONAL DATA
Tendring DC,http://statistics.data.gov.uk/id/local-authority-district/22UN,Life Opportunities,9920 - HRA Balance Sheet,B860 - Housing Rents - Cash,15/10/2013,1055501-1,60.69,REDACTED PERSONAL DATA,REDACTED PERSONAL DATA
Tendring DC,http://statistics.data.gov.uk/id/local-authority-district/22UN,Life Opportunities,9920 - HRA Balance Sheet,B860 - Housing Rents - Cash,22/10/2013,2111907-1,1327.04,2111998 - Miss S Carter,Rent Refund
Tendring DC,http://statistics.data.gov.uk/id/local-authority-district/22UN,Life Opportunities,9920 - HRA Balance Sheet,B860 - Housing Rents - Cash,01/10/2013,2111428-1,12.69,REDACTED PERSONAL DATA,REDACTED PERSONAL DATA
Tendring DC,http://statistics.data.gov.uk/id/local-authority-district/22UN,Life Opportunities,5480 - HRA - Repair & Maintenance,2073 - Smoke Alarm Service/Testing,15/10/2013,1055506-1,2223.24,2111370 - Morrison Facilities Services,GAS SERVICE & REPAIR-SOUTH AREA 13/14
Tendring DC,http://statistics.data.gov.uk/id/local-authority-district/22UN,Life Opportunities,5480 - HRA - Repair & Maintenance,2075 - Gas Service Contract Servicing/Testing (Domestic I,15/10/2013,1055506-2,5975.02,2111370 - Morrison Facilities Services,GAS SERVICE & REPAIR-SOUTH AREA 13/14
Tendring DC,http://statistics.data.gov.uk/id/local-authority-district/22UN,Life Opportunities,5480 - HRA - Repair & Maintenance,2076 - Gas Service Contract Other Refurbishment/Repairs (,15/10/2013,1055506-3,4856.8,2111370 - Morrison Facilities Services,GAS SERVICE & REPAIR-SOUTH AREA 13/14
Tendring DC,http://statistics.data.gov.uk/id/local-authority-district/22UN,Life Opportunities,5480 - HRA - Repair & Maintenance,2073 - Smoke Alarm Service/Testing,15/10/2013,1055507-1,2725.5,2111370 - Morrison Facilities Services,GAS SERVICE & REPAIR-SOUTH AREA 13/14
Tendring DC,http://statistics.data.gov.uk/id/local-authority-district/22UN,Life Opportunities,5480 - HRA - Repair & Maintenance,2075 - Gas Service Contract Servicing/Testing (Domestic I,15/10/2013,1055507-2,7081.67,2111370 - Morrison Facilities Services,GAS SERVICE & REPAIR-SOUTH AREA 13/14
Tendring DC,http://statistics.data.gov.uk/id/local-authority-district/22UN,Life Opportunities,5480 - HRA - Repair & Maintenance,2076 - Gas Service Contract Other Refurbishment/Repairs (,15/10/2013,1055507-3,5927.3,2111370 - Morrison Facilities Services,GAS SERVICE & REPAIR-SOUTH AREA 13/14
Tendring DC,http://statistics.data.gov.uk/id/local-authority-district/22UN,Life Opportunities,5240 - HRA - Managing Tenancies,5242 - Tenant Relations,15/10/2013,1055426-1,10,REDACTED PERSONAL DATA,REDACTED PERSONAL DATA
Tendring DC,http://statistics.data.gov.uk/id/local-authority-district/22UN,Life Opportunities,8540 - Leisure Centre Clacton,9275 - Lifestyles Plus - DD,15/10/2013,1055512-1,157.23,REDACTED PERSONAL DATA,REDACTED PERSONAL DATA
Tendring DC,http://statistics.data.gov.uk/id/local-authority-district/22UN,Life Opportunities,9920 - HRA Balance Sheet,B860 - Housing Rents - Cash,15/10/2013,1055499-1,15.52,REDACTED PERSONAL DATA,REDACTED PERSONAL DATA
Tendring DC,http://statistics.data.gov.uk/id/local-authority-district/22UN,Life Opportunities,9920 - HRA Balance Sheet,B860 - Housing Rents - Cash,08/10/2013,1055269-1,38.4,REDACTED PERSONAL DATA,REDACTED PERSONAL DATA
Tendring DC,http://statistics.data.gov.uk/id/local-authority-district/22UN,Life Opportunities,8540 - Leisure Centre Clacton,4597 - Hired Services - Payments to Contractors,08/10/2013,1055379-1,75,REDACTED PERSONAL DATA,REDACTED PERSONAL DATA
Tendring DC,http://statistics.data.gov.uk/id/local-authority-district/22UN,Life Opportunities,9920 - HRA Balance Sheet,B860 - Housing Rents - Cash,15/10/2013,1055498-1,4.9,REDACTED PERSONAL DATA,REDACTED PERSONAL DATA
Tendring DC,http://statistics.data.gov.uk/id/local-authority-district/22UN,Life Opportunities,9920 - HRA Balance Sheet,B860 - Housing Rents - Cash,15/10/2013,1055502-1,256.95,REDACTED PERSONAL DATA,REDACTED PERSONAL DATA
Tendring DC,http://statistics.data.gov.uk/id/local-authority-district/22UN,Life Opportunities,9920 - HRA Balance Sheet,B860 - Housing Rents - Cash,22/10/2013,2111903-1,2.94,REDACTED PERSONAL DATA,REDACTED PERSONAL DATA
Tendring DC,http://statistics.data.gov.uk/id/local-authority-district/22UN,Life Opportunities,9920 - HRA Balance Sheet,B860 - Housing Rents - Cash,22/10/2013,2111902-1,60.52,REDACTED PERSONAL DATA,REDACTED PERSONAL DATA
Tendring DC,http://statistics.data.gov.uk/id/local-authority-district/22UN,Life Opportunities,9920 - HRA Balance Sheet,B860 - Housing Rents - Cash,01/10/2013,2111426-1,13.08,REDACTED PERSONAL DATA,REDACTED PERSONAL DATA
Tendring DC,http://statistics.data.gov.uk/id/local-authority-district/22UN,Life Opportunities,9920 - HRA Balance Sheet,B860 - Housing Rents - Cash,08/10/2013,1055267-1,200,REDACTED PERSONAL DATA,REDACTED PERSONAL DATA
Tendring DC,http://statistics.data.gov.uk/id/local-authority-district/22UN,Life Opportunities,9920 - HRA Balance Sheet,B860 - Housing Rents - Cash,08/10/2013,1055268-1,9.31,REDACTED PERSONAL DATA,REDACTED PERSONAL DATA
Tendring DC,http://statistics.data.gov.uk/id/local-authority-district/22UN,Life Opportunities,9920 - HRA Balance Sheet,B860 - Housing Rents - Cash,08/10/2013,1055353-1,238.18,REDACTED PERSONAL DATA,REDACTED PERSONAL DATA
Tendring DC,http://statistics.data.gov.uk/id/local-authority-district/22UN,Life Opportunities,5480 - HRA - Repair & Maintenance,2071 - Electric Installation Testing,01/10/2013,7700624-1,507.5,2110096 - MRM Electrical,14 KERSEY DRIVE
Tendring DC,http://statistics.data.gov.uk/id/local-authority-district/22UN,Life Opportunities,9920 - HRA Balance Sheet,B860 - Housing Rents - Cash,22/10/2013,2111908-1,36.25,REDACTED PERSONAL DATA,REDACTED PERSONAL DATA
Tendring DC,http://statistics.data.gov.uk/id/local-authority-district/22UN,Life Opportunities,9920 - HRA Balance Sheet,B860 - Housing Rents - Cash,15/10/2013,1055497-1,103.02,REDACTED PERSONAL DATA,REDACTED PERSONAL DATA
Tendring DC,http://statistics.data.gov.uk/id/local-authority-district/22UN,Life Opportunities,H920 - Disabled Facilities Grants,C400 - Grant payments,08/10/2013,1055356-1,6367.89,REDACTED PERSONAL DATA,REDACTED PERSONAL DATA
Tendring DC,http://statistics.data.gov.uk/id/local-authority-district/22UN,Life Opportunities,H920 - Disabled Facilities Grants,C400 - Grant payments,15/10/2013,1055516-1,7066.28,REDACTED PERSONAL DATA,REDACTED PERSONAL DATA
Tendring DC,http://statistics.data.gov.uk/id/local-authority-district/22UN,Life Opportunities,9920 - HRA Balance Sheet,B860 - Housing Rents - Cash,22/10/2013,2111904-1,680.69,REDACTED PERSONAL DATA,REDACTED PERSONAL DATA
Tendring DC,http://statistics.data.gov.uk/id/local-authority-district/22UN,Life Opportunities,C263 - Replacement of Careline alarms in Group Schemes,C251 - Other Furniture,01/10/2013,1055182-1,130,REDACTED PERSONAL DATA,REDACTED PERSONAL DATA
Tendring DC,http://statistics.data.gov.uk/id/local-authority-district/22UN,Life Opportunities,7840 - Concessionary Rail Fares,8525 - Senior Citizen Rail Card Sales,01/10/2013,2111430-1,4,REDACTED PERSONAL DATA,REDACTED PERSONAL DATA
Tendring DC,http://statistics.data.gov.uk/id/local-authority-district/22UN,Life Opportunities,9920 - HRA Balance Sheet,B860 - Housing Rents - Cash,22/10/2013,2111905-1,61.33,REDACTED PERSONAL DATA,REDACTED PERSONAL DATA
Tendring DC,http://statistics.data.gov.uk/id/local-authority-district/22UN,Life Opportunities,9920 - HRA Balance Sheet,B860 - Housing Rents - Cash,01/10/2013,2111427-1,151.26,REDACTED PERSONAL DATA,REDACTED PERSONAL DATA
Tendring DC,http://statistics.data.gov.uk/id/local-authority-district/22UN,Life Opportunities,9920 - HRA Balance Sheet,B860 - Housing Rents - Cash,22/10/2013,2111906-1,116.35,REDACTED PERSONAL DATA,REDACTED PERSONAL DATA
Tendring DC,http://statistics.data.gov.uk/id/local-authority-district/22UN,Life Opportunities,5240 - HRA - Managing Tenancies,6620 - Under Occupation Incentive Scheme,15/10/2013,1055424-1,750,REDACTED PERSONAL DATA,REDACTED PERSONAL DATA
Tendring DC,http://statistics.data.gov.uk/id/local-authority-district/22UN,Life Opportunities,9920 - HRA Balance Sheet,B860 - Housing Rents - Cash,15/10/2013,1055500-1,23.26,REDACTED PERSONAL DATA,REDACTED PERSONAL DATA
Tendring DC,http://statistics.data.gov.uk/id/local-authority-district/22UN,Life Opportunities,9920 - HRA Balance Sheet,B860 - Housing Rents - Cash,22/10/2013,2111901-1,40,REDACTED PERSONAL DATA,REDACTED PERSONAL DATA
Tendring DC,http://statistics.data.gov.uk/id/local-authority-district/22UN,Life Opportunities,5820 - Harwich Sports Centre,4597 - Hired Services - Payments to Contractors,15/10/2013,2111714-1,100,2112299 - My Time Fitness Ltd,Fitness Classes
Tendring DC,http://statistics.data.gov.uk/id/local-authority-district/22UN,Life Opportunities,5820 - Harwich Sports Centre,4597 - Hired Services - Payments to Contractors,15/10/2013,2111715-1,20,2112299 - My Time Fitness Ltd,Fitness Classes
Tendring DC,http://statistics.data.gov.uk/id/local-authority-district/22UN,Life Opportunities,5820 - Harwich Sports Centre,4597 - Hired Services - Payments to Contractors,15/10/2013,2111716-1,100,2112299 - My Time Fitness Ltd,Fitness Classes
Tendring DC,http://statistics.data.gov.uk/id/local-authority-district/22UN,Life Opportunities,8510 - Dovercourt Swimming Pool & All Weather Facilities,9228 - Swimming Lessons,15/10/2013,2111709-1,86,REDACTED PERSONAL DATA,REDACTED PERSONAL DATA
Tendring DC,http://statistics.data.gov.uk/id/local-authority-district/22UN,Life Opportunities,7520 - Tourism Publicity Marketing Promotion,8460 - Sponsored Events income,15/10/2013,1055476-1,190,2100967 - N Rudelhoff,REPAIR TO ELECTRIC BOX
Tendring DC,http://statistics.data.gov.uk/id/local-authority-district/22UN,Life Opportunities,7620 - Air Show,2103 - Repairs and Maintenance,15/10/2013,1055477-1,542,2100967 - N Rudelhoff,ELECTRICS FOR AIRSHOW
Tendring DC,http://statistics.data.gov.uk/id/local-authority-district/22UN,Life Opportunities,C263 - Replacement of Careline alarms in Group Schemes,C251 - Other Furniture,15/10/2013,2111583-1,1542,2100967 - N Rudelhoff,N R Electrical
Tendring DC,http://statistics.data.gov.uk/id/local-authority-district/22UN,Life Opportunities,7000 - CCTV,4400 - Maintenance Under Service Agreements,15/10/2013,2111583-2,515,2100967 - N Rudelhoff,N R Electrical
Tendring DC,http://statistics.data.gov.uk/id/local-authority-district/22UN,Life Opportunities,1860 - Depots General,2100 - Building Repairs,22/10/2013,2111776-1,528,2100967 - N Rudelhoff,Electrical Works
Tendring DC,http://statistics.data.gov.uk/id/local-authority-district/22UN,Life Opportunities,1880 - Office Accommodation Expenses,2100 - Building Repairs,22/10/2013,2111777-1,449,2100967 - N Rudelhoff,Electrical Work
Tendring DC,http://statistics.data.gov.uk/id/local-authority-district/22UN,Life Opportunities,1880 - Office Accommodation Expenses,2100 - Building Repairs,22/10/2013,2111874-1,520,2100967 - N Rudelhoff,Electrical Work
Tendring DC,http://statistics.data.gov.uk/id/local-authority-district/22UN,Life Opportunities,1240 - Housing Services Service Unit,3302 - Car Allowances - Officers,08/10/2013,1055257-1,60,REDACTED PERSONAL DATA,REDACTED PERSONAL DATA
Tendring DC,http://statistics.data.gov.uk/id/local-authority-district/22UN,Life Opportunities,7600 - Tourist Information Centres,9356 - Commission Sales,08/10/2013,1055229-1,943.88,2110032 - National Express Ltd,Sep-13
Tendring DC,http://statistics.data.gov.uk/id/local-authority-district/22UN,Life Opportunities,1320 - Print Unit Service Unit,4080 - Materials & Consumables,01/10/2013,7700626-1,100,2111479 - Neil Goss Litho Printing,SRA3 350 BOARD
Tendring DC,http://statistics.data.gov.uk/id/local-authority-district/22UN,Life Opportunities,6160 - Princes Theatre,5160 - Advertising,01/10/2013,1055141-1,262.56,2100989 - Newsquest (London) Ltd,Jim Davidson
Tendring DC,http://statistics.data.gov.uk/id/local-authority-district/22UN,Life Opportunities,6160 - Princes Theatre,5160 - Advertising,01/10/2013,1055142-1,170.1,2100989 - Newsquest (London) Ltd,Eagles
Tendring DC,http://statistics.data.gov.uk/id/local-authority-district/22UN,Life Opportunities,6160 - Princes Theatre,5160 - Advertising,08/10/2013,1055347-1,154.2,2100989 - Newsquest (London) Ltd,GAZETTE 26/9/13
Tendring DC,http://statistics.data.gov.uk/id/local-authority-district/22UN,Life Opportunities,6160 - Princes Theatre,5160 - Advertising,08/10/2013,1055348-1,195,2100989 - Newsquest (London) Ltd,EVENING GAZETTE 25/9/13
Tendring DC,http://statistics.data.gov.uk/id/local-authority-district/22UN,Life Opportunities,5880 - Management Of Sport & Leisure Facilities,5166 - Marketing and Promotion,08/10/2013,1055367-1,460,2100989 - Newsquest (London) Ltd,CFG 11/7/13
Tendring DC,http://statistics.data.gov.uk/id/local-authority-district/22UN,Life Opportunities,5880 - Management Of Sport & Leisure Facilities,5166 - Marketing and Promotion,08/10/2013,1055368-1,256.6,2100989 - Newsquest (London) Ltd,HMS 12/7/13
Tendring DC,http://statistics.data.gov.uk/id/local-authority-district/22UN,Life Opportunities,5880 - Management Of Sport & Leisure Facilities,5166 - Marketing and Promotion,08/10/2013,1055378-1,717,2100989 - Newsquest (London) Ltd,CFG HMS SEP PROMO
Tendring DC,http://statistics.data.gov.uk/id/local-authority-district/22UN,Life Opportunities,6160 - Princes Theatre,5160 - Advertising,15/10/2013,1055481-1,214,2100989 - Newsquest (London) Ltd,GAZETTE 3/10
Tendring DC,http://statistics.data.gov.uk/id/local-authority-district/22UN,Life Opportunities,6160 - Princes Theatre,5160 - Advertising,15/10/2013,1055482-1,178.4,2100989 - Newsquest (London) Ltd,COLIN FRY GAZETTE
Tendring DC,http://statistics.data.gov.uk/id/local-authority-district/22UN,Life Opportunities,6160 - Princes Theatre,5160 - Advertising,15/10/2013,1055483-1,90,2100989 - Newsquest (London) Ltd,COLIN FRY GAZETTE
Tendring DC,http://statistics.data.gov.uk/id/local-authority-district/22UN,Life Opportunities,6160 - Princes Theatre,4105 - Bar/Catering Expenses,22/10/2013,2111791-1,164.5,2100989 - Newsquest (London) Ltd,Polka Dot Pantomimes
Tendring DC,http://statistics.data.gov.uk/id/local-authority-district/22UN,Life Opportunities,6160 - Princes Theatre,4105 - Bar/Catering Expenses,22/10/2013,2111792-1,388,2100989 - Newsquest (London) Ltd,Clacton & Frinton Gazette 10/10
Tendring DC,http://statistics.data.gov.uk/id/local-authority-district/22UN,Life Opportunities,6160 - Princes Theatre,4105 - Bar/Catering Expenses,22/10/2013,2111793-1,185.6,2100989 - Newsquest (London) Ltd,Evening Gazette 11/10
Tendring DC,http://statistics.data.gov.uk/id/local-authority-district/22UN,Life Opportunities,6160 - Princes Theatre,4105 - Bar/Catering Expenses,22/10/2013,2111794-1,95,2100989 - Newsquest (London) Ltd,HArwich & Manningtree 11/10
Tendring DC,http://statistics.data.gov.uk/id/local-authority-district/22UN,Life Opportunities,5140 - Homelessness,4683 - Other Homelessness Expenses,15/10/2013,2111677-1,70,2107920 - NowMedical,Medical Advice Sept 2013
Tendring DC,http://statistics.data.gov.uk/id/local-authority-district/22UN,Life Opportunities,6740 - Careline,4601 - Hired services - Cleaning,22/10/2013,2111942-1,65,2102096 - Nu-Life Cleaning,Deep Clean in Control Room
Tendring DC,http://statistics.data.gov.uk/id/local-authority-district/22UN,Life Opportunities,5140 - Homelessness,4683 - Other Homelessness Expenses,15/10/2013,2111700-1,262.05,REDACTED PERSONAL DATA,REDACTED PERSONAL DATA
Tendring DC,http://statistics.data.gov.uk/id/local-authority-district/22UN,Life Opportunities,5140 - Homelessness,4683 - Other Homelessness Expenses,15/10/2013,2111701-1,272,REDACTED PERSONAL DATA,REDACTED PERSONAL DATA
Tendring DC,http://statistics.data.gov.uk/id/local-authority-district/22UN,Life Opportunities,H920 - Disabled Facilities Grants,C400 - Grant payments,08/10/2013,1055260-1,5228.17,REDACTED PERSONAL DATA,REDACTED PERSONAL DATA
Tendring DC,http://statistics.data.gov.uk/id/local-authority-district/22UN,Life Opportunities,H920 - Disabled Facilities Grants,C400 - Grant payments,08/10/2013,1055261-1,4431.8,REDACTED PERSONAL DATA,REDACTED PERSONAL DATA
Tendring DC,http://statistics.data.gov.uk/id/local-authority-district/22UN,Life Opportunities,H920 - Disabled Facilities Grants,C400 - Grant payments,15/10/2013,1055433-1,5077.7,REDACTED PERSONAL DATA,REDACTED PERSONAL DATA
Tendring DC,http://statistics.data.gov.uk/id/local-authority-district/22UN,Life Opportunities,H920 - Disabled Facilities Grants,C400 - Grant payments,15/10/2013,1055434-1,3266.36,REDACTED PERSONAL DATA,REDACTED PERSONAL DATA
Tendring DC,http://statistics.data.gov.uk/id/local-authority-district/22UN,Life Opportunities,7620 - Air Show,4628 - Hired Services - Air Displays,01/10/2013,2111466-1,2639,2113355 - One Sky Aviation LLP,Air Display 23-24 August
Tendring DC,http://statistics.data.gov.uk/id/local-authority-district/22UN,Life Opportunities,5820 - Harwich Sports Centre,5311 - General Provisions - Vending,08/10/2013,1055295-1,58.2,2101083 - Osgood Smith,CANTEEN GOODS
Tendring DC,http://statistics.data.gov.uk/id/local-authority-district/22UN,Life Opportunities,5860 - Manningtree Sports Centre,5311 - General Provisions - Vending,08/10/2013,1055296-1,136,2101083 - Osgood Smith,VENDING SUPPLIES
Tendring DC,http://statistics.data.gov.uk/id/local-authority-district/22UN,Life Opportunities,8510 - Dovercourt Swimming Pool & All Weather Facilities,5311 - General Provisions - Vending,08/10/2013,1055338-1,62.3,2101083 - Osgood Smith,DOVERCOURT POOL-SWEETS
Tendring DC,http://statistics.data.gov.uk/id/local-authority-district/22UN,Life Opportunities,8510 - Dovercourt Swimming Pool & All Weather Facilities,5311 - General Provisions - Vending,08/10/2013,1055339-1,144.85,2101083 - Osgood Smith,DOVERCOURT POOL-SWEETS
Tendring DC,http://statistics.data.gov.uk/id/local-authority-district/22UN,Life Opportunities,6160 - Princes Theatre,5306 - Confectionary,08/10/2013,1055345-1,138.75,2101083 - Osgood Smith,CONF FOR THEATRE
Tendring DC,http://statistics.data.gov.uk/id/local-authority-district/22UN,Life Opportunities,5820 - Harwich Sports Centre,5311 - General Provisions - Vending,22/10/2013,1055569-1,16.8,2101083 - Osgood Smith,CANTEEN GOODS
Tendring DC,http://statistics.data.gov.uk/id/local-authority-district/22UN,Life Opportunities,5820 - Harwich Sports Centre,5311 - General Provisions - Vending,01/10/2013,2111437-1,37.71,REDACTED PERSONAL DATA,REDACTED PERSONAL DATA
Tendring DC,http://statistics.data.gov.uk/id/local-authority-district/22UN,Life Opportunities,5820 - Harwich Sports Centre,5311 - General Provisions - Vending,01/10/2013,2111437-2,12.68,REDACTED PERSONAL DATA,REDACTED PERSONAL DATA
Tendring DC,http://statistics.data.gov.uk/id/local-authority-district/22UN,Life Opportunities,5860 - Manningtree Sports Centre,5311 - General Provisions - Vending,01/10/2013,2111438-1,270.05,REDACTED PERSONAL DATA,REDACTED PERSONAL DATA
Tendring DC,http://statistics.data.gov.uk/id/local-authority-district/22UN,Life Opportunities,8520 - Frinton & Walton Swimming Pool,5311 - General Provisions - Vending,01/10/2013,2111460-1,50.21,2101083 - Osgood Smith,FWSP - Vending
Tendring DC,http://statistics.data.gov.uk/id/local-authority-district/22UN,Life Opportunities,5860 - Manningtree Sports Centre,5311 - General Provisions - Vending,01/10/2013,2111479-1,275.78,2101083 - Osgood Smith,Vending Supplies
Tendring DC,http://statistics.data.gov.uk/id/local-authority-district/22UN,Life Opportunities,5860 - Manningtree Sports Centre,5311 - General Provisions - Vending,01/10/2013,2111480-1,89.46,2101083 - Osgood Smith,Vending Supplies
Tendring DC,http://statistics.data.gov.uk/id/local-authority-district/22UN,Life Opportunities,5860 - Manningtree Sports Centre,5311 - General Provisions - Vending,01/10/2013,2111480-2,-5,2101083 - Osgood Smith,Vending Supplies
Tendring DC,http://statistics.data.gov.uk/id/local-authority-district/22UN,Life Opportunities,8520 - Frinton & Walton Swimming Pool,5311 - General Provisions - Vending,15/10/2013,2111553-1,118.02,2101083 - Osgood Smith,FWSP Vending Stock
Tendring DC,http://statistics.data.gov.uk/id/local-authority-district/22UN,Life Opportunities,8520 - Frinton & Walton Swimming Pool,5311 - General Provisions - Vending,15/10/2013,2111554-1,17.2,2101083 - Osgood Smith,FWSP Vending Stock
Tendring DC,http://statistics.data.gov.uk/id/local-authority-district/22UN,Life Opportunities,5480 - HRA - Repair & Maintenance,2058 - Fire Alarms Repairs,15/10/2013,2111576-1,95,REDACTED PERSONAL DATA,REDACTED PERSONAL DATA
Tendring DC,http://statistics.data.gov.uk/id/local-authority-district/22UN,Life Opportunities,5800 - Brightlingsea Sports Centre,5316 - General Provisions,15/10/2013,2111613-1,155.22,REDACTED PERSONAL DATA,REDACTED PERSONAL DATA
Tendring DC,http://statistics.data.gov.uk/id/local-authority-district/22UN,Life Opportunities,5860 - Manningtree Sports Centre,5311 - General Provisions - Vending,15/10/2013,2111670-1,119.96,REDACTED PERSONAL DATA,REDACTED PERSONAL DATA
Tendring DC,http://statistics.data.gov.uk/id/local-authority-district/22UN,Life Opportunities,5860 - Manningtree Sports Centre,5311 - General Provisions - Vending,15/10/2013,2111670-2,9.19,REDACTED PERSONAL DATA,REDACTED PERSONAL DATA
Tendring DC,http://statistics.data.gov.uk/id/local-authority-district/22UN,Life Opportunities,5820 - Harwich Sports Centre,5311 - General Provisions - Vending,15/10/2013,2111717-1,27.15,2101083 - Osgood Smith,Canteen Goods
Tendring DC,http://statistics.data.gov.uk/id/local-authority-district/22UN,Life Opportunities,8520 - Frinton & Walton Swimming Pool,5311 - General Provisions - Vending,22/10/2013,2111797-1,57.3,2101083 - Osgood Smith,Osgood
Tendring DC,http://statistics.data.gov.uk/id/local-authority-district/22UN,Life Opportunities,8520 - Frinton & Walton Swimming Pool,5311 - General Provisions - Vending,22/10/2013,2111798-1,29.78,2101083 - Osgood Smith,Frinton & Walton Pool
Tendring DC,http://statistics.data.gov.uk/id/local-authority-district/22UN,Life Opportunities,5480 - HRA - Repair & Maintenance,2077 - Gas Service Contract  Servicing/Testing (Large Sca,01/10/2013,1055184-1,2873.58,2113206 - P&R Installation Company Ltd,MECHANICAL SERVICES CONTRACT
Tendring DC,http://statistics.data.gov.uk/id/local-authority-district/22UN,Life Opportunities,5480 - HRA - Repair & Maintenance,2078 - Gas Service Contract Other Refurbishment/Repairs (,01/10/2013,1055184-2,262.5,2113206 - P&R Installation Company Ltd,MECHANICAL SERVICES CONTRACT
Tendring DC,http://statistics.data.gov.uk/id/local-authority-district/22UN,Life Opportunities,5480 - HRA - Repair & Maintenance,2077 - Gas Service Contract  Servicing/Testing (Large Sca,15/10/2013,1055515-1,2873.57,2113206 - P&R Installation Company Ltd,MECHANICAL SERVICES CONTRACT
Tendring DC,http://statistics.data.gov.uk/id/local-authority-district/22UN,Life Opportunities,5480 - HRA - Repair & Maintenance,2078 - Gas Service Contract Other Refurbishment/Repairs (,15/10/2013,1055515-2,662.5,2113206 - P&R Installation Company Ltd,MECHANICAL SERVICES CONTRACT
Tendring DC,http://statistics.data.gov.uk/id/local-authority-district/22UN,Life Opportunities,5480 - HRA - Repair & Maintenance,2017 - Mechanical Equipment /Extract Fans,08/10/2013,1055274-1,660,REDACTED PERSONAL DATA,REDACTED PERSONAL DATA
Tendring DC,http://statistics.data.gov.uk/id/local-authority-district/22UN,Life Opportunities,5480 - HRA - Repair & Maintenance,2017 - Mechanical Equipment /Extract Fans,08/10/2013,1055274-2,451,REDACTED PERSONAL DATA,REDACTED PERSONAL DATA
Tendring DC,http://statistics.data.gov.uk/id/local-authority-district/22UN,Life Opportunities,5860 - Manningtree Sports Centre,4597 - Hired Services - Payments to Contractors,15/10/2013,2111724-1,120,2112933 - Phoenix Archery Club,Archery Coaching x 6hrs
Tendring DC,http://statistics.data.gov.uk/id/local-authority-district/22UN,Life Opportunities,5420 - HRA - Communal Cleaning,2706 - Communal Areas Cleaning Expenses,08/10/2013,1055200-1,3521.58,2107884 - Pinnacle Essex,MONTHLY CLEANING SERVICES FEE SEPT 2013
Tendring DC,http://statistics.data.gov.uk/id/local-authority-district/22UN,Life Opportunities,7520 - Tourism Publicity Marketing Promotion,5160 - Advertising,15/10/2013,2111602-1,90,2102483 - Plum Publishing Ltd,Bus & Coach Prof 319
Tendring DC,http://statistics.data.gov.uk/id/local-authority-district/22UN,Life Opportunities,H720 - Environmental Improvements,C200 - Main Contractor,08/10/2013,1055313-1,807.39,REDACTED PERSONAL DATA,REDACTED PERSONAL DATA
Tendring DC,http://statistics.data.gov.uk/id/local-authority-district/22UN,Life Opportunities,H710 - Selected Improvements,C200 - Main Contractor,08/10/2013,1055314-1,669.7,REDACTED PERSONAL DATA,REDACTED PERSONAL DATA
Tendring DC,http://statistics.data.gov.uk/id/local-authority-district/22UN,Life Opportunities,H720 - Environmental Improvements,C200 - Main Contractor,08/10/2013,1055315-1,807.39,REDACTED PERSONAL DATA,REDACTED PERSONAL DATA
Tendring DC,http://statistics.data.gov.uk/id/local-authority-district/22UN,Life Opportunities,5480 - HRA - Repair & Maintenance,2090 - Fencing,08/10/2013,1055316-1,335.7,REDACTED PERSONAL DATA,REDACTED PERSONAL DATA
Tendring DC,http://statistics.data.gov.uk/id/local-authority-district/22UN,Life Opportunities,H710 - Selected Improvements,C200 - Main Contractor,08/10/2013,1055317-1,2401.65,REDACTED PERSONAL DATA,REDACTED PERSONAL DATA
Tendring DC,http://statistics.data.gov.uk/id/local-authority-district/22UN,Life Opportunities,H720 - Environmental Improvements,C200 - Main Contractor,08/10/2013,1055318-1,807.39,REDACTED PERSONAL DATA,REDACTED PERSONAL DATA
Tendring DC,http://statistics.data.gov.uk/id/local-authority-district/22UN,Life Opportunities,H720 - Environmental Improvements,C200 - Main Contractor,08/10/2013,1055319-1,1614.78,REDACTED PERSONAL DATA,REDACTED PERSONAL DATA
Tendring DC,http://statistics.data.gov.uk/id/local-authority-district/22UN,Life Opportunities,H710 - Selected Improvements,C200 - Main Contractor,08/10/2013,1055320-1,605.4,REDACTED PERSONAL DATA,REDACTED PERSONAL DATA
Tendring DC,http://statistics.data.gov.uk/id/local-authority-district/22UN,Life Opportunities,5480 - HRA - Repair & Maintenance,2090 - Fencing,22/10/2013,1055602-1,204.75,REDACTED PERSONAL DATA,REDACTED PERSONAL DATA
Tendring DC,http://statistics.data.gov.uk/id/local-authority-district/22UN,Life Opportunities,5480 - HRA - Repair & Maintenance,2090 - Fencing,22/10/2013,1055603-1,273,REDACTED PERSONAL DATA,REDACTED PERSONAL DATA
